Workbook

Sheet Índice
B3: BRB - Banco de Brasília S.A
C6: Clique no título da tabela para visualização das informações
C8: 2T2025
C11: KM1 - Informações Quantitativas sobre os Requerimentos Prudenciais
C13: OV1 - Visão Geral dos Ativos Ponderados pelo Risco – RWA
C15: CCA - Principais Características dos Instrumentos que compõe o Patrimônio de Referência (PR)
C17: CC1 - Composição do Patrimônio de Referência (PR)
C19: CC2 - Conciliação do Patrimônio de Referência (PR) com o balanço patrimonial
C20: MR1 - Abordagem Padronizada - Fatores de Risco Associados ao Risco de Mercado
C21: CR1 - Qualidade creditícia das exposições
C22: CR2 - Mudanças no estoque de operações em curso anormal

Sheet Mapas (hidden)
A1: Tabela KM1 | F1: Tabela CCA
A2: CAMPO | B2: TIPO | C2: TAMANHO | D2: Inf | F2: CAMPO | G2: DESCRIÇÃO | H2: TIPO | I2: TAMANHO | J2: Inf
A3: COD_REFERENCIA | B3: Texto | C3: 6 | D3: Chave única | F3: COD_REFERENCIA | G3: Descrição | H3: Texto | I3: 6
A4: COD_TABELA | B4: Texto | C4: 8 | F4: COD_TABELA | H4: Texto | I4: 8
A5: DT_REFERENCIA_ARQ | B5: Data | C5: dd/mm/aaaa | F5: DT_REFERENCIA_ARQ | H5: Data | I5: dd/mm/aaaa
A6: DT_REFERENCIA_A | B6: Data | C6: dd/mm/aaaa | F6: CAMPO_1 | G6: Emissor | H6: Texto | I6: 4000
A7: DT_REFERENCIA_B | B7: Data | C7: dd/mm/aaaa | F7: CAMPO_2 | G7: Identificador único | H7: Texto | I7: 4000 | J7: Chave única
A8: DT_REFERENCIA_C | B8: Data | C8: dd/mm/aaaa | F8: CAMPO_3 | G8: Lei aplicável ao instrumento | H8: Texto | I8: 4000
A9: DT_REFERENCIA_D | B9: Data | C9: dd/mm/aaaa | F9: CAMPO_4 | G9: Classificação do instrumento como componente do PR durante o tratamento temporário de que trata o art. 28 da Resolução nº 4.192, de 2013. | H9: Texto | I9: 4000
A10: DT_REFERENCIA_E | B10: Data | C10: dd/mm/aaaa | F10: CAMPO_5 | G10: Classificação do instrumento como componente do PR após o tratamento temporário de que trata a linha anterior | H10: Texto | I10: 4000
A11: VL_CAPITAL_PRINCIPAL_A | B11: Número | C11: 12 int 4 dec | F11: CAMPO_6 | G11: Escopo da elegibilidade do instrumento | H11: Texto | I11: 4000
A12: VL_CAPITAL_PRINCIPAL_B | B12: Número | C12: 12 int 4 dec | F12: CAMPO_7 | G12: Tipo de instrumento | H12: Texto | I12: 4000
A13: VL_CAPITAL_PRINCIPAL_C | B13: Número | C13: 12 int 4 dec | F13: CAMPO_8 | G13: Valor reconhecido no PR | H13: Número | I13: 12 int 4 dec
A14: VL_CAPITAL_PRINCIPAL_D | B14: Número | C14: 12 int 4 dec | F14: CAMPO_9 | G14: Valor de face do instrumento | H14: Número | I14: 12 int 4 dec
A15: VL_CAPITAL_PRINCIPAL_E | B15: Número | C15: 12 int 4 dec | F15: CAMPO_10 | G15: Classificação contábil | H15: Texto | I15: 4000
A16: VL_NIVEL1_A | B16: Número | C16: 12 int 4 dec | F16: CAMPO_11 | G16: Data original de emissão | H16: Data | I16: dd/mm/aaaa
A17: VL_NIVEL1_B | B17: Número | C17: 12 int 4 dec | F17: CAMPO_12 | G17: Perpétuo ou com vencimento | H17: Texto | I17: 4000
A18: VL_NIVEL1_C | B18: Número | C18: 12 int 4 dec | F18: CAMPO_13 | G18: Data original de vencimento | H18: Data | I18: dd/mm/aaaa
A19: VL_NIVEL1_D | B19: Número | C19: 12 int 4 dec | F19: CAMPO_14 | G19: Opção de resgate ou recompra | H19: Texto | I19: 4000
A20: VL_NIVEL1_E | B20: Número | C20: 12 int 4 dec | F20: CAMPO_15_1 | G20: Data de resgate ou de recompra | H20: Texto | I20: 4000
A21: VL_PATRIMONIO_REFERENCIA_A | B21: Número | C21: 12 int 4 dec | F21: CAMPO_15_2 | G21: Datas de resgate ou de recompra condicionadas | H21: Texto | I21: 4000
A22: VL_PATRIMONIO_REFERENCIA_B | B22: Número | C22: 12 int 4 dec | F22: CAMPO_15_3 | G22: Valor de resgate ou de recompra | H22: Texto | I22: 4000
A23: VL_PATRIMONIO_REFERENCIA_C | B23: Número | C23: 12 int 4 dec | F23: CAMPO_16 | G23: Datas de resgate ou de recompra subsequentes, se aplicável | H23: Texto | I23: 4000
A24: VL_PATRIMONIO_REFERENCIA_D | B24: Número | C24: 12 int 4 dec | F24: CAMPO_17 | G24: Remuneração ou dividendos fixos ou variáveis | H24: Texto | I24: 4000
A25: VL_PATRIMONIO_REFERENCIA_E | B25: Número | C25: 12 int 4 dec | F25: CAMPO_18 | G25: Taxa de remuneração e índice referenciado | H25: Texto | I25: 4000
A26: VL_EXCESSO_REC_APL_AP_A | B26: Número | C26: 12 int 4 dec | F26: CAMPO_19 | G26: Possibilidade de suspensão de pagamento de dividendos | H26: Texto | I26: 4000
A27: VL_EXCESSO_REC_APL_AP_B | B27: Número | C27: 12 int 4 dec | F27: CAMPO_20 | G27: Completa discricionariedade, discricionariedade parcial ou mandatória | H27: Texto | I27: 4000
A28: VL_EXCESSO_REC_APL_AP_C | B28: Número | C28: 12 int 4 dec | F28: CAMPO_21 | G28: Existência de cláusulas que alterem prazos ou condições de remuneração pactuados ou outro incentivo para resgate | H28: Texto | I28: 4000
A29: VL_EXCESSO_REC_APL_AP_D | B29: Número | C29: 12 int 4 dec | F29: CAMPO_22 | G29: Cumulativo ou não cumulativo | H29: Texto | I29: 4000
A30: VL_EXCESSO_REC_APL_AP_E | B30: Número | C30: 12 int 4 dec | F30: CAMPO_23 | G30: Conversível ou não conversível | H30: Texto | I30: 4000
A31: DESTAQUE_PR_A | B31: Número | C31: 12 int 4 dec | F31: CAMPO_24 | G31: Se conversível, em quais situações | H31: Texto | I31: 4000
A32: DESTAQUE_PR_B | B32: Número | C32: 12 int 4 dec | F32: CAMPO_25 | G32: Se conversível, totalmente ou parcialmente | H32: Texto | I32: 4000
A33: DESTAQUE_PR_C | B33: Número | C33: 12 int 4 dec | F33: CAMPO_26 | G33: Se conversível, taxa de conversão | H33: Texto | I33: 4000
A34: DESTAQUE_PR_D | B34: Número | C34: 12 int 4 dec | F34: CAMPO_27 | G34: Se conversível, conversão obrigatória ou opcional | H34: Texto | I34: 4000
A35: DESTAQUE_PR_E | B35: Número | C35: 12 int 4 dec | F35: CAMPO_28 | G35: Se conversível, especificar para qual tipo de instrumento | H35: Texto | I35: 4000
A36: VL_RWA_TOTAL_A | B36: Número | C36: 12 int 4 dec | F36: CAMPO_29 | G36: Se conversível, especificar o emissor do instrumento para o qual pode ser convertido | H36: Texto | I36: 4000
A37: VL_RWA_TOTAL_B | B37: Número | C37: 12 int 4 dec | F37: CAMPO_30 | G37: Características para a extinção do instrumento | H37: Texto | I37: 4000
A38: VL_RWA_TOTAL_C | B38: Número | C38: 12 int 4 dec | F38: CAMPO_31 | G38: Se extinguível, em quais situações | H38: Texto | I38: 4000
A39: VL_RWA_TOTAL_D | B39: Número | C39: 12 int 4 dec | F39: CAMPO_32 | G39: Se extinguível, totalmente ou parcialmente | H39: Texto | I39: 4000
A40: VL_RWA_TOTAL_E | B40: Número | C40: 12 int 4 dec | F40: CAMPO_33 | G40: Se extinguível, permanentemente ou temporariamente | H40: Texto | I40: 4000
A41: VL_ICP_A | B41: Número | C41: 12 int 4 dec | F41: CAMPO_34a | G41: Tipo de subordinação | H41: Texto | I41: 4000
A42: VL_ICP_B | B42: Número | C42: 12 int 4 dec | F42: CAMPO_35 | G42: Posição na hierarquia de subordinação em caso de liquidação | H42: Texto | I42: 4000
A43: VL_ICP_C | B43: Número | C43: 12 int 4 dec | F43: CAMPO_36 | G43: Possui características que não serão aceitas após o tratamento temporário de que trata o art. 28 da Resolução nº 4.192, de 2013 | H43: Texto | I43: 4000
A44: VL_ICP_D | B44: Número | C44: 12 int 4 dec | F44: CAMPO_37 | G44: Se sim, especificar as características de que trata a linha anterior | H44: Texto | I44: 4000
A45: VL_ICP_E | B45: Número | C45: 12 int 4 dec | F45: CAMPO_37 | G45: Se sim, especificar as características de que trata a linha anterior | H45: Texto | I45: 4000
A46: VL_INDICE_NIVEL1_A | B46: Número | C46: 12 int 4 dec
A47: VL_INDICE_NIVEL1_B | B47: Número | C47: 12 int 4 dec | F47: Tabela CC1
A48: VL_INDICE_NIVEL1_C | B48: Número | C48: 12 int 4 dec | F48: CAMPO | G48: DESCRIÇÃO | H48: TIPO | I48: TAMANHO | J48: Inf
A49: VL_INDICE_NIVEL1_D | B49: Número | C49: 12 int 4 dec | F49: COD_REFERENCIA | H49: Texto | I49: 6
A50: VL_INDICE_NIVEL1_E | B50: Número | C50: 12 int 4 dec | F50: COD_TABELA | H50: Texto | I50: 8
A51: VL_INDICE_BASILEIA_A | B51: Número | C51: 12 int 4 dec | F51: DT_REFERENCIA_ARQ | H51: Data | I51: dd/mm/aaaa
A52: VL_INDICE_BASILEIA_B | B52: Número | C52: 12 int 4 dec | F52: Vl_1 | H52: Número | I52: 12 int 4 dec
A53: VL_INDICE_BASILEIA_C | B53: Número | C53: 12 int 4 dec | F53: Vl_2 | H53: Número | I53: 12 int 4 dec
A54: VL_INDICE_BASILEIA_D | B54: Número | C54: 12 int 4 dec | F54: Vl_3 | H54: Número | I54: 12 int 4 dec
A55: VL_INDICE_BASILEIA_E | B55: Número | C55: 12 int 4 dec | F55: Vl_5 | H55: Número | I55: 12 int 4 dec
A56: VL_ACP_CONSEVACAO_A | B56: Número | C56: 12 int 4 dec | F56: Vl_6 | H56: Número | I56: 12 int 4 dec
A57: VL_ACP_CONSEVACAO_B | B57: Número | C57: 12 int 4 dec | F57: Vl_7 | H57: Número | I57: 12 int 4 dec
A58: VL_ACP_CONSEVACAO_C | B58: Número | C58: 12 int 4 dec | F58: Vl_8 | H58: Número | I58: 12 int 4 dec
A59: VL_ACP_CONSEVACAO_D | B59: Número | C59: 12 int 4 dec | F59: Vl_9 | H59: Número | I59: 12 int 4 dec
A60: VL_ACP_CONSEVACAO_E | B60: Número | C60: 12 int 4 dec | F60: Vl_10 | H60: Número | I60: 12 int 4 dec
A61: VL_ACP_CONTRACICLICO_A | B61: Número | C61: 12 int 4 dec | F61: Vl_11 | H61: Número | I61: 12 int 4 dec
A62: VL_ACP_CONTRACICLICO_B | B62: Número | C62: 12 int 4 dec | F62: Vl_15 | H62: Número | I62: 12 int 4 dec
A63: VL_ACP_CONTRACICLICO_C | B63: Número | C63: 12 int 4 dec | F63: Vl_16 | H63: Número | I63: 12 int 4 dec
A64: VL_ACP_CONTRACICLICO_D | B64: Número | C64: 12 int 4 dec | F64: Vl_17 | H64: Número | I64: 12 int 4 dec
A65: VL_ACP_CONTRACICLICO_E | B65: Número | C65: 12 int 4 dec | F65: Vl_18 | H65: Número | I65: 12 int 4 dec
A66: VL_ACP_SISTEMICO_A | B66: Número | C66: 12 int 4 dec | F66: Vl_19 | H66: Número | I66: 12 int 4 dec
A67: VL_ACP_SISTEMICO_B | B67: Número | C67: 12 int 4 dec | F67: Vl_21 | H67: Número | I67: 12 int 4 dec
A68: VL_ACP_SISTEMICO_C | B68: Número | C68: 12 int 4 dec | F68: Vl_22 | H68: Número | I68: 12 int 4 dec
A69: VL_ACP_SISTEMICO_D | B69: Número | C69: 12 int 4 dec | F69: Vl_23 | H69: Número | I69: 12 int 4 dec
A70: VL_ACP_SISTEMICO_E | B70: Número | C70: 12 int 4 dec | F70: Vl_25 | H70: Número | I70: 12 int 4 dec
A71: VL_ACP_TOTAL_A | B71: Número | C71: 12 int 4 dec | F71: Vl_26 | H71: Número | I71: 12 int 4 dec
A72: VL_ACP_TOTAL_B | B72: Número | C72: 12 int 4 dec | F72: Vl_26a | H72: Número | I72: 12 int 4 dec
A73: VL_ACP_TOTAL_C | B73: Número | C73: 12 int 4 dec | F73: Vl_26b | H73: Número | I73: 12 int 4 dec
A74: VL_ACP_TOTAL_D | B74: Número | C74: 12 int 4 dec | F74: Vl_26d | H74: Número | I74: 12 int 4 dec
A75: VL_ACP_TOTAL_E | B75: Número | C75: 12 int 4 dec | F75: Vl_26e | H75: Número | I75: 12 int 4 dec
A76: VL_MARGEM_EXCEDENTE_CP_A | B76: Número | C76: 12 int 4 dec | F76: Vl_26f | H76: Número | I76: 12 int 4 dec
A77: VL_MARGEM_EXCEDENTE_CP_B | B77: Número | C77: 12 int 4 dec | F77: Vl_26g | H77: Número | I77: 12 int 4 dec
A78: VL_MARGEM_EXCEDENTE_CP_C | B78: Número | C78: 12 int 4 dec | F78: Vl_26h | H78: Número | I78: 12 int 4 dec
A79: VL_MARGEM_EXCEDENTE_CP_D | B79: Número | C79: 12 int 4 dec | F79: Vl_26i | H79: Número | I79: 12 int 4 dec
A80: VL_MARGEM_EXCEDENTE_CP_E | B80: Número | C80: 12 int 4 dec | F80: Vl_26j | H80: Número | I80: 12 int 4 dec
A81: VL_EXPOSICAO_TOTAL_A | B81: Número | C81: 12 int 4 dec | F81: Vl_27 | H81: Número | I81: 12 int 4 dec
A82: VL_EXPOSICAO_TOTAL_B | B82: Número | C82: 12 int 4 dec | F82: Vl_28 | H82: Número | I82: 12 int 4 dec
A83: VL_EXPOSICAO_TOTAL_C | B83: Número | C83: 12 int 4 dec | F83: Vl_29 | H83: Número | I83: 12 int 4 dec
A84: VL_EXPOSICAO_TOTAL_D | B84: Número | C84: 12 int 4 dec | F84: Vl_30 | H84: Número | I84: 12 int 4 dec
A85: VL_EXPOSICAO_TOTAL_E | B85: Número | C85: 12 int 4 dec | F85: Vl_31 | H85: Número | I85: 12 int 4 dec
A86: VL_RA_A | B86: Número | C86: 12 int 4 dec | F86: Vl_32 | H86: Número | I86: 12 int 4 dec
A87: VL_RA_B | B87: Número | C87: 12 int 4 dec | F87: Vl_33 | H87: Número | I87: 12 int 4 dec
A88: VL_RA_C | B88: Número | C88: 12 int 4 dec | F88: Vl_34 | H88: Número | I88: 12 int 4 dec
A89: VL_RA_D | B89: Número | C89: 12 int 4 dec | F89: Vl_35 | H89: Número | I89: 12 int 4 dec
A90: VL_RA_E | B90: Número | C90: 12 int 4 dec | F90: Vl_36 | H90: Número | I90: 12 int 4 dec
A91: VL_HQLA_A | B91: Número | C91: 12 int 4 dec | F91: Vl_37 | H91: Número | I91: 12 int 4 dec
A92: VL_HQLA_B | B92: Número | C92: 12 int 4 dec | F92: Vl_38 | H92: Número | I92: 12 int 4 dec
A93: VL_HQLA_C | B93: Número | C93: 12 int 4 dec | F93: Vl_39 | H93: Número | I93: 12 int 4 dec
A94: VL_HQLA_D | B94: Número | C94: 12 int 4 dec | F94: Vl_40 | H94: Número | I94: 12 int 4 dec
A95: VL_HQLA_E | B95: Número | C95: 12 int 4 dec | F95: Vl_41 | H95: Número | I95: 12 int 4 dec
A96: VL_TOTAL_SAIDAS_LIQ_CAIXA_A | B96: Número | C96: 12 int 4 dec | F96: Vl_41b | H96: Número | I96: 12 int 4 dec
A97: VL_TOTAL_SAIDAS_LIQ_CAIXA_B | B97: Número | C97: 12 int 4 dec | F97: Vl_41c | H97: Número | I97: 12 int 4 dec
A98: VL_TOTAL_SAIDAS_LIQ_CAIXA_C | B98: Número | C98: 12 int 4 dec | F98: Vl_42 | H98: Número | I98: 12 int 4 dec
A99: VL_TOTAL_SAIDAS_LIQ_CAIXA_D | B99: Número | C99: 12 int 4 dec | F99: Vl_43 | H99: Número | I99: 12 int 4 dec
A100: VL_TOTAL_SAIDAS_LIQ_CAIXA_E | B100: Número | C100: 12 int 4 dec | F100: Vl_44 | H100: Número | I100: 12 int 4 dec
A101: VL_LCR_A | B101: Número | C101: 12 int 4 dec | F101: Vl_45 | H101: Número | I101: 12 int 4 dec
A102: VL_LCR_B | B102: Número | C102: 12 int 4 dec | F102: Vl_46 | H102: Número | I102: 12 int 4 dec
A103: VL_LCR_C | B103: Número | C103: 12 int 4 dec | F103: Vl_47 | H103: Número | I103: 12 int 4 dec
A104: VL_LCR_D | B104: Número | C104: 12 int 4 dec | F104: Vl_48 | H104: Número | I104: 12 int 4 dec
A105: VL_LCR_E | B105: Número | C105: 12 int 4 dec | F105: Vl_49 | H105: Número | I105: 12 int 4 dec
A106: VL_ASF_A | B106: Número | C106: 12 int 4 dec | F106: Vl_51 | H106: Número | I106: 12 int 4 dec
A107: VL_ASF_B | B107: Número | C107: 12 int 4 dec | F107: Vl_52 | H107: Número | I107: 12 int 4 dec
A108: VL_ASF_C | B108: Número | C108: 12 int 4 dec | F108: Vl_53 | H108: Número | I108: 12 int 4 dec
A109: VL_ASF_D | B109: Número | C109: 12 int 4 dec | F109: Vl_54 | H109: Número | I109: 12 int 4 dec
A110: VL_ASF_E | B110: Número | C110: 12 int 4 dec | F110: Vl_55 | H110: Número | I110: 12 int 4 dec
A111: VL_RSF_A | B111: Número | C111: 12 int 4 dec | F111: Vl_56 | H111: Número | I111: 12 int 4 dec
A112: VL_RSF_B | B112: Número | C112: 12 int 4 dec | F112: Vl_56b | H112: Número | I112: 12 int 4 dec
A113: VL_RSF_C | B113: Número | C113: 12 int 4 dec | F113: Vl_56c | H113: Número | I113: 12 int 4 dec
A114: VL_RSF_D | B114: Número | C114: 12 int 4 dec | F114: Vl_57 | H114: Número | I114: 12 int 4 dec
A115: VL_RSF_E | B115: Número | C115: 12 int 4 dec | F115: Vl_58 | H115: Número | I115: 12 int 4 dec
A116: VL_NSFR_A | B116: Número | C116: 12 int 4 dec | F116: Vl_59 | H116: Número | I116: 12 int 4 dec
A117: VL_NSFR_B | B117: Número | C117: 12 int 4 dec | F117: Vl_60 | H117: Número | I117: 12 int 4 dec
A118: VL_NSFR_C | B118: Número | C118: 12 int 4 dec | F118: Vl_61 | H118: Número | I118: 12 int 4 dec
A119: VL_NSFR_D | B119: Número | C119: 12 int 4 dec | F119: Vl_62 | H119: Número | I119: 12 int 4 dec
A120: VL_NSFR_E | B120: Número | C120: 12 int 4 dec | F120: Vl_63 | H120: Número | I120: 12 int 4 dec
A121: DS_COMENTÁRIO | B121: texto | C121: 4000 | F121: Vl_64 | H121: Número | I121: 12 int 4 dec
F122: Vl_65 | H122: Número | I122: 12 int 4 dec
A123: Tabela OV1 | F123: Vl_66 | H123: Número | I123: 12 int 4 dec
A124: CAMPO | B124: TIPO | C124: TAMANHO | D124: Inf | F124: Vl_67 | H124: Número | I124: 12 int 4 dec
A125: COD_REFERENCIA | B125: Texto | C125: 6 | D125: Chave única | F125: Vl_68 | H125: Número | I125: 12 int 4 dec
A126: COD_TABELA | B126: Texto | C126: 8 | F126: Vl_72 | H126: Número | I126: 12 int 4 dec
A127: DT_REFERENCIA_ARQ | B127: Data | C127: dd/mm/aaaa | F127: Vl_73 | H127: Número | I127: 12 int 4 dec
A128: VL_RISCO_CRED_RWA | B128: Número | C128: 12 int 4 dec | F128: Vl_75 | H128: Número | I128: 12 int 4 dec
A129: VL_RISCO_CRED_RWA_ANTERIOR | B129: Número | C129: 12 int 4 dec | F129: Vl_82 | H129: Número | I129: 12 int 4 dec
A130: VL_RISCO_CRED_PR | B130: Número | C130: 12 int 4 dec | F130: Vl_83 | H130: Número | I130: 12 int 4 dec
A131: VL_RISCO_CRED_ESTRITO_RWA | B131: Número | C131: 12 int 4 dec | F131: Vl_84 | H131: Número | I131: 12 int 4 dec
A132: VL_RISCO_CRED_ESTRITO_RWA_ANT | B132: Número | C132: 12 int 4 dec | F132: Vl_85 | H132: Número | I132: 12 int 4 dec
A133: VL_RISCO_CRED_ESTRITO_PR | B133: Número | C133: 12 int 4 dec | F133: Ref_Balanco_1 | H133: Texto | I133: 4000
A134: VL_CCR_RWA | B134: Número | C134: 12 int 4 dec | F134: Ref_Balanco_2 | H134: Texto | I134: 4000
A135: VL_CCR_RWA_ANT | B135: Número | C135: 12 int 4 dec | F135: Ref_Balanco_3 | H135: Texto | I135: 4000
A136: VL_CCR_PR | B136: Número | C136: 12 int 4 dec | F136: Ref_Balanco_5 | H136: Texto | I136: 4000
A137: VL_SA_CCR_RWA | B137: Número | C137: 12 int 4 dec | F137: Ref_Balanco_6 | H137: Texto | I137: 4000
A138: VL_SA_CCR_RWA_ANT | B138: Número | C138: 12 int 4 dec | F138: Ref_Balanco_7 | H138: Texto | I138: 4000
A139: VL_SA_CCR_PR | B139: Número | C139: 12 int 4 dec | F139: Ref_Balanco_8 | H139: Texto | I139: 4000
A140: VL_CEM_RWA | B140: Número | C140: 12 int 4 dec | F140: Ref_Balanco_9 | H140: Texto | I140: 4000
A141: VL_CEM_RWA_ANT | B141: Número | C141: 12 int 4 dec | F141: Ref_Balanco_10 | H141: Texto | I141: 4000
A142: VL_CEM_PR | B142: Número | C142: 12 int 4 dec | F142: Ref_Balanco_11 | H142: Texto | I142: 4000
A143: VL_OUTROS_RWA | B143: Número | C143: 12 int 4 dec | F143: Ref_Balanco_15 | H143: Texto | I143: 4000
A144: VL_OUTROS_RWA_ANT | B144: Número | C144: 12 int 4 dec | F144: Ref_Balanco_16 | H144: Texto | I144: 4000
A145: VL_OUTROS_PR | B145: Número | C145: 12 int 4 dec | F145: Ref_Balanco_17 | H145: Texto | I145: 4000
A146: VL_CVA_RWA | B146: Número | C146: 12 int 4 dec | F146: Ref_Balanco_18 | H146: Texto | I146: 4000
A147: VL_CVA_RWA_ANT | B147: Número | C147: 12 int 4 dec | F147: Ref_Balanco_19 | H147: Texto | I147: 4000
A148: VL_CVA_PR | B148: Número | C148: 12 int 4 dec | F148: Ref_Balanco_21 | H148: Texto | I148: 4000
A149: VL_CFNCASID_RWA | B149: Número | C149: 12 int 4 dec | F149: Ref_Balanco_22 | H149: Texto | I149: 4000
A150: VL_CFNCASID_RWA_ANT | B150: Número | C150: 12 int 4 dec | F150: Ref_Balanco_23 | H150: Texto | I150: 4000
A151: VL_CFNCASID_PR | B151: Número | C151: 12 int 4 dec | F151: Ref_Balanco_25 | H151: Texto | I151: 4000
A152: VL_CFNCASIN_RWA | B152: Número | C152: 12 int 4 dec | F152: Ref_Balanco_26 | H152: Texto | I152: 4000
A153: VL_CFNCASIN_RWA_ANT | B153: Número | C153: 12 int 4 dec | F153: Ref_Balanco_26a | H153: Texto | I153: 4000
A154: VL_CFNCASIN_PR | B154: Número | C154: 12 int 4 dec | F154: Ref_Balanco_26b | H154: Texto | I154: 4000
A155: VL_CFNCASNID_RWA | B155: Número | C155: 12 int 4 dec | F155: Ref_Balanco_26d | H155: Texto | I155: 4000
A156: VL_CFNCASNID_RWA_ANT | B156: Número | C156: 12 int 4 dec | F156: Ref_Balanco_26e | H156: Texto | I156: 4000
A157: VL_CFNCASNID_PR | B157: Número | C157: 12 int 4 dec | F157: Ref_Balanco_26f | H157: Texto | I157: 4000
A158: VL_EXP_SEC_AP_RWA | B158: Número | C158: 12 int 4 dec | F158: Ref_Balanco_26g | H158: Texto | I158: 4000
A159: VL_EXP_SEC_AP_RWA_ANT | B159: Número | C159: 12 int 4 dec | F159: Ref_Balanco_26h | H159: Texto | I159: 4000
A160: VL_EXP_SEC_AP_PR | B160: Número | C160: 12 int 4 dec | F160: Ref_Balanco_26i | H160: Texto | I160: 4000
A161: VL_EXP_NDED_PR_RWA | B161: Número | C161: 12 int 4 dec | F161: Ref_Balanco_26j | H161: Texto | I161: 4000
A162: VL_EXP_NDED_PR_RWA_ANT | B162: Número | C162: 12 int 4 dec | F162: Ref_Balanco_27 | H162: Texto | I162: 4000
A163: VL_EXP_NDED_PR_PR | B163: Número | C163: 12 int 4 dec | F163: Ref_Balanco_28 | H163: Texto | I163: 4000
A164: VL_RISCO_MERCADO_RWA | B164: Número | C164: 12 int 4 dec | F164: Ref_Balanco_29 | H164: Texto | I164: 4000
A165: VL_RISCO_MERCADO_RWA_ANT | B165: Número | C165: 12 int 4 dec | F165: Ref_Balanco_30 | H165: Texto | I165: 4000
A166: VL_RISCO_MERCADO_PR | B166: Número | C166: 12 int 4 dec | F166: Ref_Balanco_31 | H166: Texto | I166: 4000
A167: VL_RWAMPAD_RWA | B167: Número | C167: 12 int 4 dec | F167: Ref_Balanco_32 | H167: Texto | I167: 4000
A168: VL_RWAMPAD_RWA_ANT | B168: Número | C168: 12 int 4 dec | F168: Ref_Balanco_33 | H168: Texto | I168: 4000
A169: VL_RWAMPAD_PR | B169: Número | C169: 12 int 4 dec | F169: Ref_Balanco_34 | H169: Texto | I169: 4000
A170: VL_RWAMINT_RWA | B170: Número | C170: 12 int 4 dec | F170: Ref_Balanco_35 | H170: Texto | I170: 4000
A171: VL_RWAMINT_RWA_ANT | B171: Número | C171: 12 int 4 dec | F171: Ref_Balanco_36 | H171: Texto | I171: 4000
A172: VL_RWAMINT_PR | B172: Número | C172: 12 int 4 dec | F172: Ref_Balanco_37 | H172: Texto | I172: 4000
A173: VL_RISCO_OPERACIONAL_RWA | B173: Número | C173: 12 int 4 dec | F173: Ref_Balanco_38 | H173: Texto | I173: 4000
A174: VL_RISCO_OPERACIONAL_RWA_ANT | B174: Número | C174: 12 int 4 dec | F174: Ref_Balanco_39 | H174: Texto | I174: 4000
A175: VL_RISCO_OPERACIONAL_PR | B175: Número | C175: 12 int 4 dec | F175: Ref_Balanco_40 | H175: Texto | I175: 4000
A176: VL_TOTAL_RWA | B176: Número | C176: 12 int 4 dec | F176: Ref_Balanco_41 | H176: Texto | I176: 4000
A177: VL_TOTAL_RWA_ANT | B177: Número | C177: 12 int 4 dec | F177: Ref_Balanco_41b | H177: Texto | I177: 4000
A178: VL_TOTAL_PR | B178: Número | C178: 12 int 4 dec | F178: Ref_Balanco_41c | H178: Texto | I178: 4000
A179: DS_COMENTARIO_TABELA | B179: Texto | C179: 4000 | F179: Ref_Balanco_42 | H179: Texto | I179: 4000
F180: Ref_Balanco_43 | H180: Texto | I180: 4000
A181: Tabela OVA | F181: Ref_Balanco_44 | H181: Texto | I181: 4000
A182: CAMPO | B182: TIPO | C182: TAMANHO | D182: Inf | F182: Ref_Balanco_45 | H182: Texto | I182: 4000
A183: COD_REFERENCIA | B183: Texto | C183: 6 | D183: Chave única | F183: Ref_Balanco_46 | H183: Texto | I183: 4000
A184: COD_TABELA | B184: Texto | C184: 8 | F184: Ref_Balanco_47 | H184: Texto | I184: 4000
A185: DT_REFERENCIA_ARQ | B185: Data | C185: dd/mm/aaaa | F185: Ref_Balanco_48 | H185: Texto | I185: 4000
A186: CAMPO_A | B186: Texto | C186: 4000 | F186: Ref_Balanco_49 | H186: Texto | I186: 4000
A187: CAMPO_B | B187: Texto | C187: 4000 | F187: Ref_Balanco_51 | H187: Texto | I187: 4000
A188: CAMPO_C | B188: Texto | C188: 4000 | F188: Ref_Balanco_52 | H188: Texto | I188: 4000
A189: CAMPO_D | B189: Texto | C189: 4000 | F189: Ref_Balanco_53 | H189: Texto | I189: 4000
A190: CAMPO_E | B190: Texto | C190: 4000 | F190: Ref_Balanco_54 | H190: Texto | I190: 4000
A191: CAMPO_F | B191: Texto | C191: 4000 | F191: Ref_Balanco_55 | H191: Texto | I191: 4000
A192: CAMPO_G | B192: Texto | C192: 4000 | F192: Ref_Balanco_56 | H192: Texto | I192: 4000
A193: CAMPO_H | B193: Texto | C193: 4000 | F193: Ref_Balanco_56b | H193: Texto | I193: 4000
A194: DS_COMENTÁRIO | B194: Texto | C194: 4000 | F194: Ref_Balanco_56c | H194: Texto | I194: 4000
F195: Ref_Balanco_57 | H195: Texto | I195: 4000
F196: Ref_Balanco_58 | H196: Texto | I196: 4000
A197: Tabela MR1 | F197: Ref_Balanco_59 | H197: Texto | I197: 4000
A198: CAMPO | B198: TIPO | C198: TAMANHO | D198: Inf | F198: Ref_Balanco_60 | H198: Texto | I198: 4000
A199: COD_REFERENCIA | B199: Texto | C199: 6 | D199: Chave única | F199: Ref_Balanco_61 | H199: Texto | I199: 4000
A200: COD_TABELA | B200: Texto | C200: 8 | F200: Ref_Balanco_62 | H200: Texto | I200: 4000
... 28 more rows

Sheet KM1
B5: Informações Quantitativas sobre os Requerimentos Prudenciais - (KM1)
D6: a | E6: b | F6: c | G6: d | H6: e
B7: Em R$ milhões | D7: =[1]Arquivos!A14 -> 2025-06-01 | E7: =EDATE(D7,-3) -> 2025-03-01 | F7: =EDATE(E7,-3) -> 2024-12-01 | G7: =EDATE(F7,-3) -> 2024-09-01 | H7: =EDATE(G7,-3) -> 2024-06-01
C8: Capital Regulamentar – valores
B9: 1 | C9: Capital Principal | D9: =(SUMIFS([1]!Tb_DLO[valorConta],[1]!Tb_DLO[dataBase],D$7,[1]!Tb_DLO[codigoConta],111)/10^6) -> 3,561 | E9: =(SUMIFS([1]!Tb_DLO[valorConta],[1]!Tb_DLO[dataBase],E$7,[1]!Tb_DLO[codigoConta],111)/10^6) -> 2,890 | F9: =(SUMIFS([1]!Tb_DLO[valorConta],[1]!Tb_DLO[dataBase],F$7,[1]!Tb_DLO[codigoConta],111)/10^6) -> 2,507 | G9: =(SUMIFS([1]!Tb_DLO[valorConta],[1]!Tb_DLO[dataBase],G$7,[1]!Tb_DLO[codigoConta],111)/10^6) -> 2,459 | H9: =(SUMIFS([1]!Tb_DLO[valorConta],[1]!Tb_DLO[dataBase],H$7,[1]!Tb_DLO[codigoConta],111)/10^6) -> 2,086
B10: 1a | C10: Capital Principal corresponde à linha 1 deduzindo, conforme aplicável, o valor estabelecido pelo: - art. 4º, caput, inciso I, alínea “i”, e §§ 8º e 9º, da Resolução CMN nº 4.955, de 21 de outubro de 2021; ou - art. 3º, caput, inciso I, alínea “i”, §§ 8º e 9º, da Resolução BCB nº 199, de 11 de março de 2022. | D10: =(((SUMIFS([1]!Tb_DLO[valorConta],[1]!Tb_DLO[dataBase],D$7,[1]!Tb_DLO[codigoConta],111)))-((SUMIFS([1]!Tb_DLO[valorConta],[1]!Tb_DLO[dataBase],D$7,[1]!Tb_DLO[codigoConta],"111.10"))))/10^6 -> 3,425 | E10: =(((SUMIFS([1]!Tb_DLO[valorConta],[1]!Tb_DLO[dataBase],E$7,[1]!Tb_DLO[codigoConta],111)))-((SUMIFS([1]!Tb_DLO[valorConta],[1]!Tb_DLO[dataBase],E$7,[1]!Tb_DLO[codigoConta],"111.10"))))/10^6 -> 2,754 | F10: =(((SUMIFS([1]!Tb_DLO[valorConta],[1]!Tb_DLO[dataBase],F$7,[1]!Tb_DLO[codigoConta],111)))-((SUMIFS([1]!Tb_DLO[valorConta],[1]!Tb_DLO[dataBase],F$7,[1]!Tb_DLO[codigoConta],"111.10"))))/10^6 -> 2,507 | G10: =(((SUMIFS([1]!Tb_DLO[valorConta],[1]!Tb_DLO[dataBase],G$7,[1]!Tb_DLO[codigoConta],111)))-((SUMIFS([1]!Tb_DLO[valorConta],[1]!Tb_DLO[dataBase],G$7,[1]!Tb_DLO[codigoConta],"111.10"))))/10^6 -> 2,459 | H10: =(((SUMIFS([1]!Tb_DLO[valorConta],[1]!Tb_DLO[dataBase],H$7,[1]!Tb_DLO[codigoConta],111)))-((SUMIFS([1]!Tb_DLO[valorConta],[1]!Tb_DLO[dataBase],H$7,[1]!Tb_DLO[codigoConta],"111.10"))))/10^6 -> 2,086
B11: 2 | C11: Nível I | D11: =(SUMIFS([1]!Tb_DLO[valorConta],[1]!Tb_DLO[dataBase],D$7,[1]!Tb_DLO[codigoConta],110)/10^6) -> 4,165 | E11: =(SUMIFS([1]!Tb_DLO[valorConta],[1]!Tb_DLO[dataBase],E$7,[1]!Tb_DLO[codigoConta],110)/10^6) -> 3,469 | F11: =(SUMIFS([1]!Tb_DLO[valorConta],[1]!Tb_DLO[dataBase],F$7,[1]!Tb_DLO[codigoConta],110)/10^6) -> 3,013 | G11: =(SUMIFS([1]!Tb_DLO[valorConta],[1]!Tb_DLO[dataBase],G$7,[1]!Tb_DLO[codigoConta],110)/10^6) -> 2,945 | H11: =(SUMIFS([1]!Tb_DLO[valorConta],[1]!Tb_DLO[dataBase],H$7,[1]!Tb_DLO[codigoConta],110)/10^6) -> 2,555
B12: 2a | C12: Nível I considerando a apuração do Capital Principal conforme linha 1a | D12: =(((SUMIFS([1]!Tb_DLO[valorConta],[1]!Tb_DLO[dataBase],D$7,[1]!Tb_DLO[codigoConta],110)))-((SUMIFS([1]!Tb_DLO[valorConta],[1]!Tb_DLO[dataBase],D$7,[1]!Tb_DLO[codigoConta],"111.10"))))/10^6 -> 4,028 | E12: =(((SUMIFS([1]!Tb_DLO[valorConta],[1]!Tb_DLO[dataBase],E$7,[1]!Tb_DLO[codigoConta],110)))-((SUMIFS([1]!Tb_DLO[valorConta],[1]!Tb_DLO[dataBase],E$7,[1]!Tb_DLO[codigoConta],"111.10"))))/10^6 -> 3,333 | F12: =(((SUMIFS([1]!Tb_DLO[valorConta],[1]!Tb_DLO[dataBase],F$7,[1]!Tb_DLO[codigoConta],110)))-((SUMIFS([1]!Tb_DLO[valorConta],[1]!Tb_DLO[dataBase],F$7,[1]!Tb_DLO[codigoConta],"111.10"))))/10^6 -> 3,013 | G12: =(((SUMIFS([1]!Tb_DLO[valorConta],[1]!Tb_DLO[dataBase],G$7,[1]!Tb_DLO[codigoConta],110)))-((SUMIFS([1]!Tb_DLO[valorConta],[1]!Tb_DLO[dataBase],G$7,[1]!Tb_DLO[codigoConta],"111.10"))))/10^6 -> 2,945 | H12: =(((SUMIFS([1]!Tb_DLO[valorConta],[1]!Tb_DLO[dataBase],H$7,[1]!Tb_DLO[codigoConta],110)))-((SUMIFS([1]!Tb_DLO[valorConta],[1]!Tb_DLO[dataBase],H$7,[1]!Tb_DLO[codigoConta],"111.10"))))/10^6 -> 2,555
B13: 3 | C13: Patrimônio de Referência (PR) | D13: =(SUMIFS([1]!Tb_DLO[valorConta],[1]!Tb_DLO[dataBase],D$7,[1]!Tb_DLO[codigoConta],100)/10^6) -> 6,140 | E13: =(SUMIFS([1]!Tb_DLO[valorConta],[1]!Tb_DLO[dataBase],E$7,[1]!Tb_DLO[codigoConta],100)/10^6) -> 5,495 | F13: =(SUMIFS([1]!Tb_DLO[valorConta],[1]!Tb_DLO[dataBase],F$7,[1]!Tb_DLO[codigoConta],100)/10^6) -> 4,553 | G13: =(SUMIFS([1]!Tb_DLO[valorConta],[1]!Tb_DLO[dataBase],G$7,[1]!Tb_DLO[codigoConta],100)/10^6) -> 4,277 | H13: =(SUMIFS([1]!Tb_DLO[valorConta],[1]!Tb_DLO[dataBase],H$7,[1]!Tb_DLO[codigoConta],100)/10^6) -> 3,987
B14: 3a | C14: Patrimônio de Referência (PR) considerando a apuração do Capital Principal conforme linha 1a | D14: =(((SUMIFS([1]!Tb_DLO[valorConta],[1]!Tb_DLO[dataBase],D$7,[1]!Tb_DLO[codigoConta],100)))-((SUMIFS([1]!Tb_DLO[valorConta],[1]!Tb_DLO[dataBase],D$7,[1]!Tb_DLO[codigoConta],"111.10"))))/10^6 -> 6,003 | E14: =(((SUMIFS([1]!Tb_DLO[valorConta],[1]!Tb_DLO[dataBase],E$7,[1]!Tb_DLO[codigoConta],100)))-((SUMIFS([1]!Tb_DLO[valorConta],[1]!Tb_DLO[dataBase],E$7,[1]!Tb_DLO[codigoConta],"111.10"))))/10^6 -> 5,359 | F14: =(((SUMIFS([1]!Tb_DLO[valorConta],[1]!Tb_DLO[dataBase],F$7,[1]!Tb_DLO[codigoConta],100)))-((SUMIFS([1]!Tb_DLO[valorConta],[1]!Tb_DLO[dataBase],F$7,[1]!Tb_DLO[codigoConta],"111.10"))))/10^6 -> 4,553 | G14: =(((SUMIFS([1]!Tb_DLO[valorConta],[1]!Tb_DLO[dataBase],G$7,[1]!Tb_DLO[codigoConta],100)))-((SUMIFS([1]!Tb_DLO[valorConta],[1]!Tb_DLO[dataBase],G$7,[1]!Tb_DLO[codigoConta],"111.10"))))/10^6 -> 4,277 | H14: =(((SUMIFS([1]!Tb_DLO[valorConta],[1]!Tb_DLO[dataBase],H$7,[1]!Tb_DLO[codigoConta],100)))-((SUMIFS([1]!Tb_DLO[valorConta],[1]!Tb_DLO[dataBase],H$7,[1]!Tb_DLO[codigoConta],"111.10"))))/10^6 -> 3,987
B15: 3b | C15: Excesso dos recursos aplicados no ativo permanente | D15: 0 | E15: 0 | F15: 0 | G15: 0 | H15: 0
B16: 3b1 | C16: Excesso dos recursos aplicados no ativo permanente considerando o PR conforme linha 3a | D16: 0 | E16: 0 | F16: 0 | G16: 0 | H16: 0
B17: 3c | C17: Destaque do PR | D17: 0 | E17: 0 | F17: 0 | G17: 0 | H17: 0
C18: Ativos ponderados pelo risco (RWA) – valores
B19: 4 | C19: RWA total | D19: =(SUMIFS([1]!Tb_DLO[valorConta],[1]!Tb_DLO[dataBase],D$7,[1]!Tb_DLO[codigoConta],900)/10^6) -> 44,123 | E19: =(SUMIFS([1]!Tb_DLO[valorConta],[1]!Tb_DLO[dataBase],E$7,[1]!Tb_DLO[codigoConta],900)/10^6) -> 40,739 | F19: =(SUMIFS([1]!Tb_DLO[valorConta],[1]!Tb_DLO[dataBase],F$7,[1]!Tb_DLO[codigoConta],900)/10^6) -> 35,184 | G19: =(SUMIFS([1]!Tb_DLO[valorConta],[1]!Tb_DLO[dataBase],G$7,[1]!Tb_DLO[codigoConta],900)/10^6) -> 31,926 | H19: =(SUMIFS([1]!Tb_DLO[valorConta],[1]!Tb_DLO[dataBase],H$7,[1]!Tb_DLO[codigoConta],900)/10^6) -> 28,904
B20: 4b | C20: RWA corresponde à linha 4 deduzindo, conforme aplicável, o valor referente ao inciso XII do caput do art. 4º ponderado pelo Fator de Ponderação de Risco (FPR) estabelecido no art. 82-A, ambos os comandos da Resolução 229, de 12 de maio de 2022. | D20: =(((SUMIFS([1]!Tb_DLO[valorConta],[1]!Tb_DLO[dataBase],D$7,[1]!Tb_DLO[codigoConta],900)))-((SUMIFS([1]!Tb_DLO[valorConta],[1]!Tb_DLO[dataBase],D$7,[1]!Tb_DLO[codigoConta],"111.10"))))/10^6 -> 43,987 | E20: =(((SUMIFS([1]!Tb_DLO[valorConta],[1]!Tb_DLO[dataBase],E$7,[1]!Tb_DLO[codigoConta],900)))-((SUMIFS([1]!Tb_DLO[valorConta],[1]!Tb_DLO[dataBase],E$7,[1]!Tb_DLO[codigoConta],"111.10"))))/10^6 -> 40,602 | F20: =(((SUMIFS([1]!Tb_DLO[valorConta],[1]!Tb_DLO[dataBase],F$7,[1]!Tb_DLO[codigoConta],900)))-((SUMIFS([1]!Tb_DLO[valorConta],[1]!Tb_DLO[dataBase],F$7,[1]!Tb_DLO[codigoConta],"111.10"))))/10^6 -> 35,184 | G20: =(((SUMIFS([1]!Tb_DLO[valorConta],[1]!Tb_DLO[dataBase],G$7,[1]!Tb_DLO[codigoConta],900)))-((SUMIFS([1]!Tb_DLO[valorConta],[1]!Tb_DLO[dataBase],G$7,[1]!Tb_DLO[codigoConta],"111.10"))))/10^6 -> 31,926 | H20: =(((SUMIFS([1]!Tb_DLO[valorConta],[1]!Tb_DLO[dataBase],H$7,[1]!Tb_DLO[codigoConta],900)))-((SUMIFS([1]!Tb_DLO[valorConta],[1]!Tb_DLO[dataBase],H$7,[1]!Tb_DLO[codigoConta],"111.10"))))/10^6 -> 28,904
C21: Capital regulamentar como proporção do RWA
B22: 5 | C22: Índice de Capital Principal (ICP) | D22: =D9/D19 -> 8.07% | E22: =E9/E19 -> 7.09% | F22: =F9/F19 -> 7.12% | G22: =G9/G19 -> 7.70% | H22: =H9/H19 -> 7.22%
B23: 5a | C23: Índice de Capital Principal (ICP) considerando: - Numerador: corresponde à linha 1a - Denominador: corresponde à linha 4b | D23: =D10/D20 -> 7.79% | E23: =E10/E20 -> 6.78% | F23: =F10/F20 -> 7.12% | G23: =G10/G20 -> 7.70% | H23: =H10/H20 -> 7.22%
B24: 6 | C24: Índice de Nível I (%) | D24: =D11/D19 -> 9.44% | E24: =E11/E19 -> 8.52% | F24: =F11/F19 -> 8.56% | G24: =G11/G19 -> 9.23% | H24: 8.84%
B25: 6a | C25: Índice de Nível 1, considerando: - Numerador: corresponde à linha 2a - Denominador: corresponde à linha 4b | D25: =D12/D20 -> 9.16% | E25: =E12/E20 -> 8.21% | F25: 8.56% | G25: 9.23% | H25: 8.84%
B26: 7 | C26: Índice de Basileia | D26: =D13/D19 -> 13.91% | E26: =E13/E19 -> 13.49% | F26: =F13/F19 -> 12.94% | G26: 13.40% | H26: 13.80%
B27: 7a | C27: Índice de Basileia, considerando: - Numerador: corresponde à linha 3a - Denominador: corresponde à linha 4b | D27: =D14/D20 -> 13.65% | E27: =E14/E20 -> 13.20% | F27: 12.94% | G27: 13.40% | H27: 13.80%
C28: Adicional de Capital Principal (ACP) como proporção do RWA
B29: 8 | C29: Adicional de Conservação de Capital Principal - ACPConservação (%) | D29: =SUMIFS(ACP_Conserv,ACP_DT_REF,D$7) -> 2.50% | E29: =SUMIFS(ACP_Conserv,ACP_DT_REF,E$7) -> 2.50% | F29: =SUMIFS(ACP_Conserv,ACP_DT_REF,F$7) -> 2.50% | G29: =SUMIFS(ACP_Conserv,ACP_DT_REF,G$7) -> 2.50% | H29: =SUMIFS(ACP_Conserv,ACP_DT_REF,H$7) -> 2.50%
B30: 9 | C30: Adicional Contracíclico de Capital Principal - ACPContracíclico (%) | D30: =SUMIFS(ACP_CONTRAC,ACP_DT_REF,D$7) -> 0.00% | E30: =SUMIFS(ACP_CONTRAC,ACP_DT_REF,E$7) -> 0.00% | F30: =SUMIFS(ACP_CONTRAC,ACP_DT_REF,F$7) -> 0.00% | G30: =SUMIFS(ACP_CONTRAC,ACP_DT_REF,G$7) -> 0.00% | H30: =SUMIFS(ACP_CONTRAC,ACP_DT_REF,H$7) -> 0.00%
B31: 10 | C31: Adicional de Importância Sistêmica de Capital Principal - ACPSistêmico (%) | D31: =SUMIFS(ACP_SISTEM,ACP_DT_REF,D$7) -> 0.00% | E31: =SUMIFS(ACP_SISTEM,ACP_DT_REF,E$7) -> 0.00% | F31: =SUMIFS(ACP_SISTEM,ACP_DT_REF,F$7) -> 0.00% | G31: =SUMIFS(ACP_SISTEM,ACP_DT_REF,G$7) -> 0.00% | H31: =SUMIFS(ACP_SISTEM,ACP_DT_REF,H$7) -> 0.00%
B32: 11 | C32: ACP total (%) | D32: =SUM(D29:D31) -> 2.50% | E32: =SUM(E29:E31) -> 2.50% | F32: =SUM(F29:F31) -> 2.50% | G32: =SUM(G29:G31) -> 2.50% | H32: =SUM(H29:H31) -> 2.50%
B33: 12 | C33: Margem excedente de Capital Principal (%) | D33: =D22-D32-SUMIFS(ICP_min,ACP_DT_REF,D$7) -> 1.07% | E33: =E22-E32-SUMIFS(ICP_min,ACP_DT_REF,E$7) -> 0.09% | F33: =F22-F32-SUMIFS(ICP_min,ACP_DT_REF,F$7) -> 0.12% | G33: =G22-G32-SUMIFS(ICP_min,ACP_DT_REF,G$7) -> 0.70% | H33: =H22-H32-SUMIFS(ICP_min,ACP_DT_REF,H$7) -> 0.22%
B34: 12a | C34: Margem excedente de Capital Principal (%) considerando o Capital Principal conforme linha 1a | D34: =D23-D32-SUMIFS(ICP_min,ACP_DT_REF,D$7) -> 0.79% | E34: =E23-E32-SUMIFS(ICP_min,ACP_DT_REF,E$7) -> -0.22% | F34: =F23-F32-SUMIFS(ICP_min,ACP_DT_REF,F$7) -> 0.12% | G34: =G23-G32-SUMIFS(ICP_min,ACP_DT_REF,G$7) -> 0.70% | H34: =H23-H32-SUMIFS(ICP_min,ACP_DT_REF,H$7) -> 0.22%
C35: Razão de Alavancagem (RA)
B36: 13 | C36: Exposição total | D36: =(SUMIFS([1]!Tb_DLO[valorConta],[1]!Tb_DLO[dataBase],D$7,[1]!Tb_DLO[codigoConta],141)/10^6) -> 78,846 | E36: =(SUMIFS([1]!Tb_DLO[valorConta],[1]!Tb_DLO[dataBase],E$7,[1]!Tb_DLO[codigoConta],141)/10^6) -> 74,195 | F36: =(SUMIFS([1]!Tb_DLO[valorConta],[1]!Tb_DLO[dataBase],F$7,[1]!Tb_DLO[codigoConta],141)/10^6) -> 65,433 | G36: =(SUMIFS([1]!Tb_DLO[valorConta],[1]!Tb_DLO[dataBase],G$7,[1]!Tb_DLO[codigoConta],141)/10^6) -> 59,520 | H36: =(SUMIFS([1]!Tb_DLO[valorConta],[1]!Tb_DLO[dataBase],H$7,[1]!Tb_DLO[codigoConta],141)/10^6) -> 56,648
B37: 13a | C37: Exposição total corresponde à linha 13 deduzindo, conforme aplicável, o valor referente ao inciso XII do caput do art. 4º da Resolução 229, de 12 de maio de 2022. | D37: =(((SUMIFS([1]!Tb_DLO[valorConta],[1]!Tb_DLO[dataBase],D$7,[1]!Tb_DLO[codigoConta],141)))-((SUMIFS([1]!Tb_DLO[valorConta],[1]!Tb_DLO[dataBase],D$7,[1]!Tb_DLO[codigoConta],"111.10"))))/10^6 -> 78,710 | E37: =(((SUMIFS([1]!Tb_DLO[valorConta],[1]!Tb_DLO[dataBase],E$7,[1]!Tb_DLO[codigoConta],141)))-((SUMIFS([1]!Tb_DLO[valorConta],[1]!Tb_DLO[dataBase],E$7,[1]!Tb_DLO[codigoConta],"111.10"))))/10^6 -> 74,058 | F37: =(((SUMIFS([1]!Tb_DLO[valorConta],[1]!Tb_DLO[dataBase],F$7,[1]!Tb_DLO[codigoConta],141)))-((SUMIFS([1]!Tb_DLO[valorConta],[1]!Tb_DLO[dataBase],F$7,[1]!Tb_DLO[codigoConta],"111.10"))))/10^6 -> 65,433 | G37: =(((SUMIFS([1]!Tb_DLO[valorConta],[1]!Tb_DLO[dataBase],G$7,[1]!Tb_DLO[codigoConta],141)))-((SUMIFS([1]!Tb_DLO[valorConta],[1]!Tb_DLO[dataBase],G$7,[1]!Tb_DLO[codigoConta],"111.10"))))/10^6 -> 59,520 | H37: =(((SUMIFS([1]!Tb_DLO[valorConta],[1]!Tb_DLO[dataBase],H$7,[1]!Tb_DLO[codigoConta],141)))-((SUMIFS([1]!Tb_DLO[valorConta],[1]!Tb_DLO[dataBase],H$7,[1]!Tb_DLO[codigoConta],"111.10"))))/10^6 -> 56,648
B38: 14 | C38: RA (%) | D38: =(SUMIFS([1]!Tb_DLO[valorConta],[1]!Tb_DLO[dataBase],D$7,[1]!Tb_DLO[codigoConta],108)/10^6)/D36 -> 5.28% | E38: =(SUMIFS([1]!Tb_DLO[valorConta],[1]!Tb_DLO[dataBase],E$7,[1]!Tb_DLO[codigoConta],108)/10^6)/E36 -> 4.68% | F38: =(SUMIFS([1]!Tb_DLO[valorConta],[1]!Tb_DLO[dataBase],F$7,[1]!Tb_DLO[codigoConta],108)/10^6)/F36 -> 4.60% | G38: =(SUMIFS([1]!Tb_DLO[valorConta],[1]!Tb_DLO[dataBase],G$7,[1]!Tb_DLO[codigoConta],108)/10^6)/G36 -> 4.95% | H38: =(SUMIFS([1]!Tb_DLO[valorConta],[1]!Tb_DLO[dataBase],H$7,[1]!Tb_DLO[codigoConta],108)/10^6)/H36 -> 4.51%
B39: 14a | C39: RA considerando: i. Numerador: corresponde à linha 2a ii. Denominador: corresponde à linha 13a | D39: =D12/D37 -> 5.12% | E39: =E12/E37 -> 4.50% | F39: 4.60% | G39: 4.95% | H39: 4.51%
C40: Indicador Liquidez de Curto Prazo (LCR)
B41: 15 | C41: Total de Ativos de Alta Liquidez (HQLA) | D41: NA | E41: NA | F41: NA | G41: NA | H41: NA
B42: 16 | C42: Total de saídas líquidas de caixa | D42: NA | E42: NA | F42: NA | G42: NA | H42: NA
B43: 17 | C43: LCR (%) | D43: NA | E43: NA | F43: NA | G43: NA | H43: NA
C44: Indicador de Liquidez de Longo Prazo (NSFR)
B45: 18 | C45: Recursos estáveis disponíveis (ASF) | D45: NA | E45: NA | F45: NA | G45: NA | H45: NA
B46: 19 | C46: Recursos estáveis requeridos (RSF) | D46: NA | E46: NA | F46: NA | G46: NA | H46: NA
B47: 20 | C47: NSFR (%) | D47: NA | E47: NA | F47: NA | G47: NA | H47: NA
B48: NA: não aplicável para instituições não sujeitas a esse cálculo ou requerimento.

Sheet OV1
C5: Visão geral dos ativos ponderados pelo risco RWA - (OV1)
E6: RWA | G6: Requerimento
G7: mínimo de PR
E8: a | F8: b | G8: c
C9: Em R$ milhões | E9: =[1]Arquivos!A14 -> 2025-06-01 | F9: =EDATE(E9,-3) -> 2025-03-01 | G9: =E9 -> 2025-06-01
C10: 1 | D10: Risco de crédito em sentido estrito | E10: =E11-SUM(E12,E16,E17,E18,E19,E25) -> 41,253 | F10: =F11-SUM(F12,F16,F17,F18,F19,F25) -> 37,829 | G10: =G11-SUM(G12,G16,G17,G18,G19,G25) -> 3,300
C11: 2 | D11: Risco de Crédito - tratamento mediante abordagem padronizada | E11: =SUMIFS([1]!Tb_DLO[valorConta],[1]!Tb_DLO[dataBase],E$9,[1]!Tb_DLO[codigoConta],700)/10^6 -> 41,542 | F11: =SUMIFS([1]!Tb_DLO[valorConta],[1]!Tb_DLO[dataBase],F$9,[1]!Tb_DLO[codigoConta],700)/10^6 -> 38,153 | G11: =IFERROR(E11*SUMIFS(Fator_F,ACP_DT_REF,G$9),0) -> 3,323
C12: 6 | D12: Risco de crédito de contraparte (CCR) | E12: =SUM(E13:E15) -> 3 | F12: =SUM(F13:F15) -> 3 | G12: =IFERROR(E12*SUMIFS(Fator_F,ACP_DT_REF,G$9),0) -> 0
C13: 7 | D13: Do qual: mediante abordagem padronizada para risco de crédito de contraparte (SA-CCR) | E13: 0 | F13: 0 | G13: 0
C14: 7a | D14: Do qual: mediante uso da abordagem CEM | E14: 0 | F14: 0 | G14: 0
C15: 9 | D15: Do qual: mediante demais abordagens | E15: =(SUMIFS([1]!Tb_DLO[valorDetalhe],[1]!Tb_DLO[dataBase],E$9,[1]!Tb_DLO[codigoConta],"520.03",[1]!Tb_DLO[codigoElemento],2)/10^6)+ (SUMIFS([1]!Tb_DLO[valorDetalhe],[1]!Tb_DLO[dataBase],E$9,[1]!Tb_DLO[codigoConta],"520.02",[1]!Tb_DLO[codigoElemento],2)/10^6) -> 3 | F15: =(SUMIFS([1]!Tb_DLO[valorDetalhe],[1]!Tb_DLO[dataBase],F$9,[1]!Tb_DLO[codigoConta],"520.03",[1]!Tb_DLO[codigoElemento],2)/10^6)+ (SUMIFS([1]!Tb_DLO[valorDetalhe],[1]!Tb_DLO[dataBase],F$9,[1]!Tb_DLO[codigoConta],"520.02",[1]!Tb_DLO[codigoElemento],2)/10^6) -> 3 | G15: 0
C16: 12 | D16: Cotas de fundos não consolidados - ativos subjacentes identificados | E16: =(SUMIFS([1]!Tb_DLO[valorDetalhe],[1]!Tb_DLO[codigoElemento],41,[1]!Tb_DLO[valorElemento],102,[1]!Tb_DLO[dataBase],E$9,[1]!Tb_DLO[codigoConta],"530.13")/10^6) -> 0 | F16: =(SUMIFS([1]!Tb_DLO[valorDetalhe],[1]!Tb_DLO[codigoElemento],41,[1]!Tb_DLO[valorElemento],102,[1]!Tb_DLO[dataBase],F$9,[1]!Tb_DLO[codigoConta],"530.13")/10^6) -> 0 | G16: 0
C17: 13 | D17: Cotas de fundos não consolidados - ativos subjacentes inferidos conforme regulamento do fundo | E17: 0 | F17: 0 | G17: 0
C18: 14 | D18: Cotas de fundos não consolidados - ativos subjacentes não identificados | E18: =(SUMIFS([1]!Tb_DLO[valorDetalhe],[1]!Tb_DLO[codigoElemento],41,[1]!Tb_DLO[valorElemento],73001250,[1]!Tb_DLO[dataBase],E$9,[1]!Tb_DLO[codigoConta],"530.50")/10^6) -> 12 | F18: =(SUMIFS([1]!Tb_DLO[valorDetalhe],[1]!Tb_DLO[codigoElemento],41,[1]!Tb_DLO[valorElemento],73001250,[1]!Tb_DLO[dataBase],F$9,[1]!Tb_DLO[codigoConta],"530.50")/10^6) -> 8 | G18: 1
C19: 16 | D19: Exposições de securitização - requerimento calculado mediante abordagem padronizada | E19: 0 | F19: 0 | G19: 0
C20: 20 | D20: Risco de Mercado | E20: =SUM(E21:E22) -> 21 | F20: =SUM(F21:F22) -> 18 | G20: 2
C21: 21 | D21: Do qual: requerimento calculado mediante abordagem padronizada (RWAMPAD) | E21: =(SUMIFS([1]!Tb_DLO[valorConta],[1]!Tb_DLO[dataBase],E$9,[1]!Tb_DLO[codigoConta],770)/10^6) -> 21 | F21: =(SUMIFS([1]!Tb_DLO[valorConta],[1]!Tb_DLO[dataBase],F$9,[1]!Tb_DLO[codigoConta],770)/10^6) -> 18 | G21: 2
C22: 22 | D22: Do qual: requerimento calculado mediante modelo interno (RWAMINT) | E22: =(SUMIFS([1]!Tb_DLO[valorConta],[1]!Tb_DLO[dataBase],E$9,[1]!Tb_DLO[codigoConta],865)/10^6) -> 0 | F22: =(SUMIFS([1]!Tb_DLO[valorConta],[1]!Tb_DLO[dataBase],F$9,[1]!Tb_DLO[codigoConta],865)/10^6) -> 0 | G22: 0
C23: 24 | D23: Risco Operacional | E23: =(SUMIFS([1]!Tb_DLO[valorConta],[1]!Tb_DLO[dataBase],E$9,[1]!Tb_DLO[codigoConta],870)/10^6) -> 2,558 | F23: =(SUMIFS([1]!Tb_DLO[valorConta],[1]!Tb_DLO[dataBase],F$9,[1]!Tb_DLO[codigoConta],870)/10^6) -> 2,558 | G23: 205
C24: I | D24: Risco de Serviços de Pagamento | E24: =(SUMIFS([1]!Tb_DLO[valorConta],[1]!Tb_DLO[dataBase],E$9,[1]!Tb_DLO[codigoConta],750)/10^6) -> 2 | F24: =(SUMIFS([1]!Tb_DLO[valorConta],[1]!Tb_DLO[dataBase],F$9,[1]!Tb_DLO[codigoConta],750)/10^6) -> 9 | G24: 0
C25: 25 | D25: Valores referentes às exposições não deduzidas no cálculo do PR | E25: =(SUMIFS([1]!Tb_DLO[valorConta],[1]!Tb_DLO[dataBase],E$9,[1]!Tb_DLO[codigoConta],"111.94.08.03")/10^6)*2.5 -> 274 | F25: =(SUMIFS([1]!Tb_DLO[valorConta],[1]!Tb_DLO[dataBase],F$9,[1]!Tb_DLO[codigoConta],"111.94.08.03")/10^6)*2.5 -> 313 | G25: =IFERROR(E25*SUMIFS(Fator_F,ACP_DT_REF,G$9),0) -> 22
C26: 29 | D26: Total (1+6+12+13+14+16+20+24+I+25) | E26: =SUM(E23,E20,E11,E24) -> 44,123 | F26: =SUM(F23,F20,F11,F24) -> 40,739 | G26: =SUM(G23,G20,G11,G24) -> 3,530

Sheet MR1
C6: Abordagem padronizada - fatores de risco associados ao risco de mercado - (MR1)
E7: a
C8: em milhões | E8: =[1]Arquivos!A14 -> 2025-06-01
D9: Fatores de Risco | E9: RWAMPAD
C10: 1 | D10: Taxas de juros | E10: 0
C11: 1a | D11: Taxas de juros prefixada denominadas em Real (RWAJUR1) | E11: 0
C12: 1b | D12: Taxas dos cupons de moeda estrangeira (RWAJUR2) | E12: 0
C13: 1c | D13: Taxas dos cupons de índices de preço (RWAJUR3) | E13: 0
C14: 1d | D14: Taxas dos cupons de taxas de juros (RWAJUR4) | E14: 0
C15: 2 | D15: Preços de ações (RWAACS) | E15: =SUMIFS([1]!Tb_DLO[valorConta],[1]!Tb_DLO[dataBase],E$8,[1]!Tb_DLO[codigoConta],860)/10^6 -> 0.0
C16: 3 | D16: Taxas de câmbio (RWACAM) | E16: =SUMIFS([1]!Tb_DLO[valorConta],[1]!Tb_DLO[dataBase],E$8,[1]!Tb_DLO[codigoConta],800)/10^6 -> 20.7
C17: 4 | D17: Preços de mercadorias (commodities) (RWACOM) | E17: =SUMIFS([1]!Tb_DLO[valorConta],[1]!Tb_DLO[dataBase],E$8,[1]!Tb_DLO[codigoConta],850)/10^6 -> 0.0
C18: 9 | D18: Total | E18: =SUM(E10,E15,E16,E17) -> 20.7

Sheet CCA
C4: =[1]Arquivos!A14 -> 2025-06-01
C5: ANEXO - I
C6: Principais características dos instrumentos que Compõem o Patrimônio de Referência - (CCA)
C7: Em R$ milhões
C8: 1 | D8: 2 | E8: 3 | F8: 4 | G8: 5 | H8: 6 | I8: 7 | J8: 8 | K8: 9 | L8: 10 | M8: 11 | N8: 12 | O8: 13 | P8: 14 | Q8: 15 (1) | R8: 15 (2) | S8: 15 (3) | T8: 16 | U8: 17 | V8: 18 | W8: 19 | X8: 20 | Y8: 21 | Z8: 22 | AA8: 23 | AB8: 24 | AC8: 25 | AD8: 26 | AE8: 27 | AF8: 28 | AG8: 29 | AH8: 30 | AI8: 31 | AJ8: 32 | AK8: 33 | AL8: 34a | AM8: 35 | AN8: 36 | AO8: 37
C9: Emissor | D9: Identificador único | E9: Lei aplicável ao instrumento | F9: Classificação do instrumento como componente do PR durante o tratamento temporário de que trata o art. 28 da Resolução nº 4.192, de 2013. | G9: Classificação do instrumento como componente do PR após o tratamento temporário de que trata a linha anterior | H9: Escopo da elegibilidade do instrumento | I9: Tipo de instrumento | J9: Valor reconhecido no PR | K9: Valor de face do instrumento | L9: Classificação contábil | M9: Data original de emissão | N9: Perpétuo ou com vencimento | O9: Data original de vencimento | P9: Opção de resgate ou recompra | Q9: Data de resgate ou de recompra | R9: Datas de resgate ou de recompra condicionadas | S9: Valor de resgate ou de recompra | T9: Datas de resgate ou de recompra subsequentes, se aplicável | U9: Remuneração ou dividendos fixos ou variáveis | V9: Taxa de remuneração e índice referenciado | W9: Possibilidade de suspensão de pagamento de dividendos | X9: Completa discricionariedade, discricionariedade parcial ou mandatória | Y9: Existência de cláusulas que alterem prazos ou condições de remuneração pactuados ou outro incentivo para resgate | Z9: Cumulativo ou não cumulativo | AA9: Conversível ou não conversível | AB9: Se conversível, em quais situações | AC9: Se conversível, totalmente ou parcialmente | AD9: Se conversível, taxa de conversão | AE9: Se conversível, conversão obrigatória ou opcional | AF9: Se conversível, especificar para qual tipo de instrumento | AG9: Se conversível, especificar o emissor do instrumento para o qual pode ser convertido | AH9: Características para a extinção do instrumento | AI9: Se extinguível, em quais situações | AJ9: Se extinguível, totalmente ou parcialmente | AK9: Se extinguível, permanentemente ou temporariamente | AL9: Tipo de subordinação | AM9: Posição na hierarquia de subordinação em caso de liquidação | AN9: Possui características que não serão aceitas após o tratamento temporário de que trata o art. 28 da Resolução nº 4.192, de 2013 | AO9: Se sim, especificar as características de que trata a linha anterior
B10: 1 | C10: BRB - BANCO DE BRASILIA S/A | D10: LFSC20001P5 | E10: Lei 12.249/2010 - Resolução 4.955/2021 do CMN | F10: Capital Complementar | G10: Capital Complementar | H10: Conglomerado | I10: Letra financeira | J10: R$ 3,637,272.66 | K10: R$ 1,930,000.00 | L10: passivo - custo amortizado | M10: 2020-09-16 | N10: Perpétuo | O10: 2050-09-16 | P10: Sim | Q10: Anual, a partir de 17/09/2025 | R10: (1) Não há vinculação regulatória ou fiscal para resgate ou recompra | S10: (2) Em parcela única na data da recompra | T10: Não se aplica | U10: Fixo | V10: IPCA + 7,05% | W10: Não | X10: Mandatório | Y10: Não | Z10: Cumulativo | AA10: Não conversível | AB10: Não se aplica | AC10: Não se aplica | AD10: Não se aplica | AE10: Não se aplica | AF10: Não se aplica | AG10: Não se aplica | AH10: Sim | AI10: Os títulos serão extintos, permanente e em valor no mínimo correspondente ao saldo computado no Nível I do Patrimônio de Referência do BRB – Banco de Brasília S.A nas seguintes condições: 1. seja verificada a divulgação pelo BRB – Banco de Brasília S.A. de que seu Capital Principal está em patamar inferior a 5,125% (cinco inteiros e cento e vinte e cinco milésimos por cento) do montante RWA, estabelecida pela Resolução 4.193, de 2013; ou 2. assinatura de compromisso de aporte para a instituição emitente, caso se configure a exceção prevista no caput do art. 28 da Lei Complementar no 101, de 4 de maio de 2000; ou 3. seja decretado pelo BACEN o regime de administração especial temporária ou intervenção do BRB – Banco de Brasília S.A.; ou 4. seja determinado pelo BACEN, segundo critérios estabelecidos em regulamento específico editado pelo Conselho Monetário Nacional,a extinção do instrumento. | AJ10: Totalmente | AK10: Permanente | AL10: Contratual | AM10: Não | AN10: Não | AO10: Não se aplica
B11: =B10+1 -> 2 | C11: BRB - BANCO DE BRASILIA S/A | D11: LFSC20001UP | E11: Lei 12.249/2010 - Resolução 4.955/2021 do CMN | F11: Capital Complementar | G11: Capital Complementar | H11: Conglomerado | I11: Letra financeira | J11: R$ 4,824,671.25 | K11: R$ 2,563,000.00 | L11: passivo - custo amortizado | M11: 2020-09-21 | N11: Perpétuo | O11: 2050-09-21 | P11: Sim | Q11: Anual, a partir de 22/09/2025 | R11: (1) Não há vinculação regulatória ou fiscal para resgate ou recompra | S11: (2) Em parcela única na data da recompra | T11: Não se aplica | U11: Fixo | V11: IPCA + 7,05% | W11: Não | X11: Mandatório | Y11: Não | Z11: Cumulativo | AA11: Não conversível | AB11: Não se aplica | AC11: Não se aplica | AD11: Não se aplica | AE11: Não se aplica | AF11: Não se aplica | AG11: Não se aplica | AH11: Sim | AI11: Os títulos serão extintos, permanente e em valor no mínimo correspondente ao saldo computado no Nível I do Patrimônio de Referência do BRB – Banco de Brasília S.A nas seguintes condições: 1. seja verificada a divulgação pelo BRB – Banco de Brasília S.A. de que seu Capital Principal está em patamar inferior a 5,125% (cinco inteiros e cento e vinte e cinco milésimos por cento) do montante RWA, estabelecida pela Resolução 4.193, de 2013; ou 2. assinatura de compromisso de aporte para a instituição emitente, caso se configure a exceção prevista no caput do art. 28 da Lei Complementar no 101, de 4 de maio de 2000; ou 3. seja decretado pelo BACEN o regime de administração especial temporária ou intervenção do BRB – Banco de Brasília S.A.; ou 4. seja determinado pelo BACEN, segundo critérios estabelecidos em regulamento específico editado pelo Conselho Monetário Nacional,a extinção do instrumento. | AJ11: Totalmente | AK11: Permanente | AL11: Contratual | AM11: Não | AN11: Não | AO11: Não se aplica
B12: =B11+1 -> 3 | C12: BRB - BANCO DE BRASILIA S/A | D12: LFSC20001UQ | E12: Lei 12.249/2010 - Resolução 4.955/2021 do CMN | F12: Capital Complementar | G12: Capital Complementar | H12: Conglomerado | I12: Letra financeira | J12: R$ 3,776,932.90 | K12: R$ 2,007,000.00 | L12: passivo - custo amortizado | M12: 2020-09-22 | N12: Perpétuo | O12: 2050-09-22 | P12: Sim | Q12: Anual, a partir de 23/09/2025 | R12: (1) Não há vinculação regulatória ou fiscal para resgate ou recompra | S12: (2) Em parcela única na data da recompra | T12: Não se aplica | U12: Fixo | V12: IPCA + 7,05% | W12: Não | X12: Mandatório | Y12: Não | Z12: Cumulativo | AA12: Não conversível | AB12: Não se aplica | AC12: Não se aplica | AD12: Não se aplica | AE12: Não se aplica | AF12: Não se aplica | AG12: Não se aplica | AH12: Sim | AI12: Os títulos serão extintos, permanente e em valor no mínimo correspondente ao saldo computado no Nível I do Patrimônio de Referência do BRB – Banco de Brasília S.A nas seguintes condições: 1. seja verificada a divulgação pelo BRB – Banco de Brasília S.A. de que seu Capital Principal está em patamar inferior a 5,125% (cinco inteiros e cento e vinte e cinco milésimos por cento) do montante RWA, estabelecida pela Resolução 4.193, de 2013; ou 2. assinatura de compromisso de aporte para a instituição emitente, caso se configure a exceção prevista no caput do art. 28 da Lei Complementar no 101, de 4 de maio de 2000; ou 3. seja decretado pelo BACEN o regime de administração especial temporária ou intervenção do BRB – Banco de Brasília S.A.; ou 4. seja determinado pelo BACEN, segundo critérios estabelecidos em regulamento específico editado pelo Conselho Monetário Nacional,a extinção do instrumento. | AJ12: Totalmente | AK12: Permanente | AL12: Contratual | AM12: Não | AN12: Não | AO12: Não se aplica
B13: 4 | C13: BRB - BANCO DE BRASILIA S/A | D13: LFSC20001UR | E13: Lei 12.249/2010 - Resolução 4.955/2021 do CMN | F13: Capital Complementar | G13: Capital Complementar | H13: Conglomerado | I13: Letra financeira | J13: R$ 1,881,879.87 | K13: R$ 1,000,000.00 | L13: passivo - custo amortizado | M13: 2020-09-22 | N13: Perpétuo | O13: 2050-09-22 | P13: Sim | Q13: Anual, a partir de 23/09/2025 | R13: (1) Não há vinculação regulatória ou fiscal para resgate ou recompra | S13: (2) Em parcela única na data da recompra | T13: Não se aplica | U13: Fixo | V13: IPCA + 7,05% | W13: Não | X13: Mandatório | Y13: Não | Z13: Cumulativo | AA13: Não conversível | AB13: Não se aplica | AC13: Não se aplica | AD13: Não se aplica | AE13: Não se aplica | AF13: Não se aplica | AG13: Não se aplica | AH13: Sim | AI13: Os títulos serão extintos, permanente e em valor no mínimo correspondente ao saldo computado no Nível I do Patrimônio de Referência do BRB – Banco de Brasília S.A nas seguintes condições: 1. seja verificada a divulgação pelo BRB – Banco de Brasília S.A. de que seu Capital Principal está em patamar inferior a 5,125% (cinco inteiros e cento e vinte e cinco milésimos por cento) do montante RWA, estabelecida pela Resolução 4.193, de 2013; ou 2. assinatura de compromisso de aporte para a instituição emitente, caso se configure a exceção prevista no caput do art. 28 da Lei Complementar no 101, de 4 de maio de 2000; ou 3. seja decretado pelo BACEN o regime de administração especial temporária ou intervenção do BRB – Banco de Brasília S.A.; ou 4. seja determinado pelo BACEN, segundo critérios estabelecidos em regulamento específico editado pelo Conselho Monetário Nacional,a extinção do instrumento. | AJ13: Totalmente | AK13: Permanente | AL13: Contratual | AM13: Não | AN13: Não | AO13: Não se aplica
B14: 5 | C14: BRB - BANCO DE BRASILIA S/A | D14: LFSC2000209 | E14: Lei 12.249/2010 - Resolução 4.955/2021 do CMN | F14: Capital Complementar | G14: Capital Complementar | H14: Conglomerado | I14: Letra financeira | J14: R$ 4,580,687.14 | K14: R$ 2,445,000.00 | L14: passivo - custo amortizado | M14: 2020-10-08 | N14: Perpétuo | O14: 2050-10-10 | P14: Sim | Q14: Anual, a partir de 09/10/2025 | R14: (1) Não há vinculação regulatória ou fiscal para resgate ou recompra | S14: (2) Em parcela única na data da recompra | T14: Não se aplica | U14: Fixo | V14: IPCA + 7,05% | W14: Não | X14: Mandatório | Y14: Não | Z14: Cumulativo | AA14: Não conversível | AB14: Não se aplica | AC14: Não se aplica | AD14: Não se aplica | AE14: Não se aplica | AF14: Não se aplica | AG14: Não se aplica | AH14: Sim | AI14: Os títulos serão extintos, permanente e em valor no mínimo correspondente ao saldo computado no Nível I do Patrimônio de Referência do BRB – Banco de Brasília S.A nas seguintes condições: 1. seja verificada a divulgação pelo BRB – Banco de Brasília S.A. de que seu Capital Principal está em patamar inferior a 5,125% (cinco inteiros e cento e vinte e cinco milésimos por cento) do montante RWA, estabelecida pela Resolução 4.193, de 2013; ou 2. assinatura de compromisso de aporte para a instituição emitente, caso se configure a exceção prevista no caput do art. 28 da Lei Complementar no 101, de 4 de maio de 2000; ou 3. seja decretado pelo BACEN o regime de administração especial temporária ou intervenção do BRB – Banco de Brasília S.A.; ou 4. seja determinado pelo BACEN, segundo critérios estabelecidos em regulamento específico editado pelo Conselho Monetário Nacional,a extinção do instrumento. | AJ14: Totalmente | AK14: Permanente | AL14: Contratual | AM14: Não | AN14: Não | AO14: Não se aplica
B15: 6 | C15: BRB - BANCO DE BRASILIA S/A | D15: LFSC200020A | E15: Lei 12.249/2010 - Resolução 4.955/2021 do CMN | F15: Capital Complementar | G15: Capital Complementar | H15: Conglomerado | I15: Letra financeira | J15: R$ 3,902,773.58 | K15: R$ 2,086,000.00 | L15: passivo - custo amortizado | M15: 2020-10-14 | N15: Perpétuo | O15: 2050-10-10 | P15: Sim | Q15: Anual, a partir de 15/10/2025 | R15: (1) Não há vinculação regulatória ou fiscal para resgate ou recompra | S15: (2) Em parcela única na data da recompra | T15: Não se aplica | U15: Fixo | V15: IPCA + 7,05% | W15: Não | X15: Mandatório | Y15: Não | Z15: Cumulativo | AA15: Não conversível | AB15: Não se aplica | AC15: Não se aplica | AD15: Não se aplica | AE15: Não se aplica | AF15: Não se aplica | AG15: Não se aplica | AH15: Sim | AI15: Os títulos serão extintos, permanente e em valor no mínimo correspondente ao saldo computado no Nível I do Patrimônio de Referência do BRB – Banco de Brasília S.A nas seguintes condições: 1. seja verificada a divulgação pelo BRB – Banco de Brasília S.A. de que seu Capital Principal está em patamar inferior a 5,125% (cinco inteiros e cento e vinte e cinco milésimos por cento) do montante RWA, estabelecida pela Resolução 4.193, de 2013; ou 2. assinatura de compromisso de aporte para a instituição emitente, caso se configure a exceção prevista no caput do art. 28 da Lei Complementar no 101, de 4 de maio de 2000; ou 3. seja decretado pelo BACEN o regime de administração especial temporária ou intervenção do BRB – Banco de Brasília S.A.; ou 4. seja determinado pelo BACEN, segundo critérios estabelecidos em regulamento específico editado pelo Conselho Monetário Nacional,a extinção do instrumento. | AJ15: Totalmente | AK15: Permanente | AL15: Contratual | AM15: Não | AN15: Não | AO15: Não se aplica
B16: 7 | C16: BRB - BANCO DE BRASILIA S/A | D16: LFSC200020B | E16: Lei 12.249/2010 - Resolução 4.955/2021 do CMN | F16: Capital Complementar | G16: Capital Complementar | H16: Conglomerado | I16: Letra financeira | J16: R$ 2,562,261.45 | K16: R$ 1,372,000.00 | L16: passivo - custo amortizado | M16: 2020-10-19 | N16: Perpétuo | O16: 2050-10-10 | P16: Sim | Q16: Anual, a partir de 20/10/2025 | R16: (1) Não há vinculação regulatória ou fiscal para resgate ou recompra | S16: (2) Em parcela única na data da recompra | T16: Não se aplica | U16: Fixo | V16: IPCA + 7,05% | W16: Não | X16: Mandatório | Y16: Não | Z16: Cumulativo | AA16: Não conversível | AB16: Não se aplica | AC16: Não se aplica | AD16: Não se aplica | AE16: Não se aplica | AF16: Não se aplica | AG16: Não se aplica | AH16: Sim | AI16: Os títulos serão extintos, permanente e em valor no mínimo correspondente ao saldo computado no Nível I do Patrimônio de Referência do BRB – Banco de Brasília S.A nas seguintes condições: 1. seja verificada a divulgação pelo BRB – Banco de Brasília S.A. de que seu Capital Principal está em patamar inferior a 5,125% (cinco inteiros e cento e vinte e cinco milésimos por cento) do montante RWA, estabelecida pela Resolução 4.193, de 2013; ou 2. assinatura de compromisso de aporte para a instituição emitente, caso se configure a exceção prevista no caput do art. 28 da Lei Complementar no 101, de 4 de maio de 2000; ou 3. seja decretado pelo BACEN o regime de administração especial temporária ou intervenção do BRB – Banco de Brasília S.A.; ou 4. seja determinado pelo BACEN, segundo critérios estabelecidos em regulamento específico editado pelo Conselho Monetário Nacional,a extinção do instrumento. | AJ16: Totalmente | AK16: Permanente | AL16: Contratual | AM16: Não | AN16: Não | AO16: Não se aplica
B17: 8 | C17: BRB - BANCO DE BRASILIA S/A | D17: LFSC200020E | E17: Lei 12.249/2010 - Resolução 4.955/2021 do CMN | F17: Capital Complementar | G17: Capital Complementar | H17: Conglomerado | I17: Letra financeira | J17: R$ 3,466,832.12 | K17: R$ 1,862,000.00 | L17: passivo - custo amortizado | M17: 2020-10-26 | N17: Perpétuo | O17: 2050-10-10 | P17: Sim | Q17: Anual, a partir de 27/10/2025 | R17: (1) Não há vinculação regulatória ou fiscal para resgate ou recompra | S17: (2) Em parcela única na data da recompra | T17: Não se aplica | U17: Fixo | V17: IPCA + 7,05% | W17: Não | X17: Mandatório | Y17: Não | Z17: Cumulativo | AA17: Não conversível | AB17: Não se aplica | AC17: Não se aplica | AD17: Não se aplica | AE17: Não se aplica | AF17: Não se aplica | AG17: Não se aplica | AH17: Sim | AI17: Os títulos serão extintos, permanente e em valor no mínimo correspondente ao saldo computado no Nível I do Patrimônio de Referência do BRB – Banco de Brasília S.A nas seguintes condições: 1. seja verificada a divulgação pelo BRB – Banco de Brasília S.A. de que seu Capital Principal está em patamar inferior a 5,125% (cinco inteiros e cento e vinte e cinco milésimos por cento) do montante RWA, estabelecida pela Resolução 4.193, de 2013; ou 2. assinatura de compromisso de aporte para a instituição emitente, caso se configure a exceção prevista no caput do art. 28 da Lei Complementar no 101, de 4 de maio de 2000; ou 3. seja decretado pelo BACEN o regime de administração especial temporária ou intervenção do BRB – Banco de Brasília S.A.; ou 4. seja determinado pelo BACEN, segundo critérios estabelecidos em regulamento específico editado pelo Conselho Monetário Nacional,a extinção do instrumento. | AJ17: Totalmente | AK17: Permanente | AL17: Contratual | AM17: Não | AN17: Não | AO17: Não se aplica
B18: 9 | C18: BRB - BANCO DE BRASILIA S/A | D18: LFSC200025Y | E18: Lei 12.249/2010 - Resolução 4.955/2021 do CMN | F18: Capital Complementar | G18: Capital Complementar | H18: Conglomerado | I18: Letra financeira | J18: R$ 3,429,583.80 | K18: R$ 1,850,000.00 | L18: passivo - custo amortizado | M18: 2020-11-05 | N18: Perpétuo | O18: 2050-11-07 | P18: Sim | Q18: Anual, a partir de 06/11/2025 | R18: (1) Não há vinculação regulatória ou fiscal para resgate ou recompra | S18: (2) Em parcela única na data da recompra | T18: Não se aplica | U18: Fixo | V18: IPCA + 7,05% | W18: Não | X18: Mandatório | Y18: Não | Z18: Cumulativo | AA18: Não conversível | AB18: Não se aplica | AC18: Não se aplica | AD18: Não se aplica | AE18: Não se aplica | AF18: Não se aplica | AG18: Não se aplica | AH18: Sim | AI18: Os títulos serão extintos, permanente e em valor no mínimo correspondente ao saldo computado no Nível I do Patrimônio de Referência do BRB – Banco de Brasília S.A nas seguintes condições: 1. seja verificada a divulgação pelo BRB – Banco de Brasília S.A. de que seu Capital Principal está em patamar inferior a 5,125% (cinco inteiros e cento e vinte e cinco milésimos por cento) do montante RWA, estabelecida pela Resolução 4.193, de 2013; ou 2. assinatura de compromisso de aporte para a instituição emitente, caso se configure a exceção prevista no caput do art. 28 da Lei Complementar no 101, de 4 de maio de 2000; ou 3. seja decretado pelo BACEN o regime de administração especial temporária ou intervenção do BRB – Banco de Brasília S.A.; ou 4. seja determinado pelo BACEN, segundo critérios estabelecidos em regulamento específico editado pelo Conselho Monetário Nacional,a extinção do instrumento. | AJ18: Totalmente | AK18: Permanente | AL18: Contratual | AM18: Não | AN18: Não | AO18: Não se aplica
B19: 10 | C19: BRB - BANCO DE BRASILIA S/A | D19: LFSC200025Z | E19: Lei 12.249/2010 - Resolução 4.955/2021 do CMN | F19: Capital Complementar | G19: Capital Complementar | H19: Conglomerado | I19: Letra financeira | J19: R$ 18,371,446.20 | K19: R$ 9,910,000.00 | L19: passivo - custo amortizado | M19: 2020-11-05 | N19: Perpétuo | O19: 2050-11-07 | P19: Sim | Q19: Anual, a partir de 06/11/2025 | R19: (1) Não há vinculação regulatória ou fiscal para resgate ou recompra | S19: (2) Em parcela única na data da recompra | T19: Não se aplica | U19: Fixo | V19: IPCA + 7,05% | W19: Não | X19: Mandatório | Y19: Não | Z19: Cumulativo | AA19: Não conversível | AB19: Não se aplica | AC19: Não se aplica | AD19: Não se aplica | AE19: Não se aplica | AF19: Não se aplica | AG19: Não se aplica | AH19: Sim | AI19: Os títulos serão extintos, permanente e em valor no mínimo correspondente ao saldo computado no Nível I do Patrimônio de Referência do BRB – Banco de Brasília S.A nas seguintes condições: 1. seja verificada a divulgação pelo BRB – Banco de Brasília S.A. de que seu Capital Principal está em patamar inferior a 5,125% (cinco inteiros e cento e vinte e cinco milésimos por cento) do montante RWA, estabelecida pela Resolução 4.193, de 2013; ou 2. assinatura de compromisso de aporte para a instituição emitente, caso se configure a exceção prevista no caput do art. 28 da Lei Complementar no 101, de 4 de maio de 2000; ou 3. seja decretado pelo BACEN o regime de administração especial temporária ou intervenção do BRB – Banco de Brasília S.A.; ou 4. seja determinado pelo BACEN, segundo critérios estabelecidos em regulamento específico editado pelo Conselho Monetário Nacional,a extinção do instrumento. | AJ19: Totalmente | AK19: Permanente | AL19: Contratual | AM19: Não | AN19: Não | AO19: Não se aplica
B20: 11 | C20: BRB - BANCO DE BRASILIA S/A | D20: LFSC20002C8 | E20: Lei 12.249/2010 - Resolução 4.955/2021 do CMN | F20: Capital Complementar | G20: Capital Complementar | H20: Conglomerado | I20: Letra financeira | J20: R$ 6,802,333.42 | K20: R$ 3,700,000.00 | L20: passivo - custo amortizado | M20: 2020-11-24 | N20: Perpétuo | O20: 2050-10-10 | P20: Sim | Q20: Anual, a partir de 25/11/2025 | R20: (1) Não há vinculação regulatória ou fiscal para resgate ou recompra | S20: (2) Em parcela única na data da recompra | T20: Não se aplica | U20: Fixo | V20: IPCA + 7,05% | W20: Não | X20: Mandatório | Y20: Não | Z20: Cumulativo | AA20: Não conversível | AB20: Não se aplica | AC20: Não se aplica | AD20: Não se aplica | AE20: Não se aplica | AF20: Não se aplica | AG20: Não se aplica | AH20: Sim | AI20: Os títulos serão extintos, permanente e em valor no mínimo correspondente ao saldo computado no Nível I do Patrimônio de Referência do BRB – Banco de Brasília S.A nas seguintes condições: 1. seja verificada a divulgação pelo BRB – Banco de Brasília S.A. de que seu Capital Principal está em patamar inferior a 5,125% (cinco inteiros e cento e vinte e cinco milésimos por cento) do montante RWA, estabelecida pela Resolução 4.193, de 2013; ou 2. assinatura de compromisso de aporte para a instituição emitente, caso se configure a exceção prevista no caput do art. 28 da Lei Complementar no 101, de 4 de maio de 2000; ou 3. seja decretado pelo BACEN o regime de administração especial temporária ou intervenção do BRB – Banco de Brasília S.A.; ou 4. seja determinado pelo BACEN, segundo critérios estabelecidos em regulamento específico editado pelo Conselho Monetário Nacional,a extinção do instrumento. | AJ20: Totalmente | AK20: Permanente | AL20: Contratual | AM20: Não | AN20: Não | AO20: Não se aplica
B21: 12 | C21: BRB - BANCO DE BRASILIA S/A | D21: LFSC20002C9 | E21: Lei 12.249/2010 - Resolução 4.955/2021 do CMN | F21: Capital Complementar | G21: Capital Complementar | H21: Conglomerado | I21: Letra financeira | J21: R$ 2,154,685.07 | K21: R$ 1,172,000.00 | L21: passivo - custo amortizado | M21: 2020-11-24 | N21: Perpétuo | O21: 2050-10-10 | P21: Sim | Q21: Anual, a partir de 25/11/2025 | R21: (1) Não há vinculação regulatória ou fiscal para resgate ou recompra | S21: (2) Em parcela única na data da recompra | T21: Não se aplica | U21: Fixo | V21: IPCA + 7,05% | W21: Não | X21: Mandatório | Y21: Não | Z21: Cumulativo | AA21: Não conversível | AB21: Não se aplica | AC21: Não se aplica | AD21: Não se aplica | AE21: Não se aplica | AF21: Não se aplica | AG21: Não se aplica | AH21: Sim | AI21: Os títulos serão extintos, permanente e em valor no mínimo correspondente ao saldo computado no Nível I do Patrimônio de Referência do BRB – Banco de Brasília S.A nas seguintes condições: 1. seja verificada a divulgação pelo BRB – Banco de Brasília S.A. de que seu Capital Principal está em patamar inferior a 5,125% (cinco inteiros e cento e vinte e cinco milésimos por cento) do montante RWA, estabelecida pela Resolução 4.193, de 2013; ou 2. assinatura de compromisso de aporte para a instituição emitente, caso se configure a exceção prevista no caput do art. 28 da Lei Complementar no 101, de 4 de maio de 2000; ou 3. seja decretado pelo BACEN o regime de administração especial temporária ou intervenção do BRB – Banco de Brasília S.A.; ou 4. seja determinado pelo BACEN, segundo critérios estabelecidos em regulamento específico editado pelo Conselho Monetário Nacional,a extinção do instrumento. | AJ21: Totalmente | AK21: Permanente | AL21: Contratual | AM21: Não | AN21: Não | AO21: Não se aplica
B22: 13 | C22: BRB - BANCO DE BRASILIA S/A | D22: LFSC20002H2 | E22: Lei 12.249/2010 - Resolução 4.955/2021 do CMN | F22: Capital Complementar | G22: Capital Complementar | H22: Conglomerado | I22: Letra financeira | J22: R$ 6,719,726.86 | K22: R$ 3,680,000.00 | L22: passivo - custo amortizado | M22: 2020-12-07 | N22: Perpétuo | O22: 2050-12-07 | P22: Sim | Q22: Anual, a partir de 08/12/2025 | R22: (1) Não há vinculação regulatória ou fiscal para resgate ou recompra | S22: (2) Em parcela única na data da recompra | T22: Não se aplica | U22: Fixo | V22: IPCA + 7,05% | W22: Não | X22: Mandatório | Y22: Não | Z22: Cumulativo | AA22: Não conversível | AB22: Não se aplica | AC22: Não se aplica | AD22: Não se aplica | AE22: Não se aplica | AF22: Não se aplica | AG22: Não se aplica | AH22: Sim | AI22: Os títulos serão extintos, permanente e em valor no mínimo correspondente ao saldo computado no Nível I do Patrimônio de Referência do BRB – Banco de Brasília S.A nas seguintes condições: 1. seja verificada a divulgação pelo BRB – Banco de Brasília S.A. de que seu Capital Principal está em patamar inferior a 5,125% (cinco inteiros e cento e vinte e cinco milésimos por cento) do montante RWA, estabelecida pela Resolução 4.193, de 2013; ou 2. assinatura de compromisso de aporte para a instituição emitente, caso se configure a exceção prevista no caput do art. 28 da Lei Complementar no 101, de 4 de maio de 2000; ou 3. seja decretado pelo BACEN o regime de administração especial temporária ou intervenção do BRB – Banco de Brasília S.A.; ou 4. seja determinado pelo BACEN, segundo critérios estabelecidos em regulamento específico editado pelo Conselho Monetário Nacional,a extinção do instrumento. | AJ22: Totalmente | AK22: Permanente | AL22: Contratual | AM22: Não | AN22: Não | AO22: Não se aplica
B23: 14 | C23: BRB - BANCO DE BRASILIA S/A | D23: LFSC20002MM | E23: Lei 12.249/2010 - Resolução 4.955/2021 do CMN | F23: Capital Complementar | G23: Capital Complementar | H23: Conglomerado | I23: Letra financeira | J23: R$ 2,755,286.68 | K23: R$ 1,510,000.00 | L23: passivo - custo amortizado | M23: 2020-12-09 | N23: Perpétuo | O23: 2050-12-09 | P23: Sim | Q23: Anual, a partir de 10/12/2025 | R23: (1) Não há vinculação regulatória ou fiscal para resgate ou recompra | S23: (2) Em parcela única na data da recompra | T23: Não se aplica | U23: Fixo | V23: IPCA + 7,05% | W23: Não | X23: Mandatório | Y23: Não | Z23: Cumulativo | AA23: Não conversível | AB23: Não se aplica | AC23: Não se aplica | AD23: Não se aplica | AE23: Não se aplica | AF23: Não se aplica | AG23: Não se aplica | AH23: Sim | AI23: Os títulos serão extintos, permanente e em valor no mínimo correspondente ao saldo computado no Nível I do Patrimônio de Referência do BRB – Banco de Brasília S.A nas seguintes condições: 1. seja verificada a divulgação pelo BRB – Banco de Brasília S.A. de que seu Capital Principal está em patamar inferior a 5,125% (cinco inteiros e cento e vinte e cinco milésimos por cento) do montante RWA, estabelecida pela Resolução 4.193, de 2013; ou 2. assinatura de compromisso de aporte para a instituição emitente, caso se configure a exceção prevista no caput do art. 28 da Lei Complementar no 101, de 4 de maio de 2000; ou 3. seja decretado pelo BACEN o regime de administração especial temporária ou intervenção do BRB – Banco de Brasília S.A.; ou 4. seja determinado pelo BACEN, segundo critérios estabelecidos em regulamento específico editado pelo Conselho Monetário Nacional,a extinção do instrumento. | AJ23: Totalmente | AK23: Permanente | AL23: Contratual | AM23: Não | AN23: Não | AO23: Não se aplica
B24: 15 | C24: BRB - BANCO DE BRASILIA S/A | D24: LFSC20002MN | E24: Lei 12.249/2010 - Resolução 4.955/2021 do CMN | F24: Capital Complementar | G24: Capital Complementar | H24: Conglomerado | I24: Letra financeira | J24: R$ 4,835,436.89 | K24: R$ 2,650,000.00 | L24: passivo - custo amortizado | M24: 2020-12-09 | N24: Perpétuo | O24: 2050-12-09 | P24: Sim | Q24: Anual, a partir de 10/12/2025 | R24: (1) Não há vinculação regulatória ou fiscal para resgate ou recompra | S24: (2) Em parcela única na data da recompra | T24: Não se aplica | U24: Fixo | V24: IPCA + 7,05% | W24: Não | X24: Mandatório | Y24: Não | Z24: Cumulativo | AA24: Não conversível | AB24: Não se aplica | AC24: Não se aplica | AD24: Não se aplica | AE24: Não se aplica | AF24: Não se aplica | AG24: Não se aplica | AH24: Sim | AI24: Os títulos serão extintos, permanente e em valor no mínimo correspondente ao saldo computado no Nível I do Patrimônio de Referência do BRB – Banco de Brasília S.A nas seguintes condições: 1. seja verificada a divulgação pelo BRB – Banco de Brasília S.A. de que seu Capital Principal está em patamar inferior a 5,125% (cinco inteiros e cento e vinte e cinco milésimos por cento) do montante RWA, estabelecida pela Resolução 4.193, de 2013; ou 2. assinatura de compromisso de aporte para a instituição emitente, caso se configure a exceção prevista no caput do art. 28 da Lei Complementar no 101, de 4 de maio de 2000; ou 3. seja decretado pelo BACEN o regime de administração especial temporária ou intervenção do BRB – Banco de Brasília S.A.; ou 4. seja determinado pelo BACEN, segundo critérios estabelecidos em regulamento específico editado pelo Conselho Monetário Nacional,a extinção do instrumento. | AJ24: Totalmente | AK24: Permanente | AL24: Contratual | AM24: Não | AN24: Não | AO24: Não se aplica
B25: 16 | C25: BRB - BANCO DE BRASILIA S/A | D25: LFSC20002MO | E25: Lei 12.249/2010 - Resolução 4.955/2021 do CMN | F25: Capital Complementar | G25: Capital Complementar | H25: Conglomerado | I25: Letra financeira | J25: R$ 6,782,225.06 | K25: R$ 3,750,300.00 | L25: passivo - custo amortizado | M25: 2020-12-18 | N25: Perpétuo | O25: 2050-12-19 | P25: Sim | Q25: Anual, a partir de 19/12/2025 | R25: (1) Não há vinculação regulatória ou fiscal para resgate ou recompra | S25: (2) Em parcela única na data da recompra | T25: Não se aplica | U25: Fixo | V25: IPCA + 7,05% | W25: Não | X25: Mandatório | Y25: Não | Z25: Cumulativo | AA25: Não conversível | AB25: Não se aplica | AC25: Não se aplica | AD25: Não se aplica | AE25: Não se aplica | AF25: Não se aplica | AG25: Não se aplica | AH25: Sim | AI25: Os títulos serão extintos, permanente e em valor no mínimo correspondente ao saldo computado no Nível I do Patrimônio de Referência do BRB – Banco de Brasília S.A nas seguintes condições: 1. seja verificada a divulgação pelo BRB – Banco de Brasília S.A. de que seu Capital Principal está em patamar inferior a 5,125% (cinco inteiros e cento e vinte e cinco milésimos por cento) do montante RWA, estabelecida pela Resolução 4.193, de 2013; ou 2. assinatura de compromisso de aporte para a instituição emitente, caso se configure a exceção prevista no caput do art. 28 da Lei Complementar no 101, de 4 de maio de 2000; ou 3. seja decretado pelo BACEN o regime de administração especial temporária ou intervenção do BRB – Banco de Brasília S.A.; ou 4. seja determinado pelo BACEN, segundo critérios estabelecidos em regulamento específico editado pelo Conselho Monetário Nacional,a extinção do instrumento. | AJ25: Totalmente | AK25: Permanente | AL25: Contratual | AM25: Não | AN25: Não | AO25: Não se aplica
B26: 17 | C26: BRB - BANCO DE BRASILIA S/A | D26: LFSC20002MP | E26: Lei 12.249/2010 - Resolução 4.955/2021 do CMN | F26: Capital Complementar | G26: Capital Complementar | H26: Conglomerado | I26: Letra financeira | J26: R$ 4,992,500.87 | K26: R$ 2,762,700.00 | L26: passivo - custo amortizado | M26: 2020-12-21 | N26: Perpétuo | O26: 2050-12-21 | P26: Sim | Q26: Anual, a partir de 22/12/2025 | R26: (1) Não há vinculação regulatória ou fiscal para resgate ou recompra | S26: (2) Em parcela única na data da recompra | T26: Não se aplica | U26: Fixo | V26: IPCA + 7,05% | W26: Não | X26: Mandatório | Y26: Não | Z26: Cumulativo | AA26: Não conversível | AB26: Não se aplica | AC26: Não se aplica | AD26: Não se aplica | AE26: Não se aplica | AF26: Não se aplica | AG26: Não se aplica | AH26: Sim | AI26: Os títulos serão extintos, permanente e em valor no mínimo correspondente ao saldo computado no Nível I do Patrimônio de Referência do BRB – Banco de Brasília S.A nas seguintes condições: 1. seja verificada a divulgação pelo BRB – Banco de Brasília S.A. de que seu Capital Principal está em patamar inferior a 5,125% (cinco inteiros e cento e vinte e cinco milésimos por cento) do montante RWA, estabelecida pela Resolução 4.193, de 2013; ou 2. assinatura de compromisso de aporte para a instituição emitente, caso se configure a exceção prevista no caput do art. 28 da Lei Complementar no 101, de 4 de maio de 2000; ou 3. seja decretado pelo BACEN o regime de administração especial temporária ou intervenção do BRB – Banco de Brasília S.A.; ou 4. seja determinado pelo BACEN, segundo critérios estabelecidos em regulamento específico editado pelo Conselho Monetário Nacional,a extinção do instrumento. | AJ26: Totalmente | AK26: Permanente | AL26: Contratual | AM26: Não | AN26: Não | AO26: Não se aplica
B27: 18 | C27: BRB - BANCO DE BRASILIA S/A | D27: LFSC20002MQ | E27: Lei 12.249/2010 - Resolução 4.955/2021 do CMN | F27: Capital Complementar | G27: Capital Complementar | H27: Conglomerado | I27: Letra financeira | J27: R$ 13,616,568.61 | K27: R$ 7,535,000.00 | L27: passivo - custo amortizado | M27: 2020-12-21 | N27: Perpétuo | O27: 2050-12-21 | P27: Sim | Q27: Anual, a partir de 22/12/2025 | R27: (1) Não há vinculação regulatória ou fiscal para resgate ou recompra | S27: (2) Em parcela única na data da recompra | T27: Não se aplica | U27: Fixo | V27: IPCA + 7,05% | W27: Não | X27: Mandatório | Y27: Não | Z27: Cumulativo | AA27: Não conversível | AB27: Não se aplica | AC27: Não se aplica | AD27: Não se aplica | AE27: Não se aplica | AF27: Não se aplica | AG27: Não se aplica | AH27: Sim | AI27: Os títulos serão extintos, permanente e em valor no mínimo correspondente ao saldo computado no Nível I do Patrimônio de Referência do BRB – Banco de Brasília S.A nas seguintes condições: 1. seja verificada a divulgação pelo BRB – Banco de Brasília S.A. de que seu Capital Principal está em patamar inferior a 5,125% (cinco inteiros e cento e vinte e cinco milésimos por cento) do montante RWA, estabelecida pela Resolução 4.193, de 2013; ou 2. assinatura de compromisso de aporte para a instituição emitente, caso se configure a exceção prevista no caput do art. 28 da Lei Complementar no 101, de 4 de maio de 2000; ou 3. seja decretado pelo BACEN o regime de administração especial temporária ou intervenção do BRB – Banco de Brasília S.A.; ou 4. seja determinado pelo BACEN, segundo critérios estabelecidos em regulamento específico editado pelo Conselho Monetário Nacional,a extinção do instrumento. | AJ27: Totalmente | AK27: Permanente | AL27: Contratual | AM27: Não | AN27: Não | AO27: Não se aplica
B28: 19 | C28: BRB - BANCO DE BRASILIA S/A | D28: LFSC2100001 | E28: Lei 12.249/2010 - Resolução 4.955/2021 do CMN | F28: Capital Complementar | G28: Capital Complementar | H28: Conglomerado | I28: Letra financeira | J28: R$ 1,802,776.73 | K28: R$ 1,000,000.00 | L28: passivo - custo amortizado | M28: 2021-01-04 | N28: Perpétuo | O28: 2031-01-06 | P28: Sim | Q28: Anual, a partir de 05/01/2026 | R28: (1) Não há vinculação regulatória ou fiscal para resgate ou recompra | S28: (2) Em parcela única na data da recompra | T28: Não se aplica | U28: Fixo | V28: IPCA + 7,05% | W28: Não | X28: Mandatório | Y28: Não | Z28: Cumulativo | AA28: Não conversível | AB28: Não se aplica | AC28: Não se aplica | AD28: Não se aplica | AE28: Não se aplica | AF28: Não se aplica | AG28: Não se aplica | AH28: Sim | AI28: Os títulos serão extintos, permanente e em valor no mínimo correspondente ao saldo computado no Nível I do Patrimônio de Referência do BRB – Banco de Brasília S.A nas seguintes condições: 1. seja verificada a divulgação pelo BRB – Banco de Brasília S.A. de que seu Capital Principal está em patamar inferior a 5,125% (cinco inteiros e cento e vinte e cinco milésimos por cento) do montante RWA, estabelecida pela Resolução 4.193, de 2013; ou 2. assinatura de compromisso de aporte para a instituição emitente, caso se configure a exceção prevista no caput do art. 28 da Lei Complementar no 101, de 4 de maio de 2000; ou 3. seja decretado pelo BACEN o regime de administração especial temporária ou intervenção do BRB – Banco de Brasília S.A.; ou 4. seja determinado pelo BACEN, segundo critérios estabelecidos em regulamento específico editado pelo Conselho Monetário Nacional,a extinção do instrumento. | AJ28: Totalmente | AK28: Permanente | AL28: Contratual | AM28: Não | AN28: Não | AO28: Não se aplica
B29: 20 | C29: BRB - BANCO DE BRASILIA S/A | D29: LFSC2100002 | E29: Lei 12.249/2010 - Resolução 4.955/2021 do CMN | F29: Capital Complementar | G29: Capital Complementar | H29: Conglomerado | I29: Letra financeira | J29: R$ 3,511,656.53 | K29: R$ 1,950,000.00 | L29: passivo - custo amortizado | M29: 2021-01-07 | N29: Perpétuo | O29: 2051-01-09 | P29: Sim | Q29: Anual, a partir de 08/01/2026 | R29: (1) Não há vinculação regulatória ou fiscal para resgate ou recompra | S29: (2) Em parcela única na data da recompra | T29: Não se aplica | U29: Fixo | V29: IPCA + 7,05% | W29: Não | X29: Mandatório | Y29: Não | Z29: Cumulativo | AA29: Não conversível | AB29: Não se aplica | AC29: Não se aplica | AD29: Não se aplica | AE29: Não se aplica | AF29: Não se aplica | AG29: Não se aplica | AH29: Sim | AI29: Os títulos serão extintos, permanente e em valor no mínimo correspondente ao saldo computado no Nível I do Patrimônio de Referência do BRB – Banco de Brasília S.A nas seguintes condições: 1. seja verificada a divulgação pelo BRB – Banco de Brasília S.A. de que seu Capital Principal está em patamar inferior a 5,125% (cinco inteiros e cento e vinte e cinco milésimos por cento) do montante RWA, estabelecida pela Resolução 4.193, de 2013; ou 2. assinatura de compromisso de aporte para a instituição emitente, caso se configure a exceção prevista no caput do art. 28 da Lei Complementar no 101, de 4 de maio de 2000; ou 3. seja decretado pelo BACEN o regime de administração especial temporária ou intervenção do BRB – Banco de Brasília S.A.; ou 4. seja determinado pelo BACEN, segundo critérios estabelecidos em regulamento específico editado pelo Conselho Monetário Nacional,a extinção do instrumento. | AJ29: Totalmente | AK29: Permanente | AL29: Contratual | AM29: Não | AN29: Não | AO29: Não se aplica
B30: 21 | C30: BRB - BANCO DE BRASILIA S/A | D30: LFSC21000B5 | E30: Lei 12.249/2010 - Resolução 4.955/2021 do CMN | F30: Capital Complementar | G30: Capital Complementar | H30: Conglomerado | I30: Letra financeira | J30: R$ 2,651,755.38 | K30: R$ 1,500,000.00 | L30: passivo - custo amortizado | M30: 2021-02-02 | N30: Perpétuo | O30: 2050-02-02 | P30: Sim | Q30: Anual, a partir de 03/02/2026 | R30: (1) Não há vinculação regulatória ou fiscal para resgate ou recompra | S30: (2) Em parcela única na data da recompra | T30: Não se aplica | U30: Fixo | V30: IPCA + 7,05% | W30: Não | X30: Mandatório | Y30: Não | Z30: Cumulativo | AA30: Não conversível | AB30: Não se aplica | AC30: Não se aplica | AD30: Não se aplica | AE30: Não se aplica | AF30: Não se aplica | AG30: Não se aplica | AH30: Sim | AI30: Os títulos serão extintos, permanente e em valor no mínimo correspondente ao saldo computado no Nível I do Patrimônio de Referência do BRB – Banco de Brasília S.A nas seguintes condições: 1. seja verificada a divulgação pelo BRB – Banco de Brasília S.A. de que seu Capital Principal está em patamar inferior a 5,125% (cinco inteiros e cento e vinte e cinco milésimos por cento) do montante RWA, estabelecida pela Resolução 4.193, de 2013; ou 2. assinatura de compromisso de aporte para a instituição emitente, caso se configure a exceção prevista no caput do art. 28 da Lei Complementar no 101, de 4 de maio de 2000; ou 3. seja decretado pelo BACEN o regime de administração especial temporária ou intervenção do BRB – Banco de Brasília S.A.; ou 4. seja determinado pelo BACEN, segundo critérios estabelecidos em regulamento específico editado pelo Conselho Monetário Nacional,a extinção do instrumento. | AJ30: Totalmente | AK30: Permanente | AL30: Contratual | AM30: Não | AN30: Não | AO30: Não se aplica
B31: 22 | C31: BRB - BANCO DE BRASILIA S/A | D31: LFSC21000MH | E31: Lei 12.249/2010 - Resolução 4.955/2021 do CMN | F31: Capital Complementar | G31: Capital Complementar | H31: Conglomerado | I31: Letra financeira | J31: R$ 52,873,611.12 | K31: R$ 30,000,000.00 | L31: passivo - custo amortizado | M31: 2021-02-11 | N31: Perpétuo | O31: 2051-02-15 | P31: Sim | Q31: Anual, a partir de 12/02/2026 | R31: (1) Não há vinculação regulatória ou fiscal para resgate ou recompra | S31: (2) Em parcela única na data da recompra | T31: Não se aplica | U31: Fixo | V31: IPCA + 7,05% | W31: Não | X31: Mandatório | Y31: Não | Z31: Cumulativo | AA31: Não conversível | AB31: Não se aplica | AC31: Não se aplica | AD31: Não se aplica | AE31: Não se aplica | AF31: Não se aplica | AG31: Não se aplica | AH31: Sim | AI31: Os títulos serão extintos, permanente e em valor no mínimo correspondente ao saldo computado no Nível I do Patrimônio de Referência do BRB – Banco de Brasília S.A nas seguintes condições: 1. seja verificada a divulgação pelo BRB – Banco de Brasília S.A. de que seu Capital Principal está em patamar inferior a 5,125% (cinco inteiros e cento e vinte e cinco milésimos por cento) do montante RWA, estabelecida pela Resolução 4.193, de 2013; ou 2. assinatura de compromisso de aporte para a instituição emitente, caso se configure a exceção prevista no caput do art. 28 da Lei Complementar no 101, de 4 de maio de 2000; ou 3. seja decretado pelo BACEN o regime de administração especial temporária ou intervenção do BRB – Banco de Brasília S.A.; ou 4. seja determinado pelo BACEN, segundo critérios estabelecidos em regulamento específico editado pelo Conselho Monetário Nacional,a extinção do instrumento. | AJ31: Totalmente | AK31: Permanente | AL31: Contratual | AM31: Não | AN31: Não | AO31: Não se aplica
B32: 23 | C32: BRB - BANCO DE BRASILIA S/A | D32: LFSC21000MI | E32: Lei 12.249/2010 - Resolução 4.955/2021 do CMN | F32: Capital Complementar | G32: Capital Complementar | H32: Conglomerado | I32: Letra financeira | J32: R$ 3,185,991.62 | K32: R$ 1,810,000.00 | L32: passivo - custo amortizado | M32: 2021-02-18 | N32: Perpétuo | O32: 2050-02-18 | P32: Sim | Q32: Anual, a partir de 19/02/2026 | R32: (1) Não há vinculação regulatória ou fiscal para resgate ou recompra | S32: (2) Em parcela única na data da recompra | T32: Não se aplica | U32: Fixo | V32: IPCA + 7,05% | W32: Não | X32: Mandatório | Y32: Não | Z32: Cumulativo | AA32: Não conversível | AB32: Não se aplica | AC32: Não se aplica | AD32: Não se aplica | AE32: Não se aplica | AF32: Não se aplica | AG32: Não se aplica | AH32: Sim | AI32: Os títulos serão extintos, permanente e em valor no mínimo correspondente ao saldo computado no Nível I do Patrimônio de Referência do BRB – Banco de Brasília S.A nas seguintes condições: 1. seja verificada a divulgação pelo BRB – Banco de Brasília S.A. de que seu Capital Principal está em patamar inferior a 5,125% (cinco inteiros e cento e vinte e cinco milésimos por cento) do montante RWA, estabelecida pela Resolução 4.193, de 2013; ou 2. assinatura de compromisso de aporte para a instituição emitente, caso se configure a exceção prevista no caput do art. 28 da Lei Complementar no 101, de 4 de maio de 2000; ou 3. seja decretado pelo BACEN o regime de administração especial temporária ou intervenção do BRB – Banco de Brasília S.A.; ou 4. seja determinado pelo BACEN, segundo critérios estabelecidos em regulamento específico editado pelo Conselho Monetário Nacional,a extinção do instrumento. | AJ32: Totalmente | AK32: Permanente | AL32: Contratual | AM32: Não | AN32: Não | AO32: Não se aplica
B33: 24 | C33: BRB - BANCO DE BRASILIA S/A | D33: LFSC21000RT | E33: Lei 12.249/2010 - Resolução 4.955/2021 do CMN | F33: Capital Complementar | G33: Capital Complementar | H33: Conglomerado | I33: Letra financeira | J33: R$ 1,749,480.48 | K33: R$ 1,000,000.00 | L33: passivo - custo amortizado | M33: 2021-03-12 | N33: Perpétuo | O33: 2051-03-13 | P33: Sim | Q33: Anual, a partir de 13/03/2026 | R33: (1) Não há vinculação regulatória ou fiscal para resgate ou recompra | S33: (2) Em parcela única na data da recompra | T33: Não se aplica | U33: Fixo | V33: IPCA + 7,05% | W33: Não | X33: Mandatório | Y33: Não | Z33: Cumulativo | AA33: Não conversível | AB33: Não se aplica | AC33: Não se aplica | AD33: Não se aplica | AE33: Não se aplica | AF33: Não se aplica | AG33: Não se aplica | AH33: Sim | AI33: Os títulos serão extintos, permanente e em valor no mínimo correspondente ao saldo computado no Nível I do Patrimônio de Referência do BRB – Banco de Brasília S.A nas seguintes condições: 1. seja verificada a divulgação pelo BRB – Banco de Brasília S.A. de que seu Capital Principal está em patamar inferior a 5,125% (cinco inteiros e cento e vinte e cinco milésimos por cento) do montante RWA, estabelecida pela Resolução 4.193, de 2013; ou 2. assinatura de compromisso de aporte para a instituição emitente, caso se configure a exceção prevista no caput do art. 28 da Lei Complementar no 101, de 4 de maio de 2000; ou 3. seja decretado pelo BACEN o regime de administração especial temporária ou intervenção do BRB – Banco de Brasília S.A.; ou 4. seja determinado pelo BACEN, segundo critérios estabelecidos em regulamento específico editado pelo Conselho Monetário Nacional,a extinção do instrumento. | AJ33: Totalmente | AK33: Permanente | AL33: Contratual | AM33: Não | AN33: Não | AO33: Não se aplica
B34: 25 | C34: BRB - BANCO DE BRASILIA S/A | D34: LFSC21001EF | E34: Lei 12.249/2010 - Resolução 4.955/2021 do CMN | F34: Capital Complementar | G34: Capital Complementar | H34: Conglomerado | I34: Letra financeira | J34: R$ 2,553,145.41 | K34: R$ 1,510,000.00 | L34: passivo - custo amortizado | M34: 2021-07-08 | N34: Perpétuo | O34: 2031-07-08 | P34: Sim | Q34: Anual, a partir de 09/07/2026 | R34: (1) Não há vinculação regulatória ou fiscal para resgate ou recompra | S34: (2) Em parcela única na data da recompra | T34: Não se aplica | U34: Fixo | V34: IPCA + 7,5% | W34: Não | X34: Mandatório | Y34: Não | Z34: Cumulativo | AA34: Não conversível | AB34: Não se aplica | AC34: Não se aplica | AD34: Não se aplica | AE34: Não se aplica | AF34: Não se aplica | AG34: Não se aplica | AH34: Sim | AI34: Os títulos serão extintos, permanente e em valor no mínimo correspondente ao saldo computado no Nível I do Patrimônio de Referência do BRB – Banco de Brasília S.A nas seguintes condições: 1. seja verificada a divulgação pelo BRB – Banco de Brasília S.A. de que seu Capital Principal está em patamar inferior a 5,125% (cinco inteiros e cento e vinte e cinco milésimos por cento) do montante RWA, estabelecida pela Resolução 4.193, de 2013; ou 2. assinatura de compromisso de aporte para a instituição emitente, caso se configure a exceção prevista no caput do art. 28 da Lei Complementar no 101, de 4 de maio de 2000; ou 3. seja decretado pelo BACEN o regime de administração especial temporária ou intervenção do BRB – Banco de Brasília S.A.; ou 4. seja determinado pelo BACEN, segundo critérios estabelecidos em regulamento específico editado pelo Conselho Monetário Nacional,a extinção do instrumento. | AJ34: Totalmente | AK34: Permanente | AL34: Contratual | AM34: Não | AN34: Não | AO34: Não se aplica
B35: 26 | C35: BRB - BANCO DE BRASILIA S/A | D35: LFSC21001EG | E35: Lei 12.249/2010 - Resolução 4.955/2021 do CMN | F35: Capital Complementar | G35: Capital Complementar | H35: Conglomerado | I35: Letra financeira | J35: R$ 5,077,546.81 | K35: R$ 3,003,000.00 | L35: passivo - custo amortizado | M35: 2021-07-08 | N35: Perpétuo | O35: 2031-07-08 | P35: Sim | Q35: Anual, a partir de 09/07/2026 | R35: (1) Não há vinculação regulatória ou fiscal para resgate ou recompra | S35: (2) Em parcela única na data da recompra | T35: Não se aplica | U35: Fixo | V35: IPCA + 7,5% | W35: Não | X35: Mandatório | Y35: Não | Z35: Cumulativo | AA35: Não conversível | AB35: Não se aplica | AC35: Não se aplica | AD35: Não se aplica | AE35: Não se aplica | AF35: Não se aplica | AG35: Não se aplica | AH35: Sim | AI35: Os títulos serão extintos, permanente e em valor no mínimo correspondente ao saldo computado no Nível I do Patrimônio de Referência do BRB – Banco de Brasília S.A nas seguintes condições: 1. seja verificada a divulgação pelo BRB – Banco de Brasília S.A. de que seu Capital Principal está em patamar inferior a 5,125% (cinco inteiros e cento e vinte e cinco milésimos por cento) do montante RWA, estabelecida pela Resolução 4.193, de 2013; ou 2. assinatura de compromisso de aporte para a instituição emitente, caso se configure a exceção prevista no caput do art. 28 da Lei Complementar no 101, de 4 de maio de 2000; ou 3. seja decretado pelo BACEN o regime de administração especial temporária ou intervenção do BRB – Banco de Brasília S.A.; ou 4. seja determinado pelo BACEN, segundo critérios estabelecidos em regulamento específico editado pelo Conselho Monetário Nacional,a extinção do instrumento. | AJ35: Totalmente | AK35: Permanente | AL35: Contratual | AM35: Não | AN35: Não | AO35: Não se aplica
B36: 27 | C36: BRB - BANCO DE BRASILIA S/A | D36: LFSC21001KL | E36: Lei 12.249/2010 - Resolução 4.955/2021 do CMN | F36: Capital Complementar | G36: Capital Complementar | H36: Conglomerado | I36: Letra financeira | J36: R$ 1,681,945.03 | K36: R$ 1,000,000.00 | L36: passivo - custo amortizado | M36: 2021-07-16 | N36: Perpétuo | O36: 2031-07-17 | P36: Sim | Q36: Anual, a partir de 17/07/2026 | R36: (1) Não há vinculação regulatória ou fiscal para resgate ou recompra | S36: (2) Em parcela única na data da recompra | T36: Não se aplica | U36: Fixo | V36: IPCA + 7,5% | W36: Não | X36: Mandatório | Y36: Não | Z36: Cumulativo | AA36: Não conversível | AB36: Não se aplica | AC36: Não se aplica | AD36: Não se aplica | AE36: Não se aplica | AF36: Não se aplica | AG36: Não se aplica | AH36: Sim | AI36: Os títulos serão extintos, permanente e em valor no mínimo correspondente ao saldo computado no Nível I do Patrimônio de Referência do BRB – Banco de Brasília S.A nas seguintes condições: 1. seja verificada a divulgação pelo BRB – Banco de Brasília S.A. de que seu Capital Principal está em patamar inferior a 5,125% (cinco inteiros e cento e vinte e cinco milésimos por cento) do montante RWA, estabelecida pela Resolução 4.193, de 2013; ou 2. assinatura de compromisso de aporte para a instituição emitente, caso se configure a exceção prevista no caput do art. 28 da Lei Complementar no 101, de 4 de maio de 2000; ou 3. seja decretado pelo BACEN o regime de administração especial temporária ou intervenção do BRB – Banco de Brasília S.A.; ou 4. seja determinado pelo BACEN, segundo critérios estabelecidos em regulamento específico editado pelo Conselho Monetário Nacional,a extinção do instrumento. | AJ36: Totalmente | AK36: Permanente | AL36: Contratual | AM36: Não | AN36: Não | AO36: Não se aplica
B37: 28 | C37: BRB - BANCO DE BRASILIA S/A | D37: LFSC21001KV | E37: Lei 12.249/2010 - Resolução 4.955/2021 do CMN | F37: Capital Complementar | G37: Capital Complementar | H37: Conglomerado | I37: Letra financeira | J37: R$ 3,436,767.62 | K37: R$ 2,050,000.00 | L37: passivo - custo amortizado | M37: 2021-07-28 | N37: Perpétuo | O37: 2051-07-28 | P37: Sim | Q37: Anual, a partir de 29/07/2026 | R37: (1) Não há vinculação regulatória ou fiscal para resgate ou recompra | S37: (2) Em parcela única na data da recompra | T37: Não se aplica | U37: Fixo | V37: IPCA + 7,5% | W37: Não | X37: Mandatório | Y37: Não | Z37: Cumulativo | AA37: Não conversível | AB37: Não se aplica | AC37: Não se aplica | AD37: Não se aplica | AE37: Não se aplica | AF37: Não se aplica | AG37: Não se aplica | AH37: Sim | AI37: Os títulos serão extintos, permanente e em valor no mínimo correspondente ao saldo computado no Nível I do Patrimônio de Referência do BRB – Banco de Brasília S.A nas seguintes condições: 1. seja verificada a divulgação pelo BRB – Banco de Brasília S.A. de que seu Capital Principal está em patamar inferior a 5,125% (cinco inteiros e cento e vinte e cinco milésimos por cento) do montante RWA, estabelecida pela Resolução 4.193, de 2013; ou 2. assinatura de compromisso de aporte para a instituição emitente, caso se configure a exceção prevista no caput do art. 28 da Lei Complementar no 101, de 4 de maio de 2000; ou 3. seja decretado pelo BACEN o regime de administração especial temporária ou intervenção do BRB – Banco de Brasília S.A.; ou 4. seja determinado pelo BACEN, segundo critérios estabelecidos em regulamento específico editado pelo Conselho Monetário Nacional,a extinção do instrumento. | AJ37: Totalmente | AK37: Permanente | AL37: Contratual | AM37: Não | AN37: Não | AO37: Não se aplica
B38: 29 | C38: BRB - BANCO DE BRASILIA S/A | D38: LFSC21001V3 | E38: Lei 12.249/2010 - Resolução 4.955/2021 do CMN | F38: Capital Complementar | G38: Capital Complementar | H38: Conglomerado | I38: Letra financeira | J38: R$ 62,291,555.57 | K38: R$ 30,803,000.00 | L38: passivo - custo amortizado | M38: 2021-09-02 | N38: Perpétuo | O38: 2050-01-05 | P38: Sim | Q38: Anual, a partir de 03/09/2026 | R38: (1) Não há vinculação regulatória ou fiscal para resgate ou recompra | S38: (2) Em parcela única na data da recompra | T38: Não se aplica | U38: Fixo | V38: 165% CDI | W38: Não | X38: Mandatório | Y38: Não | Z38: Cumulativo | AA38: Não conversível | AB38: Não se aplica | AC38: Não se aplica | AD38: Não se aplica | AE38: Não se aplica | AF38: Não se aplica | AG38: Não se aplica | AH38: Sim | AI38: Os títulos serão extintos, permanente e em valor no mínimo correspondente ao saldo computado no Nível I do Patrimônio de Referência do BRB – Banco de Brasília S.A nas seguintes condições: 1. seja verificada a divulgação pelo BRB – Banco de Brasília S.A. de que seu Capital Principal está em patamar inferior a 5,125% (cinco inteiros e cento e vinte e cinco milésimos por cento) do montante RWA, estabelecida pela Resolução 4.193, de 2013; ou 2. assinatura de compromisso de aporte para a instituição emitente, caso se configure a exceção prevista no caput do art. 28 da Lei Complementar no 101, de 4 de maio de 2000; ou 3. seja decretado pelo BACEN o regime de administração especial temporária ou intervenção do BRB – Banco de Brasília S.A.; ou 4. seja determinado pelo BACEN, segundo critérios estabelecidos em regulamento específico editado pelo Conselho Monetário Nacional,a extinção do instrumento. | AJ38: Totalmente | AK38: Permanente | AL38: Contratual | AM38: Não | AN38: Não | AO38: Não se aplica
B39: 30 | C39: BRB - BANCO DE BRASILIA S/A | D39: LFSC21001V4 | E39: Lei 12.249/2010 - Resolução 4.955/2021 do CMN | F39: Capital Complementar | G39: Capital Complementar | H39: Conglomerado | I39: Letra financeira | J39: R$ 62,291,555.57 | K39: R$ 30,803,000.00 | L39: passivo - custo amortizado | M39: 2021-09-02 | N39: Perpétuo | O39: 2050-01-05 | P39: Sim | Q39: Anual, a partir de 03/09/2026 | R39: (1) Não há vinculação regulatória ou fiscal para resgate ou recompra | S39: (2) Em parcela única na data da recompra | T39: Não se aplica | U39: Fixo | V39: 165% CDI | W39: Não | X39: Mandatório | Y39: Não | Z39: Cumulativo | AA39: Não conversível | AB39: Não se aplica | AC39: Não se aplica | AD39: Não se aplica | AE39: Não se aplica | AF39: Não se aplica | AG39: Não se aplica | AH39: Sim | AI39: Os títulos serão extintos, permanente e em valor no mínimo correspondente ao saldo computado no Nível I do Patrimônio de Referência do BRB – Banco de Brasília S.A nas seguintes condições: 1. seja verificada a divulgação pelo BRB – Banco de Brasília S.A. de que seu Capital Principal está em patamar inferior a 5,125% (cinco inteiros e cento e vinte e cinco milésimos por cento) do montante RWA, estabelecida pela Resolução 4.193, de 2013; ou 2. assinatura de compromisso de aporte para a instituição emitente, caso se configure a exceção prevista no caput do art. 28 da Lei Complementar no 101, de 4 de maio de 2000; ou 3. seja decretado pelo BACEN o regime de administração especial temporária ou intervenção do BRB – Banco de Brasília S.A.; ou 4. seja determinado pelo BACEN, segundo critérios estabelecidos em regulamento específico editado pelo Conselho Monetário Nacional,a extinção do instrumento. | AJ39: Totalmente | AK39: Permanente | AL39: Contratual | AM39: Não | AN39: Não | AO39: Não se aplica
B40: 31 | C40: BRB - BANCO DE BRASILIA S/A | D40: LFSC21001V5 | E40: Lei 12.249/2010 - Resolução 4.955/2021 do CMN | F40: Capital Complementar | G40: Capital Complementar | H40: Conglomerado | I40: Letra financeira | J40: R$ 62,291,555.57 | K40: R$ 30,803,000.00 | L40: passivo - custo amortizado | M40: 2021-09-02 | N40: Perpétuo | O40: 2050-01-05 | P40: Sim | Q40: Anual, a partir de 03/09/2026 | R40: (1) Não há vinculação regulatória ou fiscal para resgate ou recompra | S40: (2) Em parcela única na data da recompra | T40: Não se aplica | U40: Fixo | V40: 165% CDI | W40: Não | X40: Mandatório | Y40: Não | Z40: Cumulativo | AA40: Não conversível | AB40: Não se aplica | AC40: Não se aplica | AD40: Não se aplica | AE40: Não se aplica | AF40: Não se aplica | AG40: Não se aplica | AH40: Sim | AI40: Os títulos serão extintos, permanente e em valor no mínimo correspondente ao saldo computado no Nível I do Patrimônio de Referência do BRB – Banco de Brasília S.A nas seguintes condições: 1. seja verificada a divulgação pelo BRB – Banco de Brasília S.A. de que seu Capital Principal está em patamar inferior a 5,125% (cinco inteiros e cento e vinte e cinco milésimos por cento) do montante RWA, estabelecida pela Resolução 4.193, de 2013; ou 2. assinatura de compromisso de aporte para a instituição emitente, caso se configure a exceção prevista no caput do art. 28 da Lei Complementar no 101, de 4 de maio de 2000; ou 3. seja decretado pelo BACEN o regime de administração especial temporária ou intervenção do BRB – Banco de Brasília S.A.; ou 4. seja determinado pelo BACEN, segundo critérios estabelecidos em regulamento específico editado pelo Conselho Monetário Nacional,a extinção do instrumento. | AJ40: Totalmente | AK40: Permanente | AL40: Contratual | AM40: Não | AN40: Não | AO40: Não se aplica
B41: 32 | C41: BRB - BANCO DE BRASILIA S/A | D41: LFSC21001V6 | E41: Lei 12.249/2010 - Resolução 4.955/2021 do CMN | F41: Capital Complementar | G41: Capital Complementar | H41: Conglomerado | I41: Letra financeira | J41: R$ 62,291,555.57 | K41: R$ 30,803,000.00 | L41: passivo - custo amortizado | M41: 2021-09-02 | N41: Perpétuo | O41: 2050-01-05 | P41: Sim | Q41: Anual, a partir de 03/09/2026 | R41: (1) Não há vinculação regulatória ou fiscal para resgate ou recompra | S41: (2) Em parcela única na data da recompra | T41: Não se aplica | U41: Fixo | V41: 165% CDI | W41: Não | X41: Mandatório | Y41: Não | Z41: Cumulativo | AA41: Não conversível | AB41: Não se aplica | AC41: Não se aplica | AD41: Não se aplica | AE41: Não se aplica | AF41: Não se aplica | AG41: Não se aplica | AH41: Sim | AI41: Os títulos serão extintos, permanente e em valor no mínimo correspondente ao saldo computado no Nível I do Patrimônio de Referência do BRB – Banco de Brasília S.A nas seguintes condições: 1. seja verificada a divulgação pelo BRB – Banco de Brasília S.A. de que seu Capital Principal está em patamar inferior a 5,125% (cinco inteiros e cento e vinte e cinco milésimos por cento) do montante RWA, estabelecida pela Resolução 4.193, de 2013; ou 2. assinatura de compromisso de aporte para a instituição emitente, caso se configure a exceção prevista no caput do art. 28 da Lei Complementar no 101, de 4 de maio de 2000; ou 3. seja decretado pelo BACEN o regime de administração especial temporária ou intervenção do BRB – Banco de Brasília S.A.; ou 4. seja determinado pelo BACEN, segundo critérios estabelecidos em regulamento específico editado pelo Conselho Monetário Nacional,a extinção do instrumento. | AJ41: Totalmente | AK41: Permanente | AL41: Contratual | AM41: Não | AN41: Não | AO41: Não se aplica
B42: 33 | C42: BRB - BANCO DE BRASILIA S/A | D42: LFSC21001V7 | E42: Lei 12.249/2010 - Resolução 4.955/2021 do CMN | F42: Capital Complementar | G42: Capital Complementar | H42: Conglomerado | I42: Letra financeira | J42: R$ 11,053,652.00 | K42: R$ 5,466,000.00 | L42: passivo - custo amortizado | M42: 2021-09-02 | N42: Perpétuo | O42: 2050-01-05 | P42: Sim | Q42: Anual, a partir de 03/09/2026 | R42: (1) Não há vinculação regulatória ou fiscal para resgate ou recompra | S42: (2) Em parcela única na data da recompra | T42: Não se aplica | U42: Fixo | V42: 165% CDI | W42: Não | X42: Mandatório | Y42: Não | Z42: Cumulativo | AA42: Não conversível | AB42: Não se aplica | AC42: Não se aplica | AD42: Não se aplica | AE42: Não se aplica | AF42: Não se aplica | AG42: Não se aplica | AH42: Sim | AI42: Os títulos serão extintos, permanente e em valor no mínimo correspondente ao saldo computado no Nível I do Patrimônio de Referência do BRB – Banco de Brasília S.A nas seguintes condições: 1. seja verificada a divulgação pelo BRB – Banco de Brasília S.A. de que seu Capital Principal está em patamar inferior a 5,125% (cinco inteiros e cento e vinte e cinco milésimos por cento) do montante RWA, estabelecida pela Resolução 4.193, de 2013; ou 2. assinatura de compromisso de aporte para a instituição emitente, caso se configure a exceção prevista no caput do art. 28 da Lei Complementar no 101, de 4 de maio de 2000; ou 3. seja decretado pelo BACEN o regime de administração especial temporária ou intervenção do BRB – Banco de Brasília S.A.; ou 4. seja determinado pelo BACEN, segundo critérios estabelecidos em regulamento específico editado pelo Conselho Monetário Nacional,a extinção do instrumento. | AJ42: Totalmente | AK42: Permanente | AL42: Contratual | AM42: Não | AN42: Não | AO42: Não se aplica
B43: 34 | C43: BRB - BANCO DE BRASILIA S/A | D43: LFSC21001V8 | E43: Lei 12.249/2010 - Resolução 4.955/2021 do CMN | F43: Capital Complementar | G43: Capital Complementar | H43: Conglomerado | I43: Letra financeira | J43: R$ 7,497,929.48 | K43: R$ 3,707,705.16 | L43: passivo - custo amortizado | M43: 2021-09-02 | N43: Perpétuo | O43: 2050-01-05 | P43: Sim | Q43: Anual, a partir de 03/09/2026 | R43: (1) Não há vinculação regulatória ou fiscal para resgate ou recompra | S43: (2) Em parcela única na data da recompra | T43: Não se aplica | U43: Fixo | V43: 165% CDI | W43: Não | X43: Mandatório | Y43: Não | Z43: Cumulativo | AA43: Não conversível | AB43: Não se aplica | AC43: Não se aplica | AD43: Não se aplica | AE43: Não se aplica | AF43: Não se aplica | AG43: Não se aplica | AH43: Sim | AI43: Os títulos serão extintos, permanente e em valor no mínimo correspondente ao saldo computado no Nível I do Patrimônio de Referência do BRB – Banco de Brasília S.A nas seguintes condições: 1. seja verificada a divulgação pelo BRB – Banco de Brasília S.A. de que seu Capital Principal está em patamar inferior a 5,125% (cinco inteiros e cento e vinte e cinco milésimos por cento) do montante RWA, estabelecida pela Resolução 4.193, de 2013; ou 2. assinatura de compromisso de aporte para a instituição emitente, caso se configure a exceção prevista no caput do art. 28 da Lei Complementar no 101, de 4 de maio de 2000; ou 3. seja decretado pelo BACEN o regime de administração especial temporária ou intervenção do BRB – Banco de Brasília S.A.; ou 4. seja determinado pelo BACEN, segundo critérios estabelecidos em regulamento específico editado pelo Conselho Monetário Nacional,a extinção do instrumento. | AJ43: Totalmente | AK43: Permanente | AL43: Contratual | AM43: Não | AN43: Não | AO43: Não se aplica
B44: 35 | C44: BRB - BANCO DE BRASILIA S/A | D44: LFSC2200461 | E44: Lei 12.249/2010 - Resolução 4.955/2021 do CMN | F44: Capital Complementar | G44: Capital Complementar | H44: Conglomerado | I44: Letra financeira | J44: R$ 3,839,709.00 | K44: R$ 2,440,000.00 | L44: passivo - custo amortizado | M44: 2022-12-19 | N44: Perpétuo | O44: 2050-05-05 | P44: Sim | Q44: Anual, a partir de 20/12/2027 | R44: (1) Não há vinculação regulatória ou fiscal para resgate ou recompra | S44: (2) Em parcela única na data da recompra | T44: Não se aplica | U44: Fixo | V44: 155% CDI | W44: Não | X44: Mandatório | Y44: Não | Z44: Cumulativo | AA44: Não conversível | AB44: Não se aplica | AC44: Não se aplica | AD44: Não se aplica | AE44: Não se aplica | AF44: Não se aplica | AG44: Não se aplica | AH44: Sim | AI44: Os títulos serão extintos, permanente e em valor no mínimo correspondente ao saldo computado no Nível I do Patrimônio de Referência do BRB – Banco de Brasília S.A nas seguintes condições: 1. seja verificada a divulgação pelo BRB – Banco de Brasília S.A. de que seu Capital Principal está em patamar inferior a 5,125% (cinco inteiros e cento e vinte e cinco milésimos por cento) do montante RWA, estabelecida pela Resolução 4.193, de 2013; ou 2. assinatura de compromisso de aporte para a instituição emitente, caso se configure a exceção prevista no caput do art. 28 da Lei Complementar no 101, de 4 de maio de 2000; ou 3. seja decretado pelo BACEN o regime de administração especial temporária ou intervenção do BRB – Banco de Brasília S.A.; ou 4. seja determinado pelo BACEN, segundo critérios estabelecidos em regulamento específico editado pelo Conselho Monetário Nacional,a extinção do instrumento. | AJ44: Totalmente | AK44: Permanente | AL44: Contratual | AM44: Não | AN44: Não | AO44: Não se aplica
B45: 36 | C45: BRB - BANCO DE BRASILIA S/A | D45: LFSC2200462 | E45: Lei 12.249/2010 - Resolução 4.955/2021 do CMN | F45: Capital Complementar | G45: Capital Complementar | H45: Conglomerado | I45: Letra financeira | J45: R$ 7,193,159.77 | K45: R$ 4,571,000.00 | L45: passivo - custo amortizado | M45: 2022-12-19 | N45: Perpétuo | O45: 2050-05-05 | P45: Sim | Q45: Anual, a partir de 20/12/2027 | R45: (1) Não há vinculação regulatória ou fiscal para resgate ou recompra | S45: (2) Em parcela única na data da recompra | T45: Não se aplica | U45: Fixo | V45: 155% CDI | W45: Não | X45: Mandatório | Y45: Não | Z45: Cumulativo | AA45: Não conversível | AB45: Não se aplica | AC45: Não se aplica | AD45: Não se aplica | AE45: Não se aplica | AF45: Não se aplica | AG45: Não se aplica | AH45: Sim | AI45: Os títulos serão extintos, permanente e em valor no mínimo correspondente ao saldo computado no Nível I do Patrimônio de Referência do BRB – Banco de Brasília S.A nas seguintes condições: 1. seja verificada a divulgação pelo BRB – Banco de Brasília S.A. de que seu Capital Principal está em patamar inferior a 5,125% (cinco inteiros e cento e vinte e cinco milésimos por cento) do montante RWA, estabelecida pela Resolução 4.193, de 2013; ou 2. assinatura de compromisso de aporte para a instituição emitente, caso se configure a exceção prevista no caput do art. 28 da Lei Complementar no 101, de 4 de maio de 2000; ou 3. seja decretado pelo BACEN o regime de administração especial temporária ou intervenção do BRB – Banco de Brasília S.A.; ou 4. seja determinado pelo BACEN, segundo critérios estabelecidos em regulamento específico editado pelo Conselho Monetário Nacional,a extinção do instrumento. | AJ45: Totalmente | AK45: Permanente | AL45: Contratual | AM45: Não | AN45: Não | AO45: Não se aplica
B46: 37 | C46: BRB - BANCO DE BRASILIA S/A | D46: LFSC2200463 | E46: Lei 12.249/2010 - Resolução 4.955/2021 do CMN | F46: Capital Complementar | G46: Capital Complementar | H46: Conglomerado | I46: Letra financeira | J46: R$ 1,205,416.84 | K46: R$ 766,000.00 | L46: passivo - custo amortizado | M46: 2022-12-19 | N46: Perpétuo | O46: 2050-05-05 | P46: Sim | Q46: Anual, a partir de 20/12/2027 | R46: (1) Não há vinculação regulatória ou fiscal para resgate ou recompra | S46: (2) Em parcela única na data da recompra | T46: Não se aplica | U46: Fixo | V46: 155% CDI | W46: Não | X46: Mandatório | Y46: Não | Z46: Cumulativo | AA46: Não conversível | AB46: Não se aplica | AC46: Não se aplica | AD46: Não se aplica | AE46: Não se aplica | AF46: Não se aplica | AG46: Não se aplica | AH46: Sim | AI46: Os títulos serão extintos, permanente e em valor no mínimo correspondente ao saldo computado no Nível I do Patrimônio de Referência do BRB – Banco de Brasília S.A nas seguintes condições: 1. seja verificada a divulgação pelo BRB – Banco de Brasília S.A. de que seu Capital Principal está em patamar inferior a 5,125% (cinco inteiros e cento e vinte e cinco milésimos por cento) do montante RWA, estabelecida pela Resolução 4.193, de 2013; ou 2. assinatura de compromisso de aporte para a instituição emitente, caso se configure a exceção prevista no caput do art. 28 da Lei Complementar no 101, de 4 de maio de 2000; ou 3. seja decretado pelo BACEN o regime de administração especial temporária ou intervenção do BRB – Banco de Brasília S.A.; ou 4. seja determinado pelo BACEN, segundo critérios estabelecidos em regulamento específico editado pelo Conselho Monetário Nacional,a extinção do instrumento. | AJ46: Totalmente | AK46: Permanente | AL46: Contratual | AM46: Não | AN46: Não | AO46: Não se aplica
B47: 38 | C47: BRB - BANCO DE BRASILIA S/A | D47: LFSC22004BM | E47: Lei 12.249/2010 - Resolução 4.955/2021 do CMN | F47: Capital Complementar | G47: Capital Complementar | H47: Conglomerado | I47: Letra financeira | J47: R$ 4,624,174.92 | K47: R$ 3,000,000.00 | L47: passivo - custo amortizado | M47: 2022-12-29 | N47: Perpétuo | O47: 2050-05-16 | P47: Sim | Q47: Anual, a partir de 30/12/2027 | R47: (1) Não há vinculação regulatória ou fiscal para resgate ou recompra | S47: (2) Em parcela única na data da recompra | T47: Não se aplica | U47: Fixo | V47: 150% CDI | W47: Não | X47: Mandatório | Y47: Não | Z47: Cumulativo | AA47: Não conversível | AB47: Não se aplica | AC47: Não se aplica | AD47: Não se aplica | AE47: Não se aplica | AF47: Não se aplica | AG47: Não se aplica | AH47: Sim | AI47: Os títulos serão extintos, permanente e em valor no mínimo correspondente ao saldo computado no Nível I do Patrimônio de Referência do BRB – Banco de Brasília S.A nas seguintes condições: 1. seja verificada a divulgação pelo BRB – Banco de Brasília S.A. de que seu Capital Principal está em patamar inferior a 5,125% (cinco inteiros e cento e vinte e cinco milésimos por cento) do montante RWA, estabelecida pela Resolução 4.193, de 2013; ou 2. assinatura de compromisso de aporte para a instituição emitente, caso se configure a exceção prevista no caput do art. 28 da Lei Complementar no 101, de 4 de maio de 2000; ou 3. seja decretado pelo BACEN o regime de administração especial temporária ou intervenção do BRB – Banco de Brasília S.A.; ou 4. seja determinado pelo BACEN, segundo critérios estabelecidos em regulamento específico editado pelo Conselho Monetário Nacional,a extinção do instrumento. | AJ47: Totalmente | AK47: Permanente | AL47: Contratual | AM47: Não | AN47: Não | AO47: Não se aplica
B48: 39 | C48: BRB - BANCO DE BRASILIA S/A | D48: LFSC23000GP | E48: Lei 12.249/2010 - Resolução 4.955/2021 do CMN | F48: Capital Complementar | G48: Capital Complementar | H48: Conglomerado | I48: Letra financeira | J48: R$ 61,679,488.34 | K48: R$ 52,999,999.36 | L48: passivo - custo amortizado | M48: 2023-02-06 | N48: Perpétuo | O48: 2050-02-06 | P48: Sim | Q48: Anual, a partir de 07/02/2028 | R48: (1) Não há vinculação regulatória ou fiscal para resgate ou recompra | S48: (2) Em parcela única na data da recompra | T48: Não se aplica | U48: Fixo | V48: IPCA + 9,01% | W48: Não | X48: Mandatório | Y48: Não | Z48: Cumulativo | AA48: Não conversível | AB48: Não se aplica | AC48: Não se aplica | AD48: Não se aplica | AE48: Não se aplica | AF48: Não se aplica | AG48: Não se aplica | AH48: Sim | AI48: Os títulos serão extintos, permanente e em valor no mínimo correspondente ao saldo computado no Nível I do Patrimônio de Referência do BRB – Banco de Brasília S.A nas seguintes condições: 1. seja verificada a divulgação pelo BRB – Banco de Brasília S.A. de que seu Capital Principal está em patamar inferior a 5,125% (cinco inteiros e cento e vinte e cinco milésimos por cento) do montante RWA, estabelecida pela Resolução 4.193, de 2013; ou 2. assinatura de compromisso de aporte para a instituição emitente, caso se configure a exceção prevista no caput do art. 28 da Lei Complementar no 101, de 4 de maio de 2000; ou 3. seja decretado pelo BACEN o regime de administração especial temporária ou intervenção do BRB – Banco de Brasília S.A.; ou 4. seja determinado pelo BACEN, segundo critérios estabelecidos em regulamento específico editado pelo Conselho Monetário Nacional,a extinção do instrumento. | AJ48: Totalmente | AK48: Permanente | AL48: Contratual | AM48: Não | AN48: Não | AO48: Não se aplica
B49: 40 | C49: BRB - BANCO DE BRASILIA S/A | D49: LFSC23000GQ | E49: Lei 12.249/2010 - Resolução 4.955/2021 do CMN | F49: Capital Complementar | G49: Capital Complementar | H49: Conglomerado | I49: Letra financeira | J49: R$ 19,085,728.46 | K49: R$ 16,399,999.80 | L49: passivo - custo amortizado | M49: 2023-02-06 | N49: Perpétuo | O49: 2050-02-06 | P49: Sim | Q49: Anual, a partir de 07/02/2028 | R49: (1) Não há vinculação regulatória ou fiscal para resgate ou recompra | S49: (2) Em parcela única na data da recompra | T49: Não se aplica | U49: Fixo | V49: IPCA + 9,01% | W49: Não | X49: Mandatório | Y49: Não | Z49: Cumulativo | AA49: Não conversível | AB49: Não se aplica | AC49: Não se aplica | AD49: Não se aplica | AE49: Não se aplica | AF49: Não se aplica | AG49: Não se aplica | AH49: Sim | AI49: Os títulos serão extintos, permanente e em valor no mínimo correspondente ao saldo computado no Nível I do Patrimônio de Referência do BRB – Banco de Brasília S.A nas seguintes condições: 1. seja verificada a divulgação pelo BRB – Banco de Brasília S.A. de que seu Capital Principal está em patamar inferior a 5,125% (cinco inteiros e cento e vinte e cinco milésimos por cento) do montante RWA, estabelecida pela Resolução 4.193, de 2013; ou 2. assinatura de compromisso de aporte para a instituição emitente, caso se configure a exceção prevista no caput do art. 28 da Lei Complementar no 101, de 4 de maio de 2000; ou 3. seja decretado pelo BACEN o regime de administração especial temporária ou intervenção do BRB – Banco de Brasília S.A.; ou 4. seja determinado pelo BACEN, segundo critérios estabelecidos em regulamento específico editado pelo Conselho Monetário Nacional,a extinção do instrumento. | AJ49: Totalmente | AK49: Permanente | AL49: Contratual | AM49: Não | AN49: Não | AO49: Não se aplica
B50: 41 | C50: BRB - BANCO DE BRASILIA S/A | D50: LFSC23000M9 | E50: Lei 12.249/2010 - Resolução 4.955/2021 do CMN | F50: Capital Complementar | G50: Capital Complementar | H50: Conglomerado | I50: Letra financeira | J50: R$ 698,258.36 | K50: R$ 600,000.00 | L50: passivo - custo amortizado | M50: 2023-02-06 | N50: Perpétuo | O50: 2050-02-06 | P50: Sim | Q50: Anual, a partir de 07/02/2028 | R50: (1) Não há vinculação regulatória ou fiscal para resgate ou recompra | S50: (2) Em parcela única na data da recompra | T50: Não se aplica | U50: Fixo | V50: IPCA + 9,01% | W50: Não | X50: Mandatório | Y50: Não | Z50: Cumulativo | AA50: Não conversível | AB50: Não se aplica | AC50: Não se aplica | AD50: Não se aplica | AE50: Não se aplica | AF50: Não se aplica | AG50: Não se aplica | AH50: Sim | AI50: Os títulos serão extintos, permanente e em valor no mínimo correspondente ao saldo computado no Nível I do Patrimônio de Referência do BRB – Banco de Brasília S.A nas seguintes condições: 1. seja verificada a divulgação pelo BRB – Banco de Brasília S.A. de que seu Capital Principal está em patamar inferior a 5,125% (cinco inteiros e cento e vinte e cinco milésimos por cento) do montante RWA, estabelecida pela Resolução 4.193, de 2013; ou 2. assinatura de compromisso de aporte para a instituição emitente, caso se configure a exceção prevista no caput do art. 28 da Lei Complementar no 101, de 4 de maio de 2000; ou 3. seja decretado pelo BACEN o regime de administração especial temporária ou intervenção do BRB – Banco de Brasília S.A.; ou 4. seja determinado pelo BACEN, segundo critérios estabelecidos em regulamento específico editado pelo Conselho Monetário Nacional,a extinção do instrumento. | AJ50: Totalmente | AK50: Permanente | AL50: Contratual | AM50: Não | AN50: Não | AO50: Não se aplica
B51: 42 | C51: BRB - BANCO DE BRASILIA S/A | D51: LFSC250026C | E51: Lei 12.249/2010 - Resolução 4.955/2021 do CMN | F51: Capital Complementar | G51: Capital Complementar | H51: Conglomerado | I51: Letra financeira | J51: R$ 15,463,059.22 | K51: R$ 15,000,000.00 | L51: passivo - custo amortizado | M51: 2025-02-20 | N51: Perpétuo | O51: 2050-02-23 | P51: Sim | Q51: Anual, a partir de 21/02/2030 | R51: (1) Não há vinculação regulatória ou fiscal para resgate ou recompra | S51: (2) Em parcela única na data da recompra | T51: Não se aplica | U51: Fixo | V51: IPCA + 8,1% | W51: Não | X51: Mandatório | Y51: Não | Z51: Cumulativo | AA51: Não conversível | AB51: Não se aplica | AC51: Não se aplica | AD51: Não se aplica | AE51: Não se aplica | AF51: Não se aplica | AG51: Não se aplica | AH51: Sim | AI51: Os títulos serão extintos, permanente e em valor no mínimo correspondente ao saldo computado no Nível I do Patrimônio de Referência do BRB – Banco de Brasília S.A nas seguintes condições: 1. seja verificada a divulgação pelo BRB – Banco de Brasília S.A. de que seu Capital Principal está em patamar inferior a 5,125% (cinco inteiros e cento e vinte e cinco milésimos por cento) do montante RWA, estabelecida pela Resolução 4.193, de 2013; ou 2. assinatura de compromisso de aporte para a instituição emitente, caso se configure a exceção prevista no caput do art. 28 da Lei Complementar no 101, de 4 de maio de 2000; ou 3. seja decretado pelo BACEN o regime de administração especial temporária ou intervenção do BRB – Banco de Brasília S.A.; ou 4. seja determinado pelo BACEN, segundo critérios estabelecidos em regulamento específico editado pelo Conselho Monetário Nacional,a extinção do instrumento. | AJ51: Totalmente | AK51: Permanente | AL51: Contratual | AM51: Não | AN51: Não | AO51: Não se aplica
B52: 43 | C52: BRB - BANCO DE BRASILIA S/A | D52: LFSC25002BJ | E52: Lei 12.249/2010 - Resolução 4.955/2021 do CMN | F52: Capital Complementar | G52: Capital Complementar | H52: Conglomerado | I52: Letra financeira | J52: R$ 15,184,135.47 | K52: R$ 15,000,000.00 | L52: passivo - custo amortizado | M52: 2025-02-25 | N52: Perpétuo | O52: 2050-02-20 | P52: Sim | Q52: Anual, a partir de 26/02/2030 | R52: (1) Não há vinculação regulatória ou fiscal para resgate ou recompra | S52: (2) Em parcela única na data da recompra | T52: Não se aplica | U52: Fixo | V52: IPCA + 8,1% | W52: Não | X52: Mandatório | Y52: Não | Z52: Cumulativo | AA52: Não conversível | AB52: Não se aplica | AC52: Não se aplica | AD52: Não se aplica | AE52: Não se aplica | AF52: Não se aplica | AG52: Não se aplica | AH52: Sim | AI52: Os títulos serão extintos, permanente e em valor no mínimo correspondente ao saldo computado no Nível I do Patrimônio de Referência do BRB – Banco de Brasília S.A nas seguintes condições: 1. seja verificada a divulgação pelo BRB – Banco de Brasília S.A. de que seu Capital Principal está em patamar inferior a 5,125% (cinco inteiros e cento e vinte e cinco milésimos por cento) do montante RWA, estabelecida pela Resolução 4.193, de 2013; ou 2. assinatura de compromisso de aporte para a instituição emitente, caso se configure a exceção prevista no caput do art. 28 da Lei Complementar no 101, de 4 de maio de 2000; ou 3. seja decretado pelo BACEN o regime de administração especial temporária ou intervenção do BRB – Banco de Brasília S.A.; ou 4. seja determinado pelo BACEN, segundo critérios estabelecidos em regulamento específico editado pelo Conselho Monetário Nacional,a extinção do instrumento. | AJ52: Totalmente | AK52: Permanente | AL52: Contratual | AM52: Não | AN52: Não | AO52: Não se aplica
B53: 44 | C53: BRB - BANCO DE BRASILIA S/A | D53: LFSC25003PX | E53: Lei 12.249/2010 - Resolução 4.955/2021 do CMN | F53: Capital Complementar | G53: Capital Complementar | H53: Conglomerado | I53: Letra financeira | J53: R$ 29,206,319.19 | K53: R$ 30,000,000.00 | L53: passivo - custo amortizado | M53: 2025-03-20 | N53: Perpétuo | O53: 2035-03-20 | P53: Sim | Q53: Anual, a partir de 21/03/2030 | R53: (1) Não há vinculação regulatória ou fiscal para resgate ou recompra | S53: (2) Em parcela única na data da recompra | T53: Não se aplica | U53: Fixo | V53: IPCA + 8% | W53: Não | X53: Mandatório | Y53: Não | Z53: Cumulativo | AA53: Não conversível | AB53: Não se aplica | AC53: Não se aplica | AD53: Não se aplica | AE53: Não se aplica | AF53: Não se aplica | AG53: Não se aplica | AH53: Sim | AI53: Os títulos serão extintos, permanente e em valor no mínimo correspondente ao saldo computado no Nível I do Patrimônio de Referência do BRB – Banco de Brasília S.A nas seguintes condições: 1. seja verificada a divulgação pelo BRB – Banco de Brasília S.A. de que seu Capital Principal está em patamar inferior a 5,125% (cinco inteiros e cento e vinte e cinco milésimos por cento) do montante RWA, estabelecida pela Resolução 4.193, de 2013; ou 2. assinatura de compromisso de aporte para a instituição emitente, caso se configure a exceção prevista no caput do art. 28 da Lei Complementar no 101, de 4 de maio de 2000; ou 3. seja decretado pelo BACEN o regime de administração especial temporária ou intervenção do BRB – Banco de Brasília S.A.; ou 4. seja determinado pelo BACEN, segundo critérios estabelecidos em regulamento específico editado pelo Conselho Monetário Nacional,a extinção do instrumento. | AJ53: Totalmente | AK53: Permanente | AL53: Contratual | AM53: Não | AN53: Não | AO53: Não se aplica
B54: 45 | C54: BRB - BANCO DE BRASILIA S/A | D54: LFSN1800I5C | E54: Lei 12.249/2010 - Resolução 4.955/2021 do CMN | F54: Nível II | G54: Nível II | H54: Conglomerado | I54: Letra financeira | J54: 0 | K54: R$ 10,000,000.00 | L54: passivo - custo amortizado | M54: 2018-11-29 | N54: Com vencimento | O54: 2025-11-28 | P54: Não | Q54: (1) Não há uma data específica, apenas quando for solicitado ao Bacen | R54: (2) Não há vinculação regulatória ou fiscal para resgate ou recompra | S54: (3) O valor pode ser parcial ou total, conforme autorização do Bacen | T54: Não se aplica | U54: Fixo | V54: 125% CDI | W54: Não | X54: Mandatório | Y54: Não | Z54: Cumulativo | AA54: Não conversível | AB54: Não se aplica | AC54: Não se aplica | AD54: Não se aplica | AE54: Não se aplica | AF54: Não se aplica | AG54: Não se aplica | AH54: Sim | AI54: Os títulos serão extintos, permanente e em valor no mínimo correspondente ao saldo computado no Nível II do Patrimônio de Referência do BRB – Banco de Brasília S.A nas seguintes condições: 1. seja verificada a divulgação pelo BRB – Banco de Brasília S.A. de que seu Capital Principal está em patamar inferior a 4,5% (quatro inteiros e cinco décimos por cento) do montante RWA, estabelecida pela regulamentação vigente; ou 2. seja verificada, em lei específica, a assinatura de compromisso de aporte para o BRB – Banco de Brasília S.A.; 3. seja decretado pelo BACEN o regime de administração especial temporária ou intervenção do BRB – Banco de Brasília S.A.; ou 4. seja determinado pelo BACEN, segundo critérios estabelecidos em regulamento específico editado pelo Conselho Monetário Nacional,a extinção do instrumento. | AJ54: Totalmente | AK54: Permanente | AL54: Contratual | AM54: Não | AN54: Não | AO54: Não se aplica
B55: 46 | C55: BRB - BANCO DE BRASILIA S/A | D55: LFSN19000BA | E55: Lei 12.249/2010 - Resolução 4.955/2021 do CMN | F55: Nível II | G55: Nível II | H55: Conglomerado | I55: Letra financeira | J55: R$ 1,615,327.24 | K55: R$ 4,000,000.00 | L55: passivo - custo amortizado | M55: 2019-02-08 | N55: Com vencimento | O55: 2026-08-17 | P55: Não | Q55: (1) Não há uma data específica, apenas quando for solicitado ao Bacen | R55: (2) Não há vinculação regulatória ou fiscal para resgate ou recompra | S55: (3) O valor pode ser parcial ou total, conforme autorização do Bacen | T55: Não se aplica | U55: Fixo | V55: IPCA + 5,6% | W55: Não | X55: Mandatório | Y55: Não | Z55: Cumulativo | AA55: Não conversível | AB55: Não se aplica | AC55: Não se aplica | AD55: Não se aplica | AE55: Não se aplica | AF55: Não se aplica | AG55: Não se aplica | AH55: Sim | AI55: Os títulos serão extintos, permanente e em valor no mínimo correspondente ao saldo computado no Nível II do Patrimônio de Referência do BRB – Banco de Brasília S.A nas seguintes condições: 1. seja verificada a divulgação pelo BRB – Banco de Brasília S.A. de que seu Capital Principal está em patamar inferior a 4,5% (quatro inteiros e cinco décimos por cento) do montante RWA, estabelecida pela regulamentação vigente; ou 2. seja verificada, em lei específica, a assinatura de compromisso de aporte para o BRB – Banco de Brasília S.A.; 3. seja decretado pelo BACEN o regime de administração especial temporária ou intervenção do BRB – Banco de Brasília S.A.; ou 4. seja determinado pelo BACEN, segundo critérios estabelecidos em regulamento específico editado pelo Conselho Monetário Nacional,a extinção do instrumento. | AJ55: Totalmente | AK55: Permanente | AL55: Contratual | AM55: Não | AN55: Não | AO55: Não se aplica
B56: 47 | C56: BRB - BANCO DE BRASILIA S/A | D56: LFSN1900BZ5 | E56: Lei 12.249/2010 - Resolução 4.955/2021 do CMN | F56: Nível II | G56: Nível II | H56: Conglomerado | I56: Letra financeira | J56: R$ 363,738.36 | K56: R$ 1,000,000.00 | L56: passivo - custo amortizado | M56: 2019-07-23 | N56: Com vencimento | O56: 2026-08-17 | P56: Não | Q56: (1) Não há uma data específica, apenas quando for solicitado ao Bacen | R56: (2) Não há vinculação regulatória ou fiscal para resgate ou recompra | S56: (3) O valor pode ser parcial ou total, conforme autorização do Bacen | T56: Não se aplica | U56: Fixo | V56: 120% CDI | W56: Não | X56: Mandatório | Y56: Não | Z56: Cumulativo | AA56: Não conversível | AB56: Não se aplica | AC56: Não se aplica | AD56: Não se aplica | AE56: Não se aplica | AF56: Não se aplica | AG56: Não se aplica | AH56: Sim | AI56: Os títulos serão extintos, permanente e em valor no mínimo correspondente ao saldo computado no Nível II do Patrimônio de Referência do BRB – Banco de Brasília S.A nas seguintes condições: 1. seja verificada a divulgação pelo BRB – Banco de Brasília S.A. de que seu Capital Principal está em patamar inferior a 4,5% (quatro inteiros e cinco décimos por cento) do montante RWA, estabelecida pela regulamentação vigente; ou 2. seja verificada, em lei específica, a assinatura de compromisso de aporte para o BRB – Banco de Brasília S.A.; 3. seja decretado pelo BACEN o regime de administração especial temporária ou intervenção do BRB – Banco de Brasília S.A.; ou 4. seja determinado pelo BACEN, segundo critérios estabelecidos em regulamento específico editado pelo Conselho Monetário Nacional,a extinção do instrumento. | AJ56: Totalmente | AK56: Permanente | AL56: Contratual | AM56: Não | AN56: Não | AO56: Não se aplica
B57: 48 | C57: BRB - BANCO DE BRASILIA S/A | D57: LFSN1900BZ6 | E57: Lei 12.249/2010 - Resolução 4.955/2021 do CMN | F57: Nível II | G57: Nível II | H57: Conglomerado | I57: Letra financeira | J57: R$ 362,741.42 | K57: R$ 1,000,000.00 | L57: passivo - custo amortizado | M57: 2019-07-23 | N57: Com vencimento | O57: 2026-08-17 | P57: Não | Q57: (1) Não há uma data específica, apenas quando for solicitado ao Bacen | R57: (2) Não há vinculação regulatória ou fiscal para resgate ou recompra | S57: (3) O valor pode ser parcial ou total, conforme autorização do Bacen | T57: Não se aplica | U57: Fixo | V57: IPCA + 4,48% | W57: Não | X57: Mandatório | Y57: Não | Z57: Cumulativo | AA57: Não conversível | AB57: Não se aplica | AC57: Não se aplica | AD57: Não se aplica | AE57: Não se aplica | AF57: Não se aplica | AG57: Não se aplica | AH57: Sim | AI57: Os títulos serão extintos, permanente e em valor no mínimo correspondente ao saldo computado no Nível II do Patrimônio de Referência do BRB – Banco de Brasília S.A nas seguintes condições: 1. seja verificada a divulgação pelo BRB – Banco de Brasília S.A. de que seu Capital Principal está em patamar inferior a 4,5% (quatro inteiros e cinco décimos por cento) do montante RWA, estabelecida pela regulamentação vigente; ou 2. seja verificada, em lei específica, a assinatura de compromisso de aporte para o BRB – Banco de Brasília S.A.; 3. seja decretado pelo BACEN o regime de administração especial temporária ou intervenção do BRB – Banco de Brasília S.A.; ou 4. seja determinado pelo BACEN, segundo critérios estabelecidos em regulamento específico editado pelo Conselho Monetário Nacional,a extinção do instrumento. | AJ57: Totalmente | AK57: Permanente | AL57: Contratual | AM57: Não | AN57: Não | AO57: Não se aplica
B58: 49 | C58: BRB - BANCO DE BRASILIA S/A | D58: LFSN1900BZ7 | E58: Lei 12.249/2010 - Resolução 4.955/2021 do CMN | F58: Nível II | G58: Nível II | H58: Conglomerado | I58: Letra financeira | J58: R$ 363,738.36 | K58: R$ 1,000,000.00 | L58: passivo - custo amortizado | M58: 2019-07-23 | N58: Com vencimento | O58: 2026-08-17 | P58: Não | Q58: (1) Não há uma data específica, apenas quando for solicitado ao Bacen | R58: (2) Não há vinculação regulatória ou fiscal para resgate ou recompra | S58: (3) O valor pode ser parcial ou total, conforme autorização do Bacen | T58: Não se aplica | U58: Fixo | V58: 120% CDI | W58: Não | X58: Mandatório | Y58: Não | Z58: Cumulativo | AA58: Não conversível | AB58: Não se aplica | AC58: Não se aplica | AD58: Não se aplica | AE58: Não se aplica | AF58: Não se aplica | AG58: Não se aplica | AH58: Sim | AI58: Os títulos serão extintos, permanente e em valor no mínimo correspondente ao saldo computado no Nível II do Patrimônio de Referência do BRB – Banco de Brasília S.A nas seguintes condições: 1. seja verificada a divulgação pelo BRB – Banco de Brasília S.A. de que seu Capital Principal está em patamar inferior a 4,5% (quatro inteiros e cinco décimos por cento) do montante RWA, estabelecida pela regulamentação vigente; ou 2. seja verificada, em lei específica, a assinatura de compromisso de aporte para o BRB – Banco de Brasília S.A.; 3. seja decretado pelo BACEN o regime de administração especial temporária ou intervenção do BRB – Banco de Brasília S.A.; ou 4. seja determinado pelo BACEN, segundo critérios estabelecidos em regulamento específico editado pelo Conselho Monetário Nacional,a extinção do instrumento. | AJ58: Totalmente | AK58: Permanente | AL58: Contratual | AM58: Não | AN58: Não | AO58: Não se aplica
B59: 50 | C59: BRB - BANCO DE BRASILIA S/A | D59: LFSN1900FDL | E59: Lei 12.249/2010 - Resolução 4.955/2021 do CMN | F59: Nível II | G59: Nível II | H59: Conglomerado | I59: Letra financeira | J59: R$ 1,684,596.63 | K59: R$ 4,687,827.93 | L59: passivo - custo amortizado | M59: 2019-09-23 | N59: Com vencimento | O59: 2026-09-23 | P59: Não | Q59: (1) Não há uma data específica, apenas quando for solicitado ao Bacen | R59: (2) Não há vinculação regulatória ou fiscal para resgate ou recompra | S59: (3) O valor pode ser parcial ou total, conforme autorização do Bacen | T59: Não se aplica | U59: Fixo | V59: 120% CDI | W59: Não | X59: Mandatório | Y59: Não | Z59: Cumulativo | AA59: Não conversível | AB59: Não se aplica | AC59: Não se aplica | AD59: Não se aplica | AE59: Não se aplica | AF59: Não se aplica | AG59: Não se aplica | AH59: Sim | AI59: Os títulos serão extintos, permanente e em valor no mínimo correspondente ao saldo computado no Nível II do Patrimônio de Referência do BRB – Banco de Brasília S.A nas seguintes condições: 1. seja verificada a divulgação pelo BRB – Banco de Brasília S.A. de que seu Capital Principal está em patamar inferior a 4,5% (quatro inteiros e cinco décimos por cento) do montante RWA, estabelecida pela regulamentação vigente; ou 2. seja verificada, em lei específica, a assinatura de compromisso de aporte para o BRB – Banco de Brasília S.A.; 3. seja decretado pelo BACEN o regime de administração especial temporária ou intervenção do BRB – Banco de Brasília S.A.; ou 4. seja determinado pelo BACEN, segundo critérios estabelecidos em regulamento específico editado pelo Conselho Monetário Nacional,a extinção do instrumento. | AJ59: Totalmente | AK59: Permanente | AL59: Contratual | AM59: Não | AN59: Não | AO59: Não se aplica
B60: 51 | C60: BRB - BANCO DE BRASILIA S/A | D60: LFSN20008SR | E60: Lei 12.249/2010 - Resolução 4.955/2021 do CMN | F60: Nível II | G60: Nível II | H60: Conglomerado | I60: Letra financeira | J60: R$ 28,992,011.55 | K60: R$ 15,000,000.00 | L60: passivo - custo amortizado | M60: 2020-10-15 | N60: Com vencimento | O60: 2030-10-15 | P60: Não | Q60: (1) Não há uma data específica, apenas quando for solicitado ao Bacen | R60: (2) Não há vinculação regulatória ou fiscal para resgate ou recompra | S60: (3) O valor pode ser parcial ou total, conforme autorização do Bacen | T60: Não se aplica | U60: Fixo | V60: IPCA + 7,9% | W60: Não | X60: Mandatório | Y60: Não | Z60: Cumulativo | AA60: Não conversível | AB60: Não se aplica | AC60: Não se aplica | AD60: Não se aplica | AE60: Não se aplica | AF60: Não se aplica | AG60: Não se aplica | AH60: Sim | AI60: Os títulos serão extintos, permanente e em valor no mínimo correspondente ao saldo computado no Nível II do Patrimônio de Referência do BRB – Banco de Brasília S.A nas seguintes condições: 1. seja verificada a divulgação pelo BRB – Banco de Brasília S.A. de que seu Capital Principal está em patamar inferior a 4,5% (quatro inteiros e cinco décimos por cento) do montante RWA, estabelecida pela regulamentação vigente; ou 2. seja verificada, em lei específica, a assinatura de compromisso de aporte para o BRB – Banco de Brasília S.A.; 3. seja decretado pelo BACEN o regime de administração especial temporária ou intervenção do BRB – Banco de Brasília S.A.; ou 4. seja determinado pelo BACEN, segundo critérios estabelecidos em regulamento específico editado pelo Conselho Monetário Nacional,a extinção do instrumento. | AJ60: Totalmente | AK60: Permanente | AL60: Contratual | AM60: Não | AN60: Não | AO60: Não se aplica
B61: 52 | C61: BRB - BANCO DE BRASILIA S/A | D61: LFSN20008SS | E61: Lei 12.249/2010 - Resolução 4.955/2021 do CMN | F61: Nível II | G61: Nível II | H61: Conglomerado | I61: Letra financeira | J61: R$ 115,968,046.21 | K61: R$ 60,000,000.00 | L61: passivo - custo amortizado | M61: 2020-10-15 | N61: Com vencimento | O61: 2030-10-15 | P61: Não | Q61: (1) Não há uma data específica, apenas quando for solicitado ao Bacen | R61: (2) Não há vinculação regulatória ou fiscal para resgate ou recompra | S61: (3) O valor pode ser parcial ou total, conforme autorização do Bacen | T61: Não se aplica | U61: Fixo | V61: IPCA + 7,9% | W61: Não | X61: Mandatório | Y61: Não | Z61: Cumulativo | AA61: Não conversível | AB61: Não se aplica | AC61: Não se aplica | AD61: Não se aplica | AE61: Não se aplica | AF61: Não se aplica | AG61: Não se aplica | AH61: Sim | AI61: Os títulos serão extintos, permanente e em valor no mínimo correspondente ao saldo computado no Nível II do Patrimônio de Referência do BRB – Banco de Brasília S.A nas seguintes condições: 1. seja verificada a divulgação pelo BRB – Banco de Brasília S.A. de que seu Capital Principal está em patamar inferior a 4,5% (quatro inteiros e cinco décimos por cento) do montante RWA, estabelecida pela regulamentação vigente; ou 2. seja verificada, em lei específica, a assinatura de compromisso de aporte para o BRB – Banco de Brasília S.A.; 3. seja decretado pelo BACEN o regime de administração especial temporária ou intervenção do BRB – Banco de Brasília S.A.; ou 4. seja determinado pelo BACEN, segundo critérios estabelecidos em regulamento específico editado pelo Conselho Monetário Nacional,a extinção do instrumento. | AJ61: Totalmente | AK61: Permanente | AL61: Contratual | AM61: Não | AN61: Não | AO61: Não se aplica
B62: 53 | C62: BRB - BANCO DE BRASILIA S/A | D62: LFSN20009F8 | E62: Lei 12.249/2010 - Resolução 4.955/2021 do CMN | F62: Nível II | G62: Nível II | H62: Conglomerado | I62: Letra financeira | J62: R$ 7,116,837.71 | K62: R$ 9,495,766.62 | L62: passivo - custo amortizado | M62: 2020-12-14 | N62: Com vencimento | O62: 2027-12-14 | P62: Não | Q62: (1) Não há uma data específica, apenas quando for solicitado ao Bacen | R62: (2) Não há vinculação regulatória ou fiscal para resgate ou recompra | S62: (3) O valor pode ser parcial ou total, conforme autorização do Bacen | T62: Não se aplica | U62: Fixo | V62: 140% CDI | W62: Não | X62: Mandatório | Y62: Não | Z62: Cumulativo | AA62: Não conversível | AB62: Não se aplica | AC62: Não se aplica | AD62: Não se aplica | AE62: Não se aplica | AF62: Não se aplica | AG62: Não se aplica | AH62: Sim | AI62: Os títulos serão extintos, permanente e em valor no mínimo correspondente ao saldo computado no Nível II do Patrimônio de Referência do BRB – Banco de Brasília S.A nas seguintes condições: 1. seja verificada a divulgação pelo BRB – Banco de Brasília S.A. de que seu Capital Principal está em patamar inferior a 4,5% (quatro inteiros e cinco décimos por cento) do montante RWA, estabelecida pela regulamentação vigente; ou 2. seja verificada, em lei específica, a assinatura de compromisso de aporte para o BRB – Banco de Brasília S.A.; 3. seja decretado pelo BACEN o regime de administração especial temporária ou intervenção do BRB – Banco de Brasília S.A.; ou 4. seja determinado pelo BACEN, segundo critérios estabelecidos em regulamento específico editado pelo Conselho Monetário Nacional,a extinção do instrumento. | AJ62: Totalmente | AK62: Permanente | AL62: Contratual | AM62: Não | AN62: Não | AO62: Não se aplica
B63: 54 | C63: BRB - BANCO DE BRASILIA S/A | D63: LFSN20009F9 | E63: Lei 12.249/2010 - Resolução 4.955/2021 do CMN | F63: Nível II | G63: Nível II | H63: Conglomerado | I63: Letra financeira | J63: R$ 66,464,990.32 | K63: R$ 88,682,089.16 | L63: passivo - custo amortizado | M63: 2020-12-14 | N63: Com vencimento | O63: 2027-12-14 | P63: Não | Q63: (1) Não há uma data específica, apenas quando for solicitado ao Bacen | R63: (2) Não há vinculação regulatória ou fiscal para resgate ou recompra | S63: (3) O valor pode ser parcial ou total, conforme autorização do Bacen | T63: Não se aplica | U63: Fixo | V63: 140% CDI | W63: Não | X63: Mandatório | Y63: Não | Z63: Cumulativo | AA63: Não conversível | AB63: Não se aplica | AC63: Não se aplica | AD63: Não se aplica | AE63: Não se aplica | AF63: Não se aplica | AG63: Não se aplica | AH63: Sim | AI63: Os títulos serão extintos, permanente e em valor no mínimo correspondente ao saldo computado no Nível II do Patrimônio de Referência do BRB – Banco de Brasília S.A nas seguintes condições: 1. seja verificada a divulgação pelo BRB – Banco de Brasília S.A. de que seu Capital Principal está em patamar inferior a 4,5% (quatro inteiros e cinco décimos por cento) do montante RWA, estabelecida pela regulamentação vigente; ou 2. seja verificada, em lei específica, a assinatura de compromisso de aporte para o BRB – Banco de Brasília S.A.; 3. seja decretado pelo BACEN o regime de administração especial temporária ou intervenção do BRB – Banco de Brasília S.A.; ou 4. seja determinado pelo BACEN, segundo critérios estabelecidos em regulamento específico editado pelo Conselho Monetário Nacional,a extinção do instrumento. | AJ63: Totalmente | AK63: Permanente | AL63: Contratual | AM63: Não | AN63: Não | AO63: Não se aplica
B64: 55 | C64: BRB - BANCO DE BRASILIA S/A | D64: LFSN210024S | E64: Lei 12.249/2010 - Resolução 4.955/2021 do CMN | F64: Nível II | G64: Nível II | H64: Conglomerado | I64: Letra financeira | J64: 0 | K64: R$ 50,000,000.00 | L64: passivo - custo amortizado | M64: 2021-06-28 | N64: Com vencimento | O64: 2026-06-29 | P64: Não | Q64: (1) Não há uma data específica, apenas quando for solicitado ao Bacen | R64: (2) Não há vinculação regulatória ou fiscal para resgate ou recompra | S64: (3) O valor pode ser parcial ou total, conforme autorização do Bacen | T64: Não se aplica | U64: Fixo | V64: IPCA + 7% | W64: Não | X64: Mandatório | Y64: Não | Z64: Cumulativo | AA64: Não conversível | AB64: Não se aplica | AC64: Não se aplica | AD64: Não se aplica | AE64: Não se aplica | AF64: Não se aplica | AG64: Não se aplica | AH64: Sim | AI64: Os títulos serão extintos, permanente e em valor no mínimo correspondente ao saldo computado no Nível II do Patrimônio de Referência do BRB – Banco de Brasília S.A nas seguintes condições: 1. seja verificada a divulgação pelo BRB – Banco de Brasília S.A. de que seu Capital Principal está em patamar inferior a 4,5% (quatro inteiros e cinco décimos por cento) do montante RWA, estabelecida pela regulamentação vigente; ou 2. seja verificada, em lei específica, a assinatura de compromisso de aporte para o BRB – Banco de Brasília S.A.; 3. seja decretado pelo BACEN o regime de administração especial temporária ou intervenção do BRB – Banco de Brasília S.A.; ou 4. seja determinado pelo BACEN, segundo critérios estabelecidos em regulamento específico editado pelo Conselho Monetário Nacional,a extinção do instrumento. | AJ64: Totalmente | AK64: Permanente | AL64: Contratual | AM64: Não | AN64: Não | AO64: Não se aplica
B65: 56 | C65: BRB - BANCO DE BRASILIA S/A | D65: LFSN21002KE | E65: Lei 12.249/2010 - Resolução 4.955/2021 do CMN | F65: Nível II | G65: Nível II | H65: Conglomerado | I65: Letra financeira | J65: R$ 50,364,675.94 | K65: R$ 50,000,000.00 | L65: passivo - custo amortizado | M65: 2021-08-11 | N65: Com vencimento | O65: 2028-08-11 | P65: Não | Q65: (1) Não há uma data específica, apenas quando for solicitado ao Bacen | R65: (2) Não há vinculação regulatória ou fiscal para resgate ou recompra | S65: (3) O valor pode ser parcial ou total, conforme autorização do Bacen | T65: Não se aplica | U65: Fixo | V65: IPCA + 7,65% | W65: Não | X65: Mandatório | Y65: Não | Z65: Cumulativo | AA65: Não conversível | AB65: Não se aplica | AC65: Não se aplica | AD65: Não se aplica | AE65: Não se aplica | AF65: Não se aplica | AG65: Não se aplica | AH65: Sim | AI65: Os títulos serão extintos, permanente e em valor no mínimo correspondente ao saldo computado no Nível II do Patrimônio de Referência do BRB – Banco de Brasília S.A nas seguintes condições: 1. seja verificada a divulgação pelo BRB – Banco de Brasília S.A. de que seu Capital Principal está em patamar inferior a 4,5% (quatro inteiros e cinco décimos por cento) do montante RWA, estabelecida pela regulamentação vigente; ou 2. seja verificada, em lei específica, a assinatura de compromisso de aporte para o BRB – Banco de Brasília S.A.; 3. seja decretado pelo BACEN o regime de administração especial temporária ou intervenção do BRB – Banco de Brasília S.A.; ou 4. seja determinado pelo BACEN, segundo critérios estabelecidos em regulamento específico editado pelo Conselho Monetário Nacional,a extinção do instrumento. | AJ65: Totalmente | AK65: Permanente | AL65: Contratual | AM65: Não | AN65: Não | AO65: Não se aplica
B66: 57 | C66: BRB - BANCO DE BRASILIA S/A | D66: LFSN21003UL | E66: Lei 12.249/2010 - Resolução 4.955/2021 do CMN | F66: Nível II | G66: Nível II | H66: Conglomerado | I66: Letra financeira | J66: R$ 95,299.84 | K66: R$ 300,000.00 | L66: passivo - custo amortizado | M66: 2021-09-23 | N66: Com vencimento | O66: 2026-09-24 | P66: Não | Q66: (1) Não há uma data específica, apenas quando for solicitado ao Bacen | R66: (2) Não há vinculação regulatória ou fiscal para resgate ou recompra | S66: (3) O valor pode ser parcial ou total, conforme autorização do Bacen | T66: Não se aplica | U66: Fixo | V66: IPCA + 6,82% | W66: Não | X66: Mandatório | Y66: Não | Z66: Cumulativo | AA66: Não conversível | AB66: Não se aplica | AC66: Não se aplica | AD66: Não se aplica | AE66: Não se aplica | AF66: Não se aplica | AG66: Não se aplica | AH66: Sim | AI66: Os títulos serão extintos, permanente e em valor no mínimo correspondente ao saldo computado no Nível II do Patrimônio de Referência do BRB – Banco de Brasília S.A nas seguintes condições: 1. seja verificada a divulgação pelo BRB – Banco de Brasília S.A. de que seu Capital Principal está em patamar inferior a 4,5% (quatro inteiros e cinco décimos por cento) do montante RWA, estabelecida pela regulamentação vigente; ou 2. seja verificada, em lei específica, a assinatura de compromisso de aporte para o BRB – Banco de Brasília S.A.; 3. seja decretado pelo BACEN o regime de administração especial temporária ou intervenção do BRB – Banco de Brasília S.A.; ou 4. seja determinado pelo BACEN, segundo critérios estabelecidos em regulamento específico editado pelo Conselho Monetário Nacional,a extinção do instrumento. | AJ66: Totalmente | AK66: Permanente | AL66: Contratual | AM66: Não | AN66: Não | AO66: Não se aplica
B67: 58 | C67: BRB - BANCO DE BRASILIA S/A | D67: LFSN21003UM | E67: Lei 12.249/2010 - Resolução 4.955/2021 do CMN | F67: Nível II | G67: Nível II | H67: Conglomerado | I67: Letra financeira | J67: R$ 95,219.47 | K67: R$ 300,000.00 | L67: passivo - custo amortizado | M67: 2021-09-23 | N67: Com vencimento | O67: 2026-09-24 | P67: Não | Q67: (1) Não há uma data específica, apenas quando for solicitado ao Bacen | R67: (2) Não há vinculação regulatória ou fiscal para resgate ou recompra | S67: (3) O valor pode ser parcial ou total, conforme autorização do Bacen | T67: Não se aplica | U67: Fixo | V67: IPCA + 6,8% | W67: Não | X67: Mandatório | Y67: Não | Z67: Cumulativo | AA67: Não conversível | AB67: Não se aplica | AC67: Não se aplica | AD67: Não se aplica | AE67: Não se aplica | AF67: Não se aplica | AG67: Não se aplica | AH67: Sim | AI67: Os títulos serão extintos, permanente e em valor no mínimo correspondente ao saldo computado no Nível II do Patrimônio de Referência do BRB – Banco de Brasília S.A nas seguintes condições: 1. seja verificada a divulgação pelo BRB – Banco de Brasília S.A. de que seu Capital Principal está em patamar inferior a 4,5% (quatro inteiros e cinco décimos por cento) do montante RWA, estabelecida pela regulamentação vigente; ou 2. seja verificada, em lei específica, a assinatura de compromisso de aporte para o BRB – Banco de Brasília S.A.; 3. seja decretado pelo BACEN o regime de administração especial temporária ou intervenção do BRB – Banco de Brasília S.A.; ou 4. seja determinado pelo BACEN, segundo critérios estabelecidos em regulamento específico editado pelo Conselho Monetário Nacional,a extinção do instrumento. | AJ67: Totalmente | AK67: Permanente | AL67: Contratual | AM67: Não | AN67: Não | AO67: Não se aplica
B68: 59 | C68: BRB - BANCO DE BRASILIA S/A | D68: LFSN21003V1 | E68: Lei 12.249/2010 - Resolução 4.955/2021 do CMN | F68: Nível II | G68: Nível II | H68: Conglomerado | I68: Letra financeira | J68: R$ 3,181,103.63 | K68: R$ 9,953,469.10 | L68: passivo - custo amortizado | M68: 2021-09-28 | N68: Com vencimento | O68: 2026-09-28 | P68: Não | Q68: (1) Não há uma data específica, apenas quando for solicitado ao Bacen | R68: (2) Não há vinculação regulatória ou fiscal para resgate ou recompra | S68: (3) O valor pode ser parcial ou total, conforme autorização do Bacen | T68: Não se aplica | U68: Fixo | V68: IPCA + 7% | W68: Não | X68: Mandatório | Y68: Não | Z68: Cumulativo | AA68: Não conversível | AB68: Não se aplica | AC68: Não se aplica | AD68: Não se aplica | AE68: Não se aplica | AF68: Não se aplica | AG68: Não se aplica | AH68: Sim | AI68: Os títulos serão extintos, permanente e em valor no mínimo correspondente ao saldo computado no Nível II do Patrimônio de Referência do BRB – Banco de Brasília S.A nas seguintes condições: 1. seja verificada a divulgação pelo BRB – Banco de Brasília S.A. de que seu Capital Principal está em patamar inferior a 4,5% (quatro inteiros e cinco décimos por cento) do montante RWA, estabelecida pela regulamentação vigente; ou 2. seja verificada, em lei específica, a assinatura de compromisso de aporte para o BRB – Banco de Brasília S.A.; 3. seja decretado pelo BACEN o regime de administração especial temporária ou intervenção do BRB – Banco de Brasília S.A.; ou 4. seja determinado pelo BACEN, segundo critérios estabelecidos em regulamento específico editado pelo Conselho Monetário Nacional,a extinção do instrumento. | AJ68: Totalmente | AK68: Permanente | AL68: Contratual | AM68: Não | AN68: Não | AO68: Não se aplica
B69: 60 | C69: BRB - BANCO DE BRASILIA S/A | D69: LFSN22002N6 | E69: Lei 12.249/2010 - Resolução 4.955/2021 do CMN | F69: Nível II | G69: Nível II | H69: Conglomerado | I69: Letra financeira | J69: R$ 24,741,958.61 | K69: R$ 24,000,000.00 | L69: passivo - custo amortizado | M69: 2022-03-11 | N69: Com vencimento | O69: 2029-03-12 | P69: Não | Q69: (1) Não há uma data específica, apenas quando for solicitado ao Bacen | R69: (2) Não há vinculação regulatória ou fiscal para resgate ou recompra | S69: (3) O valor pode ser parcial ou total, conforme autorização do Bacen | T69: Não se aplica | U69: Fixo | V69: 140% CDI | W69: Não | X69: Mandatório | Y69: Não | Z69: Cumulativo | AA69: Não conversível | AB69: Não se aplica | AC69: Não se aplica | AD69: Não se aplica | AE69: Não se aplica | AF69: Não se aplica | AG69: Não se aplica | AH69: Sim | AI69: Os títulos serão extintos, permanente e em valor no mínimo correspondente ao saldo computado no Nível II do Patrimônio de Referência do BRB – Banco de Brasília S.A nas seguintes condições: 1. seja verificada a divulgação pelo BRB – Banco de Brasília S.A. de que seu Capital Principal está em patamar inferior a 4,5% (quatro inteiros e cinco décimos por cento) do montante RWA, estabelecida pela regulamentação vigente; ou 2. seja verificada, em lei específica, a assinatura de compromisso de aporte para o BRB – Banco de Brasília S.A.; 3. seja decretado pelo BACEN o regime de administração especial temporária ou intervenção do BRB – Banco de Brasília S.A.; ou 4. seja determinado pelo BACEN, segundo critérios estabelecidos em regulamento específico editado pelo Conselho Monetário Nacional,a extinção do instrumento. | AJ69: Totalmente | AK69: Permanente | AL69: Contratual | AM69: Não | AN69: Não | AO69: Não se aplica
B70: 61 | C70: BRB - BANCO DE BRASILIA S/A | D70: LFSN22002N7 | E70: Lei 12.249/2010 - Resolução 4.955/2021 do CMN | F70: Nível II | G70: Nível II | H70: Conglomerado | I70: Letra financeira | J70: R$ 16,178,940.48 | K70: R$ 24,000,000.00 | L70: passivo - custo amortizado | M70: 2022-03-11 | N70: Com vencimento | O70: 2028-03-13 | P70: Não | Q70: (1) Não há uma data específica, apenas quando for solicitado ao Bacen | R70: (2) Não há vinculação regulatória ou fiscal para resgate ou recompra | S70: (3) O valor pode ser parcial ou total, conforme autorização do Bacen | T70: Não se aplica | U70: Fixo | V70: 135% CDI | W70: Não | X70: Mandatório | Y70: Não | Z70: Cumulativo | AA70: Não conversível | AB70: Não se aplica | AC70: Não se aplica | AD70: Não se aplica | AE70: Não se aplica | AF70: Não se aplica | AG70: Não se aplica | AH70: Sim | AI70: Os títulos serão extintos, permanente e em valor no mínimo correspondente ao saldo computado no Nível II do Patrimônio de Referência do BRB – Banco de Brasília S.A nas seguintes condições: 1. seja verificada a divulgação pelo BRB – Banco de Brasília S.A. de que seu Capital Principal está em patamar inferior a 4,5% (quatro inteiros e cinco décimos por cento) do montante RWA, estabelecida pela regulamentação vigente; ou 2. seja verificada, em lei específica, a assinatura de compromisso de aporte para o BRB – Banco de Brasília S.A.; 3. seja decretado pelo BACEN o regime de administração especial temporária ou intervenção do BRB – Banco de Brasília S.A.; ou 4. seja determinado pelo BACEN, segundo critérios estabelecidos em regulamento específico editado pelo Conselho Monetário Nacional,a extinção do instrumento. | AJ70: Totalmente | AK70: Permanente | AL70: Contratual | AM70: Não | AN70: Não | AO70: Não se aplica
B71: 62 | C71: BRB - BANCO DE BRASILIA S/A | D71: LFSN22003UX | E71: Lei 12.249/2010 - Resolução 4.955/2021 do CMN | F71: Nível II | G71: Nível II | H71: Conglomerado | I71: Letra financeira | J71: R$ 5,952,295.41 | K71: R$ 10,000,000.00 | L71: passivo - custo amortizado | M71: 2022-03-30 | N71: Com vencimento | O71: 2028-03-30 | P71: Não | Q71: (1) Não há uma data específica, apenas quando for solicitado ao Bacen | R71: (2) Não há vinculação regulatória ou fiscal para resgate ou recompra | S71: (3) O valor pode ser parcial ou total, conforme autorização do Bacen | T71: Não se aplica | U71: Fixo | V71: IPCA + 7,9% | W71: Não | X71: Mandatório | Y71: Não | Z71: Cumulativo | AA71: Não conversível | AB71: Não se aplica | AC71: Não se aplica | AD71: Não se aplica | AE71: Não se aplica | AF71: Não se aplica | AG71: Não se aplica | AH71: Sim | AI71: Os títulos serão extintos, permanente e em valor no mínimo correspondente ao saldo computado no Nível II do Patrimônio de Referência do BRB – Banco de Brasília S.A nas seguintes condições: 1. seja verificada a divulgação pelo BRB – Banco de Brasília S.A. de que seu Capital Principal está em patamar inferior a 4,5% (quatro inteiros e cinco décimos por cento) do montante RWA, estabelecida pela regulamentação vigente; ou 2. seja verificada, em lei específica, a assinatura de compromisso de aporte para o BRB – Banco de Brasília S.A.; 3. seja decretado pelo BACEN o regime de administração especial temporária ou intervenção do BRB – Banco de Brasília S.A.; ou 4. seja determinado pelo BACEN, segundo critérios estabelecidos em regulamento específico editado pelo Conselho Monetário Nacional,a extinção do instrumento. | AJ71: Totalmente | AK71: Permanente | AL71: Contratual | AM71: Não | AN71: Não | AO71: Não se aplica
B72: 63 | C72: BRB - BANCO DE BRASILIA S/A | D72: LFSN220040V | E72: Lei 12.249/2010 - Resolução 4.955/2021 do CMN | F72: Nível II | G72: Nível II | H72: Conglomerado | I72: Letra financeira | J72: R$ 6,666,027.94 | K72: R$ 10,749,000.00 | L72: passivo - custo amortizado | M72: 2022-03-31 | N72: Com vencimento | O72: 2028-03-31 | P72: Não | Q72: (1) Não há uma data específica, apenas quando for solicitado ao Bacen | R72: (2) Não há vinculação regulatória ou fiscal para resgate ou recompra | S72: (3) O valor pode ser parcial ou total, conforme autorização do Bacen | T72: Não se aplica | U72: Fixo | V72: 14,48% | W72: Não | X72: Mandatório | Y72: Não | Z72: Cumulativo | AA72: Não conversível | AB72: Não se aplica | AC72: Não se aplica | AD72: Não se aplica | AE72: Não se aplica | AF72: Não se aplica | AG72: Não se aplica | AH72: Sim | AI72: Os títulos serão extintos, permanente e em valor no mínimo correspondente ao saldo computado no Nível II do Patrimônio de Referência do BRB – Banco de Brasília S.A nas seguintes condições: 1. seja verificada a divulgação pelo BRB – Banco de Brasília S.A. de que seu Capital Principal está em patamar inferior a 4,5% (quatro inteiros e cinco décimos por cento) do montante RWA, estabelecida pela regulamentação vigente; ou 2. seja verificada, em lei específica, a assinatura de compromisso de aporte para o BRB – Banco de Brasília S.A.; 3. seja decretado pelo BACEN o regime de administração especial temporária ou intervenção do BRB – Banco de Brasília S.A.; ou 4. seja determinado pelo BACEN, segundo critérios estabelecidos em regulamento específico editado pelo Conselho Monetário Nacional,a extinção do instrumento. | AJ72: Totalmente | AK72: Permanente | AL72: Contratual | AM72: Não | AN72: Não | AO72: Não se aplica
B73: 64 | C73: BRB - BANCO DE BRASILIA S/A | D73: LFSN22006BY | E73: Lei 12.249/2010 - Resolução 4.955/2021 do CMN | F73: Nível II | G73: Nível II | H73: Conglomerado | I73: Letra financeira | J73: R$ 6,763,353.94 | K73: R$ 7,800,000.00 | L73: passivo - custo amortizado | M73: 2022-05-17 | N73: Com vencimento | O73: 2029-05-17 | P73: Não | Q73: (1) Não há uma data específica, apenas quando for solicitado ao Bacen | R73: (2) Não há vinculação regulatória ou fiscal para resgate ou recompra | S73: (3) O valor pode ser parcial ou total, conforme autorização do Bacen | T73: Não se aplica | U73: Fixo | V73: IPCA + 7,99% | W73: Não | X73: Mandatório | Y73: Não | Z73: Cumulativo | AA73: Não conversível | AB73: Não se aplica | AC73: Não se aplica | AD73: Não se aplica | AE73: Não se aplica | AF73: Não se aplica | AG73: Não se aplica | AH73: Sim | AI73: Os títulos serão extintos, permanente e em valor no mínimo correspondente ao saldo computado no Nível II do Patrimônio de Referência do BRB – Banco de Brasília S.A nas seguintes condições: 1. seja verificada a divulgação pelo BRB – Banco de Brasília S.A. de que seu Capital Principal está em patamar inferior a 4,5% (quatro inteiros e cinco décimos por cento) do montante RWA, estabelecida pela regulamentação vigente; ou 2. seja verificada, em lei específica, a assinatura de compromisso de aporte para o BRB – Banco de Brasília S.A.; 3. seja decretado pelo BACEN o regime de administração especial temporária ou intervenção do BRB – Banco de Brasília S.A.; ou 4. seja determinado pelo BACEN, segundo critérios estabelecidos em regulamento específico editado pelo Conselho Monetário Nacional,a extinção do instrumento. | AJ73: Totalmente | AK73: Permanente | AL73: Contratual | AM73: Não | AN73: Não | AO73: Não se aplica
B74: 65 | C74: BRB - BANCO DE BRASILIA S/A | D74: LFSN22006SV | E74: Lei 12.249/2010 - Resolução 4.955/2021 do CMN | F74: Nível II | G74: Nível II | H74: Conglomerado | I74: Letra financeira | J74: R$ 3,095,447.46 | K74: R$ 5,000,000.00 | L74: passivo - custo amortizado | M74: 2022-05-25 | N74: Com vencimento | O74: 2028-05-25 | P74: Não | Q74: (1) Não há uma data específica, apenas quando for solicitado ao Bacen | R74: (2) Não há vinculação regulatória ou fiscal para resgate ou recompra | S74: (3) O valor pode ser parcial ou total, conforme autorização do Bacen | T74: Não se aplica | U74: Fixo | V74: 120% CDI | W74: Não | X74: Mandatório | Y74: Não | Z74: Cumulativo | AA74: Não conversível | AB74: Não se aplica | AC74: Não se aplica | AD74: Não se aplica | AE74: Não se aplica | AF74: Não se aplica | AG74: Não se aplica | AH74: Sim | AI74: Os títulos serão extintos, permanente e em valor no mínimo correspondente ao saldo computado no Nível II do Patrimônio de Referência do BRB – Banco de Brasília S.A nas seguintes condições: 1. seja verificada a divulgação pelo BRB – Banco de Brasília S.A. de que seu Capital Principal está em patamar inferior a 4,5% (quatro inteiros e cinco décimos por cento) do montante RWA, estabelecida pela regulamentação vigente; ou 2. seja verificada, em lei específica, a assinatura de compromisso de aporte para o BRB – Banco de Brasília S.A.; 3. seja decretado pelo BACEN o regime de administração especial temporária ou intervenção do BRB – Banco de Brasília S.A.; ou 4. seja determinado pelo BACEN, segundo critérios estabelecidos em regulamento específico editado pelo Conselho Monetário Nacional,a extinção do instrumento. | AJ74: Totalmente | AK74: Permanente | AL74: Contratual | AM74: Não | AN74: Não | AO74: Não se aplica
B75: 66 | C75: BRB - BANCO DE BRASILIA S/A | D75: LFSN2200795 | E75: Lei 12.249/2010 - Resolução 4.955/2021 do CMN | F75: Nível II | G75: Nível II | H75: Conglomerado | I75: Letra financeira | J75: R$ 105,192,907.86 | K75: R$ 170,432,403.91 | L75: passivo - custo amortizado | M75: 2022-05-30 | N75: Com vencimento | O75: 2028-05-30 | P75: Não | Q75: (1) Não há uma data específica, apenas quando for solicitado ao Bacen | R75: (2) Não há vinculação regulatória ou fiscal para resgate ou recompra | S75: (3) O valor pode ser parcial ou total, conforme autorização do Bacen | T75: Não se aplica | U75: Fixo | V75: 15,14% | W75: Não | X75: Mandatório | Y75: Não | Z75: Cumulativo | AA75: Não conversível | AB75: Não se aplica | AC75: Não se aplica | AD75: Não se aplica | AE75: Não se aplica | AF75: Não se aplica | AG75: Não se aplica | AH75: Sim | AI75: Os títulos serão extintos, permanente e em valor no mínimo correspondente ao saldo computado no Nível II do Patrimônio de Referência do BRB – Banco de Brasília S.A nas seguintes condições: 1. seja verificada a divulgação pelo BRB – Banco de Brasília S.A. de que seu Capital Principal está em patamar inferior a 4,5% (quatro inteiros e cinco décimos por cento) do montante RWA, estabelecida pela regulamentação vigente; ou 2. seja verificada, em lei específica, a assinatura de compromisso de aporte para o BRB – Banco de Brasília S.A.; 3. seja decretado pelo BACEN o regime de administração especial temporária ou intervenção do BRB – Banco de Brasília S.A.; ou 4. seja determinado pelo BACEN, segundo critérios estabelecidos em regulamento específico editado pelo Conselho Monetário Nacional,a extinção do instrumento. | AJ75: Totalmente | AK75: Permanente | AL75: Contratual | AM75: Não | AN75: Não | AO75: Não se aplica
B76: =B75+1 -> 67 | C76: BRB - BANCO DE BRASILIA S/A | D76: LFSN220086J | E76: Lei 12.249/2010 - Resolução 4.955/2021 do CMN | F76: Nível II | G76: Nível II | H76: Conglomerado | I76: Letra financeira | J76: R$ 11,599,910.89 | K76: R$ 18,912,000.00 | L76: passivo - custo amortizado | M76: 2022-04-20 | N76: Com vencimento | O76: 2028-04-20 | P76: Não | Q76: (1) Não há uma data específica, apenas quando for solicitado ao Bacen | R76: (2) Não há vinculação regulatória ou fiscal para resgate ou recompra | S76: (3) O valor pode ser parcial ou total, conforme autorização do Bacen | T76: Não se aplica | U76: Fixo | V76: 14,35% | W76: Não | X76: Mandatório | Y76: Não | Z76: Cumulativo | AA76: Não conversível | AB76: Não se aplica | AC76: Não se aplica | AD76: Não se aplica | AE76: Não se aplica | AF76: Não se aplica | AG76: Não se aplica | AH76: Sim | AI76: Os títulos serão extintos, permanente e em valor no mínimo correspondente ao saldo computado no Nível II do Patrimônio de Referência do BRB – Banco de Brasília S.A nas seguintes condições: 1. seja verificada a divulgação pelo BRB – Banco de Brasília S.A. de que seu Capital Principal está em patamar inferior a 4,5% (quatro inteiros e cinco décimos por cento) do montante RWA, estabelecida pela regulamentação vigente; ou 2. seja verificada, em lei específica, a assinatura de compromisso de aporte para o BRB – Banco de Brasília S.A.; 3. seja decretado pelo BACEN o regime de administração especial temporária ou intervenção do BRB – Banco de Brasília S.A.; ou 4. seja determinado pelo BACEN, segundo critérios estabelecidos em regulamento específico editado pelo Conselho Monetário Nacional,a extinção do instrumento. | AJ76: Totalmente | AK76: Permanente | AL76: Contratual | AM76: Não | AN76: Não | AO76: Não se aplica
B77: 68 | C77: BRB - BANCO DE BRASILIA S/A | D77: LFSN220086K | E77: Lei 12.249/2010 - Resolução 4.955/2021 do CMN | F77: Nível II | G77: Nível II | H77: Conglomerado | I77: Letra financeira | J77: R$ 14,087,239.51 | K77: R$ 22,912,000.00 | L77: passivo - custo amortizado | M77: 2022-04-18 | N77: Com vencimento | O77: 2028-04-18 | P77: Não | Q77: (1) Não há uma data específica, apenas quando for solicitado ao Bacen | R77: (2) Não há vinculação regulatória ou fiscal para resgate ou recompra | S77: (3) O valor pode ser parcial ou total, conforme autorização do Bacen | T77: Não se aplica | U77: Fixo | V77: 14,41% | W77: Não | X77: Mandatório | Y77: Não | Z77: Cumulativo | AA77: Não conversível | AB77: Não se aplica | AC77: Não se aplica | AD77: Não se aplica | AE77: Não se aplica | AF77: Não se aplica | AG77: Não se aplica | AH77: Sim | AI77: Os títulos serão extintos, permanente e em valor no mínimo correspondente ao saldo computado no Nível II do Patrimônio de Referência do BRB – Banco de Brasília S.A nas seguintes condições: 1. seja verificada a divulgação pelo BRB – Banco de Brasília S.A. de que seu Capital Principal está em patamar inferior a 4,5% (quatro inteiros e cinco décimos por cento) do montante RWA, estabelecida pela regulamentação vigente; ou 2. seja verificada, em lei específica, a assinatura de compromisso de aporte para o BRB – Banco de Brasília S.A.; 3. seja decretado pelo BACEN o regime de administração especial temporária ou intervenção do BRB – Banco de Brasília S.A.; ou 4. seja determinado pelo BACEN, segundo critérios estabelecidos em regulamento específico editado pelo Conselho Monetário Nacional,a extinção do instrumento. | AJ77: Totalmente | AK77: Permanente | AL77: Contratual | AM77: Não | AN77: Não | AO77: Não se aplica
B78: 69 | C78: BRB - BANCO DE BRASILIA S/A | D78: LFSN220086L | E78: Lei 12.249/2010 - Resolução 4.955/2021 do CMN | F78: Nível II | G78: Nível II | H78: Conglomerado | I78: Letra financeira | J78: R$ 16,160,043.47 | K78: R$ 26,235,000.00 | L78: passivo - custo amortizado | M78: 2022-04-13 | N78: Com vencimento | O78: 2028-04-13 | P78: Não | Q78: (1) Não há uma data específica, apenas quando for solicitado ao Bacen | R78: (2) Não há vinculação regulatória ou fiscal para resgate ou recompra | S78: (3) O valor pode ser parcial ou total, conforme autorização do Bacen | T78: Não se aplica | U78: Fixo | V78: 14,41% | W78: Não | X78: Mandatório | Y78: Não | Z78: Cumulativo | AA78: Não conversível | AB78: Não se aplica | AC78: Não se aplica | AD78: Não se aplica | AE78: Não se aplica | AF78: Não se aplica | AG78: Não se aplica | AH78: Sim | AI78: Os títulos serão extintos, permanente e em valor no mínimo correspondente ao saldo computado no Nível II do Patrimônio de Referência do BRB – Banco de Brasília S.A nas seguintes condições: 1. seja verificada a divulgação pelo BRB – Banco de Brasília S.A. de que seu Capital Principal está em patamar inferior a 4,5% (quatro inteiros e cinco décimos por cento) do montante RWA, estabelecida pela regulamentação vigente; ou 2. seja verificada, em lei específica, a assinatura de compromisso de aporte para o BRB – Banco de Brasília S.A.; 3. seja decretado pelo BACEN o regime de administração especial temporária ou intervenção do BRB – Banco de Brasília S.A.; ou 4. seja determinado pelo BACEN, segundo critérios estabelecidos em regulamento específico editado pelo Conselho Monetário Nacional,a extinção do instrumento. | AJ78: Totalmente | AK78: Permanente | AL78: Contratual | AM78: Não | AN78: Não | AO78: Não se aplica
B79: 70 | C79: BRB - BANCO DE BRASILIA S/A | D79: LFSN22008YJ | E79: Lei 12.249/2010 - Resolução 4.955/2021 do CMN | F79: Nível II | G79: Nível II | H79: Conglomerado | I79: Letra financeira | J79: R$ 20,262,681.00 | K79: R$ 32,400,000.00 | L79: passivo - custo amortizado | M79: 2022-06-29 | N79: Com vencimento | O79: 2028-06-29 | P79: Não | Q79: (1) Não há uma data específica, apenas quando for solicitado ao Bacen | R79: (2) Não há vinculação regulatória ou fiscal para resgate ou recompra | S79: (3) O valor pode ser parcial ou total, conforme autorização do Bacen | T79: Não se aplica | U79: Fixo | V79: 130% CDI | W79: Não | X79: Mandatório | Y79: Não | Z79: Cumulativo | AA79: Não conversível | AB79: Não se aplica | AC79: Não se aplica | AD79: Não se aplica | AE79: Não se aplica | AF79: Não se aplica | AG79: Não se aplica | AH79: Sim | AI79: Os títulos serão extintos, permanente e em valor no mínimo correspondente ao saldo computado no Nível II do Patrimônio de Referência do BRB – Banco de Brasília S.A nas seguintes condições: 1. seja verificada a divulgação pelo BRB – Banco de Brasília S.A. de que seu Capital Principal está em patamar inferior a 4,5% (quatro inteiros e cinco décimos por cento) do montante RWA, estabelecida pela regulamentação vigente; ou 2. seja verificada, em lei específica, a assinatura de compromisso de aporte para o BRB – Banco de Brasília S.A.; 3. seja decretado pelo BACEN o regime de administração especial temporária ou intervenção do BRB – Banco de Brasília S.A.; ou 4. seja determinado pelo BACEN, segundo critérios estabelecidos em regulamento específico editado pelo Conselho Monetário Nacional,a extinção do instrumento. | AJ79: Totalmente | AK79: Permanente | AL79: Contratual | AM79: Não | AN79: Não | AO79: Não se aplica
B80: 71 | C80: BRB - BANCO DE BRASILIA S/A | D80: LFSN22008YN | E80: Lei 12.249/2010 - Resolução 4.955/2021 do CMN | F80: Nível II | G80: Nível II | H80: Conglomerado | I80: Letra financeira | J80: R$ 187,501.26 | K80: R$ 300,000.00 | L80: passivo - custo amortizado | M80: 2022-06-30 | N80: Com vencimento | O80: 2028-06-30 | P80: Não | Q80: (1) Não há uma data específica, apenas quando for solicitado ao Bacen | R80: (2) Não há vinculação regulatória ou fiscal para resgate ou recompra | S80: (3) O valor pode ser parcial ou total, conforme autorização do Bacen | T80: Não se aplica | U80: Fixo | V80: 130% CDI | W80: Não | X80: Mandatório | Y80: Não | Z80: Cumulativo | AA80: Não conversível | AB80: Não se aplica | AC80: Não se aplica | AD80: Não se aplica | AE80: Não se aplica | AF80: Não se aplica | AG80: Não se aplica | AH80: Sim | AI80: Os títulos serão extintos, permanente e em valor no mínimo correspondente ao saldo computado no Nível II do Patrimônio de Referência do BRB – Banco de Brasília S.A nas seguintes condições: 1. seja verificada a divulgação pelo BRB – Banco de Brasília S.A. de que seu Capital Principal está em patamar inferior a 4,5% (quatro inteiros e cinco décimos por cento) do montante RWA, estabelecida pela regulamentação vigente; ou 2. seja verificada, em lei específica, a assinatura de compromisso de aporte para o BRB – Banco de Brasília S.A.; 3. seja decretado pelo BACEN o regime de administração especial temporária ou intervenção do BRB – Banco de Brasília S.A.; ou 4. seja determinado pelo BACEN, segundo critérios estabelecidos em regulamento específico editado pelo Conselho Monetário Nacional,a extinção do instrumento. | AJ80: Totalmente | AK80: Permanente | AL80: Contratual | AM80: Não | AN80: Não | AO80: Não se aplica
B81: 72 | C81: BRB - BANCO DE BRASILIA S/A | D81: LFSN22008YO | E81: Lei 12.249/2010 - Resolução 4.955/2021 do CMN | F81: Nível II | G81: Nível II | H81: Conglomerado | I81: Letra financeira | J81: R$ 1,096,982.22 | K81: R$ 2,000,000.00 | L81: passivo - custo amortizado | M81: 2022-06-30 | N81: Com vencimento | O81: 2028-06-30 | P81: Não | Q81: (1) Não há uma data específica, apenas quando for solicitado ao Bacen | R81: (2) Não há vinculação regulatória ou fiscal para resgate ou recompra | S81: (3) O valor pode ser parcial ou total, conforme autorização do Bacen | T81: Não se aplica | U81: Fixo | V81: IPCA + 7,1% | W81: Não | X81: Mandatório | Y81: Não | Z81: Cumulativo | AA81: Não conversível | AB81: Não se aplica | AC81: Não se aplica | AD81: Não se aplica | AE81: Não se aplica | AF81: Não se aplica | AG81: Não se aplica | AH81: Sim | AI81: Os títulos serão extintos, permanente e em valor no mínimo correspondente ao saldo computado no Nível II do Patrimônio de Referência do BRB – Banco de Brasília S.A nas seguintes condições: 1. seja verificada a divulgação pelo BRB – Banco de Brasília S.A. de que seu Capital Principal está em patamar inferior a 4,5% (quatro inteiros e cinco décimos por cento) do montante RWA, estabelecida pela regulamentação vigente; ou 2. seja verificada, em lei específica, a assinatura de compromisso de aporte para o BRB – Banco de Brasília S.A.; 3. seja decretado pelo BACEN o regime de administração especial temporária ou intervenção do BRB – Banco de Brasília S.A.; ou 4. seja determinado pelo BACEN, segundo critérios estabelecidos em regulamento específico editado pelo Conselho Monetário Nacional,a extinção do instrumento. | AJ81: Totalmente | AK81: Permanente | AL81: Contratual | AM81: Não | AN81: Não | AO81: Não se aplica
B82: 73 | C82: BRB - BANCO DE BRASILIA S/A | D82: LFSN22008Z2 | E82: Lei 12.249/2010 - Resolução 4.955/2021 do CMN | F82: Nível II | G82: Nível II | H82: Conglomerado | I82: Letra financeira | J82: R$ 2,804,976.03 | K82: R$ 3,000,000.00 | L82: passivo - custo amortizado | M82: 2022-07-06 | N82: Com vencimento | O82: 2028-07-06 | P82: Não | Q82: (1) Não há uma data específica, apenas quando for solicitado ao Bacen | R82: (2) Não há vinculação regulatória ou fiscal para resgate ou recompra | S82: (3) O valor pode ser parcial ou total, conforme autorização do Bacen | T82: Não se aplica | U82: Fixo | V82: 130% CDI | W82: Não | X82: Mandatório | Y82: Não | Z82: Cumulativo | AA82: Não conversível | AB82: Não se aplica | AC82: Não se aplica | AD82: Não se aplica | AE82: Não se aplica | AF82: Não se aplica | AG82: Não se aplica | AH82: Sim | AI82: Os títulos serão extintos, permanente e em valor no mínimo correspondente ao saldo computado no Nível II do Patrimônio de Referência do BRB – Banco de Brasília S.A nas seguintes condições: 1. seja verificada a divulgação pelo BRB – Banco de Brasília S.A. de que seu Capital Principal está em patamar inferior a 4,5% (quatro inteiros e cinco décimos por cento) do montante RWA, estabelecida pela regulamentação vigente; ou 2. seja verificada, em lei específica, a assinatura de compromisso de aporte para o BRB – Banco de Brasília S.A.; 3. seja decretado pelo BACEN o regime de administração especial temporária ou intervenção do BRB – Banco de Brasília S.A.; ou 4. seja determinado pelo BACEN, segundo critérios estabelecidos em regulamento específico editado pelo Conselho Monetário Nacional,a extinção do instrumento. | AJ82: Totalmente | AK82: Permanente | AL82: Contratual | AM82: Não | AN82: Não | AO82: Não se aplica
B83: 74 | C83: BRB - BANCO DE BRASILIA S/A | D83: LFSN220093X | E83: Lei 12.249/2010 - Resolução 4.955/2021 do CMN | F83: Nível II | G83: Nível II | H83: Conglomerado | I83: Letra financeira | J83: R$ 9,244,670.92 | K83: R$ 9,900,000.00 | L83: passivo - custo amortizado | M83: 2022-07-08 | N83: Com vencimento | O83: 2028-07-10 | P83: Não | Q83: (1) Não há uma data específica, apenas quando for solicitado ao Bacen | R83: (2) Não há vinculação regulatória ou fiscal para resgate ou recompra | S83: (3) O valor pode ser parcial ou total, conforme autorização do Bacen | T83: Não se aplica | U83: Fixo | V83: 130% CDI | W83: Não | X83: Mandatório | Y83: Não | Z83: Cumulativo | AA83: Não conversível | AB83: Não se aplica | AC83: Não se aplica | AD83: Não se aplica | AE83: Não se aplica | AF83: Não se aplica | AG83: Não se aplica | AH83: Sim | AI83: Os títulos serão extintos, permanente e em valor no mínimo correspondente ao saldo computado no Nível II do Patrimônio de Referência do BRB – Banco de Brasília S.A nas seguintes condições: 1. seja verificada a divulgação pelo BRB – Banco de Brasília S.A. de que seu Capital Principal está em patamar inferior a 4,5% (quatro inteiros e cinco décimos por cento) do montante RWA, estabelecida pela regulamentação vigente; ou 2. seja verificada, em lei específica, a assinatura de compromisso de aporte para o BRB – Banco de Brasília S.A.; 3. seja decretado pelo BACEN o regime de administração especial temporária ou intervenção do BRB – Banco de Brasília S.A.; ou 4. seja determinado pelo BACEN, segundo critérios estabelecidos em regulamento específico editado pelo Conselho Monetário Nacional,a extinção do instrumento. | AJ83: Totalmente | AK83: Permanente | AL83: Contratual | AM83: Não | AN83: Não | AO83: Não se aplica
B84: 75 | C84: BRB - BANCO DE BRASILIA S/A | D84: LFSN22009F0 | E84: Lei 12.249/2010 - Resolução 4.955/2021 do CMN | F84: Nível II | G84: Nível II | H84: Conglomerado | I84: Letra financeira | J84: R$ 11,428,875.00 | K84: R$ 12,300,000.00 | L84: passivo - custo amortizado | M84: 2022-07-19 | N84: Com vencimento | O84: 2028-07-19 | P84: Não | Q84: (1) Não há uma data específica, apenas quando for solicitado ao Bacen | R84: (2) Não há vinculação regulatória ou fiscal para resgate ou recompra | S84: (3) O valor pode ser parcial ou total, conforme autorização do Bacen | T84: Não se aplica | U84: Fixo | V84: 130% CDI | W84: Não | X84: Mandatório | Y84: Não | Z84: Cumulativo | AA84: Não conversível | AB84: Não se aplica | AC84: Não se aplica | AD84: Não se aplica | AE84: Não se aplica | AF84: Não se aplica | AG84: Não se aplica | AH84: Sim | AI84: Os títulos serão extintos, permanente e em valor no mínimo correspondente ao saldo computado no Nível II do Patrimônio de Referência do BRB – Banco de Brasília S.A nas seguintes condições: 1. seja verificada a divulgação pelo BRB – Banco de Brasília S.A. de que seu Capital Principal está em patamar inferior a 4,5% (quatro inteiros e cinco décimos por cento) do montante RWA, estabelecida pela regulamentação vigente; ou 2. seja verificada, em lei específica, a assinatura de compromisso de aporte para o BRB – Banco de Brasília S.A.; 3. seja decretado pelo BACEN o regime de administração especial temporária ou intervenção do BRB – Banco de Brasília S.A.; ou 4. seja determinado pelo BACEN, segundo critérios estabelecidos em regulamento específico editado pelo Conselho Monetário Nacional,a extinção do instrumento. | AJ84: Totalmente | AK84: Permanente | AL84: Contratual | AM84: Não | AN84: Não | AO84: Não se aplica
B85: 76 | C85: BRB - BANCO DE BRASILIA S/A | D85: LFSN22009KI | E85: Lei 12.249/2010 - Resolução 4.955/2021 do CMN | F85: Nível II | G85: Nível II | H85: Conglomerado | I85: Letra financeira | J85: R$ 835,603.96 | K85: R$ 900,000.00 | L85: passivo - custo amortizado | M85: 2022-07-20 | N85: Com vencimento | O85: 2028-07-20 | P85: Não | Q85: (1) Não há uma data específica, apenas quando for solicitado ao Bacen | R85: (2) Não há vinculação regulatória ou fiscal para resgate ou recompra | S85: (3) O valor pode ser parcial ou total, conforme autorização do Bacen | T85: Não se aplica | U85: Fixo | V85: 130% CDI | W85: Não | X85: Mandatório | Y85: Não | Z85: Cumulativo | AA85: Não conversível | AB85: Não se aplica | AC85: Não se aplica | AD85: Não se aplica | AE85: Não se aplica | AF85: Não se aplica | AG85: Não se aplica | AH85: Sim | AI85: Os títulos serão extintos, permanente e em valor no mínimo correspondente ao saldo computado no Nível II do Patrimônio de Referência do BRB – Banco de Brasília S.A nas seguintes condições: 1. seja verificada a divulgação pelo BRB – Banco de Brasília S.A. de que seu Capital Principal está em patamar inferior a 4,5% (quatro inteiros e cinco décimos por cento) do montante RWA, estabelecida pela regulamentação vigente; ou 2. seja verificada, em lei específica, a assinatura de compromisso de aporte para o BRB – Banco de Brasília S.A.; 3. seja decretado pelo BACEN o regime de administração especial temporária ou intervenção do BRB – Banco de Brasília S.A.; ou 4. seja determinado pelo BACEN, segundo critérios estabelecidos em regulamento específico editado pelo Conselho Monetário Nacional,a extinção do instrumento. | AJ85: Totalmente | AK85: Permanente | AL85: Contratual | AM85: Não | AN85: Não | AO85: Não se aplica
B86: 77 | C86: BRB - BANCO DE BRASILIA S/A | D86: LFSN22009KR | E86: Lei 12.249/2010 - Resolução 4.955/2021 do CMN | F86: Nível II | G86: Nível II | H86: Conglomerado | I86: Letra financeira | J86: R$ 5,288,965.99 | K86: R$ 5,700,000.00 | L86: passivo - custo amortizado | M86: 2022-07-21 | N86: Com vencimento | O86: 2028-07-21 | P86: Não | Q86: (1) Não há uma data específica, apenas quando for solicitado ao Bacen | R86: (2) Não há vinculação regulatória ou fiscal para resgate ou recompra | S86: (3) O valor pode ser parcial ou total, conforme autorização do Bacen | T86: Não se aplica | U86: Fixo | V86: 130% CDI | W86: Não | X86: Mandatório | Y86: Não | Z86: Cumulativo | AA86: Não conversível | AB86: Não se aplica | AC86: Não se aplica | AD86: Não se aplica | AE86: Não se aplica | AF86: Não se aplica | AG86: Não se aplica | AH86: Sim | AI86: Os títulos serão extintos, permanente e em valor no mínimo correspondente ao saldo computado no Nível II do Patrimônio de Referência do BRB – Banco de Brasília S.A nas seguintes condições: 1. seja verificada a divulgação pelo BRB – Banco de Brasília S.A. de que seu Capital Principal está em patamar inferior a 4,5% (quatro inteiros e cinco décimos por cento) do montante RWA, estabelecida pela regulamentação vigente; ou 2. seja verificada, em lei específica, a assinatura de compromisso de aporte para o BRB – Banco de Brasília S.A.; 3. seja decretado pelo BACEN o regime de administração especial temporária ou intervenção do BRB – Banco de Brasília S.A.; ou 4. seja determinado pelo BACEN, segundo critérios estabelecidos em regulamento específico editado pelo Conselho Monetário Nacional,a extinção do instrumento. | AJ86: Totalmente | AK86: Permanente | AL86: Contratual | AM86: Não | AN86: Não | AO86: Não se aplica
B87: 78 | C87: BRB - BANCO DE BRASILIA S/A | D87: LFSN22009LL | E87: Lei 12.249/2010 - Resolução 4.955/2021 do CMN | F87: Nível II | G87: Nível II | H87: Conglomerado | I87: Letra financeira | J87: R$ 7,643,054.51 | K87: R$ 9,000,000.00 | L87: passivo - custo amortizado | M87: 2022-07-22 | N87: Com vencimento | O87: 2028-07-24 | P87: Não | Q87: (1) Não há uma data específica, apenas quando for solicitado ao Bacen | R87: (2) Não há vinculação regulatória ou fiscal para resgate ou recompra | S87: (3) O valor pode ser parcial ou total, conforme autorização do Bacen | T87: Não se aplica | U87: Fixo | V87: IPCA + 8% | W87: Não | X87: Mandatório | Y87: Não | Z87: Cumulativo | AA87: Não conversível | AB87: Não se aplica | AC87: Não se aplica | AD87: Não se aplica | AE87: Não se aplica | AF87: Não se aplica | AG87: Não se aplica | AH87: Sim | AI87: Os títulos serão extintos, permanente e em valor no mínimo correspondente ao saldo computado no Nível II do Patrimônio de Referência do BRB – Banco de Brasília S.A nas seguintes condições: 1. seja verificada a divulgação pelo BRB – Banco de Brasília S.A. de que seu Capital Principal está em patamar inferior a 4,5% (quatro inteiros e cinco décimos por cento) do montante RWA, estabelecida pela regulamentação vigente; ou 2. seja verificada, em lei específica, a assinatura de compromisso de aporte para o BRB – Banco de Brasília S.A.; 3. seja decretado pelo BACEN o regime de administração especial temporária ou intervenção do BRB – Banco de Brasília S.A.; ou 4. seja determinado pelo BACEN, segundo critérios estabelecidos em regulamento específico editado pelo Conselho Monetário Nacional,a extinção do instrumento. | AJ87: Totalmente | AK87: Permanente | AL87: Contratual | AM87: Não | AN87: Não | AO87: Não se aplica
B88: 79 | C88: BRB - BANCO DE BRASILIA S/A | D88: LFSN22009RR | E88: Lei 12.249/2010 - Resolução 4.955/2021 do CMN | F88: Nível II | G88: Nível II | H88: Conglomerado | I88: Letra financeira | J88: R$ 6,657,226.66 | K88: R$ 7,200,000.00 | L88: passivo - custo amortizado | M88: 2022-07-29 | N88: Com vencimento | O88: 2028-07-31 | P88: Não | Q88: (1) Não há uma data específica, apenas quando for solicitado ao Bacen | R88: (2) Não há vinculação regulatória ou fiscal para resgate ou recompra | S88: (3) O valor pode ser parcial ou total, conforme autorização do Bacen | T88: Não se aplica | U88: Fixo | V88: 130% CDI | W88: Não | X88: Mandatório | Y88: Não | Z88: Cumulativo | AA88: Não conversível | AB88: Não se aplica | AC88: Não se aplica | AD88: Não se aplica | AE88: Não se aplica | AF88: Não se aplica | AG88: Não se aplica | AH88: Sim | AI88: Os títulos serão extintos, permanente e em valor no mínimo correspondente ao saldo computado no Nível II do Patrimônio de Referência do BRB – Banco de Brasília S.A nas seguintes condições: 1. seja verificada a divulgação pelo BRB – Banco de Brasília S.A. de que seu Capital Principal está em patamar inferior a 4,5% (quatro inteiros e cinco décimos por cento) do montante RWA, estabelecida pela regulamentação vigente; ou 2. seja verificada, em lei específica, a assinatura de compromisso de aporte para o BRB – Banco de Brasília S.A.; 3. seja decretado pelo BACEN o regime de administração especial temporária ou intervenção do BRB – Banco de Brasília S.A.; ou 4. seja determinado pelo BACEN, segundo critérios estabelecidos em regulamento específico editado pelo Conselho Monetário Nacional,a extinção do instrumento. | AJ88: Totalmente | AK88: Permanente | AL88: Contratual | AM88: Não | AN88: Não | AO88: Não se aplica
B89: 80 | C89: BRB - BANCO DE BRASILIA S/A | D89: LFSN2200A15 | E89: Lei 12.249/2010 - Resolução 4.955/2021 do CMN | F89: Nível II | G89: Nível II | H89: Conglomerado | I89: Letra financeira | J89: R$ 3,681,570.31 | K89: R$ 4,000,000.00 | L89: passivo - custo amortizado | M89: 2022-08-10 | N89: Com vencimento | O89: 2028-08-10 | P89: Não | Q89: (1) Não há uma data específica, apenas quando for solicitado ao Bacen | R89: (2) Não há vinculação regulatória ou fiscal para resgate ou recompra | S89: (3) O valor pode ser parcial ou total, conforme autorização do Bacen | T89: Não se aplica | U89: Fixo | V89: 130% CDI | W89: Não | X89: Mandatório | Y89: Não | Z89: Cumulativo | AA89: Não conversível | AB89: Não se aplica | AC89: Não se aplica | AD89: Não se aplica | AE89: Não se aplica | AF89: Não se aplica | AG89: Não se aplica | AH89: Sim | AI89: Os títulos serão extintos, permanente e em valor no mínimo correspondente ao saldo computado no Nível II do Patrimônio de Referência do BRB – Banco de Brasília S.A nas seguintes condições: 1. seja verificada a divulgação pelo BRB – Banco de Brasília S.A. de que seu Capital Principal está em patamar inferior a 4,5% (quatro inteiros e cinco décimos por cento) do montante RWA, estabelecida pela regulamentação vigente; ou 2. seja verificada, em lei específica, a assinatura de compromisso de aporte para o BRB – Banco de Brasília S.A.; 3. seja decretado pelo BACEN o regime de administração especial temporária ou intervenção do BRB – Banco de Brasília S.A.; ou 4. seja determinado pelo BACEN, segundo critérios estabelecidos em regulamento específico editado pelo Conselho Monetário Nacional,a extinção do instrumento. | AJ89: Totalmente | AK89: Permanente | AL89: Contratual | AM89: Não | AN89: Não | AO89: Não se aplica
B90: 81 | C90: BRB - BANCO DE BRASILIA S/A | D90: LFSN2200A16 | E90: Lei 12.249/2010 - Resolução 4.955/2021 do CMN | F90: Nível II | G90: Nível II | H90: Conglomerado | I90: Letra financeira | J90: R$ 25,001,541.06 | K90: R$ 20,100,000.00 | L90: passivo - custo amortizado | M90: 2022-08-10 | N90: Com vencimento | O90: 2029-08-10 | P90: Não | Q90: (1) Não há uma data específica, apenas quando for solicitado ao Bacen | R90: (2) Não há vinculação regulatória ou fiscal para resgate ou recompra | S90: (3) O valor pode ser parcial ou total, conforme autorização do Bacen | T90: Não se aplica | U90: Fixo | V90: 135% CDI | W90: Não | X90: Mandatório | Y90: Não | Z90: Cumulativo | AA90: Não conversível | AB90: Não se aplica | AC90: Não se aplica | AD90: Não se aplica | AE90: Não se aplica | AF90: Não se aplica | AG90: Não se aplica | AH90: Sim | AI90: Os títulos serão extintos, permanente e em valor no mínimo correspondente ao saldo computado no Nível II do Patrimônio de Referência do BRB – Banco de Brasília S.A nas seguintes condições: 1. seja verificada a divulgação pelo BRB – Banco de Brasília S.A. de que seu Capital Principal está em patamar inferior a 4,5% (quatro inteiros e cinco décimos por cento) do montante RWA, estabelecida pela regulamentação vigente; ou 2. seja verificada, em lei específica, a assinatura de compromisso de aporte para o BRB – Banco de Brasília S.A.; 3. seja decretado pelo BACEN o regime de administração especial temporária ou intervenção do BRB – Banco de Brasília S.A.; ou 4. seja determinado pelo BACEN, segundo critérios estabelecidos em regulamento específico editado pelo Conselho Monetário Nacional,a extinção do instrumento. | AJ90: Totalmente | AK90: Permanente | AL90: Contratual | AM90: Não | AN90: Não | AO90: Não se aplica
B91: 82 | C91: BRB - BANCO DE BRASILIA S/A | D91: LFSN2200A1C | E91: Lei 12.249/2010 - Resolução 4.955/2021 do CMN | F91: Nível II | G91: Nível II | H91: Conglomerado | I91: Letra financeira | J91: R$ 37,291,659.06 | K91: R$ 30,000,000.00 | L91: passivo - custo amortizado | M91: 2022-08-11 | N91: Com vencimento | O91: 2029-08-13 | P91: Não | Q91: (1) Não há uma data específica, apenas quando for solicitado ao Bacen | R91: (2) Não há vinculação regulatória ou fiscal para resgate ou recompra | S91: (3) O valor pode ser parcial ou total, conforme autorização do Bacen | T91: Não se aplica | U91: Fixo | V91: 135% CDI | W91: Não | X91: Mandatório | Y91: Não | Z91: Cumulativo | AA91: Não conversível | AB91: Não se aplica | AC91: Não se aplica | AD91: Não se aplica | AE91: Não se aplica | AF91: Não se aplica | AG91: Não se aplica | AH91: Sim | AI91: Os títulos serão extintos, permanente e em valor no mínimo correspondente ao saldo computado no Nível II do Patrimônio de Referência do BRB – Banco de Brasília S.A nas seguintes condições: 1. seja verificada a divulgação pelo BRB – Banco de Brasília S.A. de que seu Capital Principal está em patamar inferior a 4,5% (quatro inteiros e cinco décimos por cento) do montante RWA, estabelecida pela regulamentação vigente; ou 2. seja verificada, em lei específica, a assinatura de compromisso de aporte para o BRB – Banco de Brasília S.A.; 3. seja decretado pelo BACEN o regime de administração especial temporária ou intervenção do BRB – Banco de Brasília S.A.; ou 4. seja determinado pelo BACEN, segundo critérios estabelecidos em regulamento específico editado pelo Conselho Monetário Nacional,a extinção do instrumento. | AJ91: Totalmente | AK91: Permanente | AL91: Contratual | AM91: Não | AN91: Não | AO91: Não se aplica
B92: 83 | C92: BRB - BANCO DE BRASILIA S/A | D92: LFSN2200A1D | E92: Lei 12.249/2010 - Resolução 4.955/2021 do CMN | F92: Nível II | G92: Nível II | H92: Conglomerado | I92: Letra financeira | J92: R$ 62,229,701.61 | K92: R$ 50,100,000.00 | L92: passivo - custo amortizado | M92: 2022-08-12 | N92: Com vencimento | O92: 2029-08-13 | P92: Não | Q92: (1) Não há uma data específica, apenas quando for solicitado ao Bacen | R92: (2) Não há vinculação regulatória ou fiscal para resgate ou recompra | S92: (3) O valor pode ser parcial ou total, conforme autorização do Bacen | T92: Não se aplica | U92: Fixo | V92: 135% CDI | W92: Não | X92: Mandatório | Y92: Não | Z92: Cumulativo | AA92: Não conversível | AB92: Não se aplica | AC92: Não se aplica | AD92: Não se aplica | AE92: Não se aplica | AF92: Não se aplica | AG92: Não se aplica | AH92: Sim | AI92: Os títulos serão extintos, permanente e em valor no mínimo correspondente ao saldo computado no Nível II do Patrimônio de Referência do BRB – Banco de Brasília S.A nas seguintes condições: 1. seja verificada a divulgação pelo BRB – Banco de Brasília S.A. de que seu Capital Principal está em patamar inferior a 4,5% (quatro inteiros e cinco décimos por cento) do montante RWA, estabelecida pela regulamentação vigente; ou 2. seja verificada, em lei específica, a assinatura de compromisso de aporte para o BRB – Banco de Brasília S.A.; 3. seja decretado pelo BACEN o regime de administração especial temporária ou intervenção do BRB – Banco de Brasília S.A.; ou 4. seja determinado pelo BACEN, segundo critérios estabelecidos em regulamento específico editado pelo Conselho Monetário Nacional,a extinção do instrumento. | AJ92: Totalmente | AK92: Permanente | AL92: Contratual | AM92: Não | AN92: Não | AO92: Não se aplica
B93: 84 | C93: BRB - BANCO DE BRASILIA S/A | D93: LFSN2200A1E | E93: Lei 12.249/2010 - Resolução 4.955/2021 do CMN | F93: Nível II | G93: Nível II | H93: Conglomerado | I93: Letra financeira | J93: R$ 124,459,404.98 | K93: R$ 100,200,000.00 | L93: passivo - custo amortizado | M93: 2022-08-12 | N93: Com vencimento | O93: 2029-08-13 | P93: Não | Q93: (1) Não há uma data específica, apenas quando for solicitado ao Bacen | R93: (2) Não há vinculação regulatória ou fiscal para resgate ou recompra | S93: (3) O valor pode ser parcial ou total, conforme autorização do Bacen | T93: Não se aplica | U93: Fixo | V93: 135% CDI | W93: Não | X93: Mandatório | Y93: Não | Z93: Cumulativo | AA93: Não conversível | AB93: Não se aplica | AC93: Não se aplica | AD93: Não se aplica | AE93: Não se aplica | AF93: Não se aplica | AG93: Não se aplica | AH93: Sim | AI93: Os títulos serão extintos, permanente e em valor no mínimo correspondente ao saldo computado no Nível II do Patrimônio de Referência do BRB – Banco de Brasília S.A nas seguintes condições: 1. seja verificada a divulgação pelo BRB – Banco de Brasília S.A. de que seu Capital Principal está em patamar inferior a 4,5% (quatro inteiros e cinco décimos por cento) do montante RWA, estabelecida pela regulamentação vigente; ou 2. seja verificada, em lei específica, a assinatura de compromisso de aporte para o BRB – Banco de Brasília S.A.; 3. seja decretado pelo BACEN o regime de administração especial temporária ou intervenção do BRB – Banco de Brasília S.A.; ou 4. seja determinado pelo BACEN, segundo critérios estabelecidos em regulamento específico editado pelo Conselho Monetário Nacional,a extinção do instrumento. | AJ93: Totalmente | AK93: Permanente | AL93: Contratual | AM93: Não | AN93: Não | AO93: Não se aplica
B94: 85 | C94: BRB - BANCO DE BRASILIA S/A | D94: LFSN2200A6R | E94: Lei 12.249/2010 - Resolução 4.955/2021 do CMN | F94: Nível II | G94: Nível II | H94: Conglomerado | I94: Letra financeira | J94: R$ 62,168,856.22 | K94: R$ 50,100,000.00 | L94: passivo - custo amortizado | M94: 2022-08-16 | N94: Com vencimento | O94: 2029-08-16 | P94: Não | Q94: (1) Não há uma data específica, apenas quando for solicitado ao Bacen | R94: (2) Não há vinculação regulatória ou fiscal para resgate ou recompra | S94: (3) O valor pode ser parcial ou total, conforme autorização do Bacen | T94: Não se aplica | U94: Fixo | V94: 135% CDI | W94: Não | X94: Mandatório | Y94: Não | Z94: Cumulativo | AA94: Não conversível | AB94: Não se aplica | AC94: Não se aplica | AD94: Não se aplica | AE94: Não se aplica | AF94: Não se aplica | AG94: Não se aplica | AH94: Sim | AI94: Os títulos serão extintos, permanente e em valor no mínimo correspondente ao saldo computado no Nível II do Patrimônio de Referência do BRB – Banco de Brasília S.A nas seguintes condições: 1. seja verificada a divulgação pelo BRB – Banco de Brasília S.A. de que seu Capital Principal está em patamar inferior a 4,5% (quatro inteiros e cinco décimos por cento) do montante RWA, estabelecida pela regulamentação vigente; ou 2. seja verificada, em lei específica, a assinatura de compromisso de aporte para o BRB – Banco de Brasília S.A.; 3. seja decretado pelo BACEN o regime de administração especial temporária ou intervenção do BRB – Banco de Brasília S.A.; ou 4. seja determinado pelo BACEN, segundo critérios estabelecidos em regulamento específico editado pelo Conselho Monetário Nacional,a extinção do instrumento. | AJ94: Totalmente | AK94: Permanente | AL94: Contratual | AM94: Não | AN94: Não | AO94: Não se aplica
B95: 86 | C95: BRB - BANCO DE BRASILIA S/A | D95: LFSN2200AO8 | E95: Lei 12.249/2010 - Resolução 4.955/2021 do CMN | F95: Nível II | G95: Nível II | H95: Conglomerado | I95: Letra financeira | J95: R$ 122,143,958.53 | K95: R$ 100,200,000.00 | L95: passivo - custo amortizado | M95: 2022-09-21 | N95: Com vencimento | O95: 2029-09-21 | P95: Não | Q95: (1) Não há uma data específica, apenas quando for solicitado ao Bacen | R95: (2) Não há vinculação regulatória ou fiscal para resgate ou recompra | S95: (3) O valor pode ser parcial ou total, conforme autorização do Bacen | T95: Não se aplica | U95: Fixo | V95: 135% CDI | W95: Não | X95: Mandatório | Y95: Não | Z95: Cumulativo | AA95: Não conversível | AB95: Não se aplica | AC95: Não se aplica | AD95: Não se aplica | AE95: Não se aplica | AF95: Não se aplica | AG95: Não se aplica | AH95: Sim | AI95: Os títulos serão extintos, permanente e em valor no mínimo correspondente ao saldo computado no Nível II do Patrimônio de Referência do BRB – Banco de Brasília S.A nas seguintes condições: 1. seja verificada a divulgação pelo BRB – Banco de Brasília S.A. de que seu Capital Principal está em patamar inferior a 4,5% (quatro inteiros e cinco décimos por cento) do montante RWA, estabelecida pela regulamentação vigente; ou 2. seja verificada, em lei específica, a assinatura de compromisso de aporte para o BRB – Banco de Brasília S.A.; 3. seja decretado pelo BACEN o regime de administração especial temporária ou intervenção do BRB – Banco de Brasília S.A.; ou 4. seja determinado pelo BACEN, segundo critérios estabelecidos em regulamento específico editado pelo Conselho Monetário Nacional,a extinção do instrumento. | AJ95: Totalmente | AK95: Permanente | AL95: Contratual | AM95: Não | AN95: Não | AO95: Não se aplica
B96: 87 | C96: BRB - BANCO DE BRASILIA S/A | D96: LFSN2200ASZ | E96: Lei 12.249/2010 - Resolução 4.955/2021 do CMN | F96: Nível II | G96: Nível II | H96: Conglomerado | I96: Letra financeira | J96: R$ 50,314,451.45 | K96: R$ 41,400,000.00 | L96: passivo - custo amortizado | M96: 2022-09-27 | N96: Com vencimento | O96: 2029-09-27 | P96: Não | Q96: (1) Não há uma data específica, apenas quando for solicitado ao Bacen | R96: (2) Não há vinculação regulatória ou fiscal para resgate ou recompra | S96: (3) O valor pode ser parcial ou total, conforme autorização do Bacen | T96: Não se aplica | U96: Fixo | V96: 135% CDI | W96: Não | X96: Mandatório | Y96: Não | Z96: Cumulativo | AA96: Não conversível | AB96: Não se aplica | AC96: Não se aplica | AD96: Não se aplica | AE96: Não se aplica | AF96: Não se aplica | AG96: Não se aplica | AH96: Sim | AI96: Os títulos serão extintos, permanente e em valor no mínimo correspondente ao saldo computado no Nível II do Patrimônio de Referência do BRB – Banco de Brasília S.A nas seguintes condições: 1. seja verificada a divulgação pelo BRB – Banco de Brasília S.A. de que seu Capital Principal está em patamar inferior a 4,5% (quatro inteiros e cinco décimos por cento) do montante RWA, estabelecida pela regulamentação vigente; ou 2. seja verificada, em lei específica, a assinatura de compromisso de aporte para o BRB – Banco de Brasília S.A.; 3. seja decretado pelo BACEN o regime de administração especial temporária ou intervenção do BRB – Banco de Brasília S.A.; ou 4. seja determinado pelo BACEN, segundo critérios estabelecidos em regulamento específico editado pelo Conselho Monetário Nacional,a extinção do instrumento. | AJ96: Totalmente | AK96: Permanente | AL96: Contratual | AM96: Não | AN96: Não | AO96: Não se aplica
B97: 88 | C97: BRB - BANCO DE BRASILIA S/A | D97: LFSN2200AT0 | E97: Lei 12.249/2010 - Resolução 4.955/2021 do CMN | F97: Nível II | G97: Nível II | H97: Conglomerado | I97: Letra financeira | J97: R$ 10,376,677.22 | K97: R$ 8,700,000.00 | L97: passivo - custo amortizado | M97: 2022-09-27 | N97: Com vencimento | O97: 2029-09-27 | P97: Não | Q97: (1) Não há uma data específica, apenas quando for solicitado ao Bacen | R97: (2) Não há vinculação regulatória ou fiscal para resgate ou recompra | S97: (3) O valor pode ser parcial ou total, conforme autorização do Bacen | T97: Não se aplica | U97: Fixo | V97: 132% CDI | W97: Não | X97: Mandatório | Y97: Não | Z97: Cumulativo | AA97: Não conversível | AB97: Não se aplica | AC97: Não se aplica | AD97: Não se aplica | AE97: Não se aplica | AF97: Não se aplica | AG97: Não se aplica | AH97: Sim | AI97: Os títulos serão extintos, permanente e em valor no mínimo correspondente ao saldo computado no Nível II do Patrimônio de Referência do BRB – Banco de Brasília S.A nas seguintes condições: 1. seja verificada a divulgação pelo BRB – Banco de Brasília S.A. de que seu Capital Principal está em patamar inferior a 4,5% (quatro inteiros e cinco décimos por cento) do montante RWA, estabelecida pela regulamentação vigente; ou 2. seja verificada, em lei específica, a assinatura de compromisso de aporte para o BRB – Banco de Brasília S.A.; 3. seja decretado pelo BACEN o regime de administração especial temporária ou intervenção do BRB – Banco de Brasília S.A.; ou 4. seja determinado pelo BACEN, segundo critérios estabelecidos em regulamento específico editado pelo Conselho Monetário Nacional,a extinção do instrumento. | AJ97: Totalmente | AK97: Permanente | AL97: Contratual | AM97: Não | AN97: Não | AO97: Não se aplica
B98: 89 | C98: BRB - BANCO DE BRASILIA S/A | D98: LFSN2200ATC | E98: Lei 12.249/2010 - Resolução 4.955/2021 do CMN | F98: Nível II | G98: Nível II | H98: Conglomerado | I98: Letra financeira | J98: R$ 2,977,162.59 | K98: R$ 2,500,000.00 | L98: passivo - custo amortizado | M98: 2022-09-29 | N98: Com vencimento | O98: 2029-09-28 | P98: Não | Q98: (1) Não há uma data específica, apenas quando for solicitado ao Bacen | R98: (2) Não há vinculação regulatória ou fiscal para resgate ou recompra | S98: (3) O valor pode ser parcial ou total, conforme autorização do Bacen | T98: Não se aplica | U98: Fixo | V98: 132% CDI | W98: Não | X98: Mandatório | Y98: Não | Z98: Cumulativo | AA98: Não conversível | AB98: Não se aplica | AC98: Não se aplica | AD98: Não se aplica | AE98: Não se aplica | AF98: Não se aplica | AG98: Não se aplica | AH98: Sim | AI98: Os títulos serão extintos, permanente e em valor no mínimo correspondente ao saldo computado no Nível II do Patrimônio de Referência do BRB – Banco de Brasília S.A nas seguintes condições: 1. seja verificada a divulgação pelo BRB – Banco de Brasília S.A. de que seu Capital Principal está em patamar inferior a 4,5% (quatro inteiros e cinco décimos por cento) do montante RWA, estabelecida pela regulamentação vigente; ou 2. seja verificada, em lei específica, a assinatura de compromisso de aporte para o BRB – Banco de Brasília S.A.; 3. seja decretado pelo BACEN o regime de administração especial temporária ou intervenção do BRB – Banco de Brasília S.A.; ou 4. seja determinado pelo BACEN, segundo critérios estabelecidos em regulamento específico editado pelo Conselho Monetário Nacional,a extinção do instrumento. | AJ98: Totalmente | AK98: Permanente | AL98: Contratual | AM98: Não | AN98: Não | AO98: Não se aplica
B99: 90 | C99: BRB - BANCO DE BRASILIA S/A | D99: LFSN2200ATD | E99: Lei 12.249/2010 - Resolução 4.955/2021 do CMN | F99: Nível II | G99: Nível II | H99: Conglomerado | I99: Letra financeira | J99: R$ 2,977,162.59 | K99: R$ 2,500,000.00 | L99: passivo - custo amortizado | M99: 2022-09-29 | N99: Com vencimento | O99: 2029-09-28 | P99: Não | Q99: (1) Não há uma data específica, apenas quando for solicitado ao Bacen | R99: (2) Não há vinculação regulatória ou fiscal para resgate ou recompra | S99: (3) O valor pode ser parcial ou total, conforme autorização do Bacen | T99: Não se aplica | U99: Fixo | V99: 132% CDI | W99: Não | X99: Mandatório | Y99: Não | Z99: Cumulativo | AA99: Não conversível | AB99: Não se aplica | AC99: Não se aplica | AD99: Não se aplica | AE99: Não se aplica | AF99: Não se aplica | AG99: Não se aplica | AH99: Sim | AI99: Os títulos serão extintos, permanente e em valor no mínimo correspondente ao saldo computado no Nível II do Patrimônio de Referência do BRB – Banco de Brasília S.A nas seguintes condições: 1. seja verificada a divulgação pelo BRB – Banco de Brasília S.A. de que seu Capital Principal está em patamar inferior a 4,5% (quatro inteiros e cinco décimos por cento) do montante RWA, estabelecida pela regulamentação vigente; ou 2. seja verificada, em lei específica, a assinatura de compromisso de aporte para o BRB – Banco de Brasília S.A.; 3. seja decretado pelo BACEN o regime de administração especial temporária ou intervenção do BRB – Banco de Brasília S.A.; ou 4. seja determinado pelo BACEN, segundo critérios estabelecidos em regulamento específico editado pelo Conselho Monetário Nacional,a extinção do instrumento. | AJ99: Totalmente | AK99: Permanente | AL99: Contratual | AM99: Não | AN99: Não | AO99: Não se aplica
B100: 91 | C100: BRB - BANCO DE BRASILIA S/A | D100: LFSN2200B4D | E100: Lei 12.249/2010 - Resolução 4.955/2021 do CMN | F100: Nível II | G100: Nível II | H100: Conglomerado | I100: Letra financeira | J100: R$ 19,556,635.59 | K100: R$ 16,200,000.00 | L100: passivo - custo amortizado | M100: 2022-10-11 | N100: Com vencimento | O100: 2029-10-11 | P100: Não | Q100: (1) Não há uma data específica, apenas quando for solicitado ao Bacen | R100: (2) Não há vinculação regulatória ou fiscal para resgate ou recompra | S100: (3) O valor pode ser parcial ou total, conforme autorização do Bacen | T100: Não se aplica | U100: Fixo | V100: 135% CDI | W100: Não | X100: Mandatório | Y100: Não | Z100: Cumulativo | AA100: Não conversível | AB100: Não se aplica | AC100: Não se aplica | AD100: Não se aplica | AE100: Não se aplica | AF100: Não se aplica | AG100: Não se aplica | AH100: Sim | AI100: Os títulos serão extintos, permanente e em valor no mínimo correspondente ao saldo computado no Nível II do Patrimônio de Referência do BRB – Banco de Brasília S.A nas seguintes condições: 1. seja verificada a divulgação pelo BRB – Banco de Brasília S.A. de que seu Capital Principal está em patamar inferior a 4,5% (quatro inteiros e cinco décimos por cento) do montante RWA, estabelecida pela regulamentação vigente; ou 2. seja verificada, em lei específica, a assinatura de compromisso de aporte para o BRB – Banco de Brasília S.A.; 3. seja decretado pelo BACEN o regime de administração especial temporária ou intervenção do BRB – Banco de Brasília S.A.; ou 4. seja determinado pelo BACEN, segundo critérios estabelecidos em regulamento específico editado pelo Conselho Monetário Nacional,a extinção do instrumento. | AJ100: Totalmente | AK100: Permanente | AL100: Contratual | AM100: Não | AN100: Não | AO100: Não se aplica
B101: 92 | C101: BRB - BANCO DE BRASILIA S/A | D101: LFSN2200B9Q | E101: Lei 12.249/2010 - Resolução 4.955/2021 do CMN | F101: Nível II | G101: Nível II | H101: Conglomerado | I101: Letra financeira | J101: R$ 2,361,130.94 | K101: R$ 2,000,000.00 | L101: passivo - custo amortizado | M101: 2022-10-19 | N101: Com vencimento | O101: 2029-10-19 | P101: Não | Q101: (1) Não há uma data específica, apenas quando for solicitado ao Bacen | R101: (2) Não há vinculação regulatória ou fiscal para resgate ou recompra | S101: (3) O valor pode ser parcial ou total, conforme autorização do Bacen | T101: Não se aplica | U101: Fixo | V101: 132% CDI | W101: Não | X101: Mandatório | Y101: Não | Z101: Cumulativo | AA101: Não conversível | AB101: Não se aplica | AC101: Não se aplica | AD101: Não se aplica | AE101: Não se aplica | AF101: Não se aplica | AG101: Não se aplica | AH101: Sim | AI101: Os títulos serão extintos, permanente e em valor no mínimo correspondente ao saldo computado no Nível II do Patrimônio de Referência do BRB – Banco de Brasília S.A nas seguintes condições: 1. seja verificada a divulgação pelo BRB – Banco de Brasília S.A. de que seu Capital Principal está em patamar inferior a 4,5% (quatro inteiros e cinco décimos por cento) do montante RWA, estabelecida pela regulamentação vigente; ou 2. seja verificada, em lei específica, a assinatura de compromisso de aporte para o BRB – Banco de Brasília S.A.; 3. seja decretado pelo BACEN o regime de administração especial temporária ou intervenção do BRB – Banco de Brasília S.A.; ou 4. seja determinado pelo BACEN, segundo critérios estabelecidos em regulamento específico editado pelo Conselho Monetário Nacional,a extinção do instrumento. | AJ101: Totalmente | AK101: Permanente | AL101: Contratual | AM101: Não | AN101: Não | AO101: Não se aplica
B102: 93 | C102: BRB - BANCO DE BRASILIA S/A | D102: LFSN2200B9R | E102: Lei 12.249/2010 - Resolução 4.955/2021 do CMN | F102: Nível II | G102: Nível II | H102: Conglomerado | I102: Letra financeira | J102: R$ 3,541,699.73 | K102: R$ 3,000,000.00 | L102: passivo - custo amortizado | M102: 2022-10-19 | N102: Com vencimento | O102: 2029-10-19 | P102: Não | Q102: (1) Não há uma data específica, apenas quando for solicitado ao Bacen | R102: (2) Não há vinculação regulatória ou fiscal para resgate ou recompra | S102: (3) O valor pode ser parcial ou total, conforme autorização do Bacen | T102: Não se aplica | U102: Fixo | V102: 132% CDI | W102: Não | X102: Mandatório | Y102: Não | Z102: Cumulativo | AA102: Não conversível | AB102: Não se aplica | AC102: Não se aplica | AD102: Não se aplica | AE102: Não se aplica | AF102: Não se aplica | AG102: Não se aplica | AH102: Sim | AI102: Os títulos serão extintos, permanente e em valor no mínimo correspondente ao saldo computado no Nível II do Patrimônio de Referência do BRB – Banco de Brasília S.A nas seguintes condições: 1. seja verificada a divulgação pelo BRB – Banco de Brasília S.A. de que seu Capital Principal está em patamar inferior a 4,5% (quatro inteiros e cinco décimos por cento) do montante RWA, estabelecida pela regulamentação vigente; ou 2. seja verificada, em lei específica, a assinatura de compromisso de aporte para o BRB – Banco de Brasília S.A.; 3. seja decretado pelo BACEN o regime de administração especial temporária ou intervenção do BRB – Banco de Brasília S.A.; ou 4. seja determinado pelo BACEN, segundo critérios estabelecidos em regulamento específico editado pelo Conselho Monetário Nacional,a extinção do instrumento. | AJ102: Totalmente | AK102: Permanente | AL102: Contratual | AM102: Não | AN102: Não | AO102: Não se aplica
B103: 94 | C103: BRB - BANCO DE BRASILIA S/A | D103: LFSN2200B9U | E103: Lei 12.249/2010 - Resolução 4.955/2021 do CMN | F103: Nível II | G103: Nível II | H103: Conglomerado | I103: Letra financeira | J103: R$ 30,689,088.67 | K103: R$ 33,900,000.00 | L103: passivo - custo amortizado | M103: 2022-10-19 | N103: Com vencimento | O103: 2028-10-19 | P103: Não | Q103: (1) Não há uma data específica, apenas quando for solicitado ao Bacen | R103: (2) Não há vinculação regulatória ou fiscal para resgate ou recompra | S103: (3) O valor pode ser parcial ou total, conforme autorização do Bacen | T103: Não se aplica | U103: Fixo | V103: 135% CDI | W103: Não | X103: Mandatório | Y103: Não | Z103: Cumulativo | AA103: Não conversível | AB103: Não se aplica | AC103: Não se aplica | AD103: Não se aplica | AE103: Não se aplica | AF103: Não se aplica | AG103: Não se aplica | AH103: Sim | AI103: Os títulos serão extintos, permanente e em valor no mínimo correspondente ao saldo computado no Nível II do Patrimônio de Referência do BRB – Banco de Brasília S.A nas seguintes condições: 1. seja verificada a divulgação pelo BRB – Banco de Brasília S.A. de que seu Capital Principal está em patamar inferior a 4,5% (quatro inteiros e cinco décimos por cento) do montante RWA, estabelecida pela regulamentação vigente; ou 2. seja verificada, em lei específica, a assinatura de compromisso de aporte para o BRB – Banco de Brasília S.A.; 3. seja decretado pelo BACEN o regime de administração especial temporária ou intervenção do BRB – Banco de Brasília S.A.; ou 4. seja determinado pelo BACEN, segundo critérios estabelecidos em regulamento específico editado pelo Conselho Monetário Nacional,a extinção do instrumento. | AJ103: Totalmente | AK103: Permanente | AL103: Contratual | AM103: Não | AN103: Não | AO103: Não se aplica
B104: 95 | C104: BRB - BANCO DE BRASILIA S/A | D104: LFSN2200BF5 | E104: Lei 12.249/2010 - Resolução 4.955/2021 do CMN | F104: Nível II | G104: Nível II | H104: Conglomerado | I104: Letra financeira | J104: R$ 2,357,324.65 | K104: R$ 2,000,000.00 | L104: passivo - custo amortizado | M104: 2022-10-21 | N104: Com vencimento | O104: 2029-10-22 | P104: Não | Q104: (1) Não há uma data específica, apenas quando for solicitado ao Bacen | R104: (2) Não há vinculação regulatória ou fiscal para resgate ou recompra | S104: (3) O valor pode ser parcial ou total, conforme autorização do Bacen | T104: Não se aplica | U104: Fixo | V104: 132% CDI | W104: Não | X104: Mandatório | Y104: Não | Z104: Cumulativo | AA104: Não conversível | AB104: Não se aplica | AC104: Não se aplica | AD104: Não se aplica | AE104: Não se aplica | AF104: Não se aplica | AG104: Não se aplica | AH104: Sim | AI104: Os títulos serão extintos, permanente e em valor no mínimo correspondente ao saldo computado no Nível II do Patrimônio de Referência do BRB – Banco de Brasília S.A nas seguintes condições: 1. seja verificada a divulgação pelo BRB – Banco de Brasília S.A. de que seu Capital Principal está em patamar inferior a 4,5% (quatro inteiros e cinco décimos por cento) do montante RWA, estabelecida pela regulamentação vigente; ou 2. seja verificada, em lei específica, a assinatura de compromisso de aporte para o BRB – Banco de Brasília S.A.; 3. seja decretado pelo BACEN o regime de administração especial temporária ou intervenção do BRB – Banco de Brasília S.A.; ou 4. seja determinado pelo BACEN, segundo critérios estabelecidos em regulamento específico editado pelo Conselho Monetário Nacional,a extinção do instrumento. | AJ104: Totalmente | AK104: Permanente | AL104: Contratual | AM104: Não | AN104: Não | AO104: Não se aplica
B105: 96 | C105: BRB - BANCO DE BRASILIA S/A | D105: LFSN2200C6Z | E105: Lei 12.249/2010 - Resolução 4.955/2021 do CMN | F105: Nível II | G105: Nível II | H105: Conglomerado | I105: Letra financeira | J105: R$ 12,433,368.86 | K105: R$ 14,000,000.00 | L105: passivo - custo amortizado | M105: 2022-11-01 | N105: Com vencimento | O105: 2028-11-01 | P105: Não | Q105: (1) Não há uma data específica, apenas quando for solicitado ao Bacen | R105: (2) Não há vinculação regulatória ou fiscal para resgate ou recompra | S105: (3) O valor pode ser parcial ou total, conforme autorização do Bacen | T105: Não se aplica | U105: Fixo | V105: 127% CDI | W105: Não | X105: Mandatório | Y105: Não | Z105: Cumulativo | AA105: Não conversível | AB105: Não se aplica | AC105: Não se aplica | AD105: Não se aplica | AE105: Não se aplica | AF105: Não se aplica | AG105: Não se aplica | AH105: Sim | AI105: Os títulos serão extintos, permanente e em valor no mínimo correspondente ao saldo computado no Nível II do Patrimônio de Referência do BRB – Banco de Brasília S.A nas seguintes condições: 1. seja verificada a divulgação pelo BRB – Banco de Brasília S.A. de que seu Capital Principal está em patamar inferior a 4,5% (quatro inteiros e cinco décimos por cento) do montante RWA, estabelecida pela regulamentação vigente; ou 2. seja verificada, em lei específica, a assinatura de compromisso de aporte para o BRB – Banco de Brasília S.A.; 3. seja decretado pelo BACEN o regime de administração especial temporária ou intervenção do BRB – Banco de Brasília S.A.; ou 4. seja determinado pelo BACEN, segundo critérios estabelecidos em regulamento específico editado pelo Conselho Monetário Nacional,a extinção do instrumento. | AJ105: Totalmente | AK105: Permanente | AL105: Contratual | AM105: Não | AN105: Não | AO105: Não se aplica
B106: 97 | C106: BRB - BANCO DE BRASILIA S/A | D106: LFSN2200D4A | E106: Lei 12.249/2010 - Resolução 4.955/2021 do CMN | F106: Nível II | G106: Nível II | H106: Conglomerado | I106: Letra financeira | J106: R$ 22,079,800.11 | K106: R$ 18,600,000.00 | L106: passivo - custo amortizado | M106: 2022-11-11 | N106: Com vencimento | O106: 2029-11-12 | P106: Não | Q106: (1) Não há uma data específica, apenas quando for solicitado ao Bacen | R106: (2) Não há vinculação regulatória ou fiscal para resgate ou recompra | S106: (3) O valor pode ser parcial ou total, conforme autorização do Bacen | T106: Não se aplica | U106: Fixo | V106: 135% CDI | W106: Não | X106: Mandatório | Y106: Não | Z106: Cumulativo | AA106: Não conversível | AB106: Não se aplica | AC106: Não se aplica | AD106: Não se aplica | AE106: Não se aplica | AF106: Não se aplica | AG106: Não se aplica | AH106: Sim | AI106: Os títulos serão extintos, permanente e em valor no mínimo correspondente ao saldo computado no Nível II do Patrimônio de Referência do BRB – Banco de Brasília S.A nas seguintes condições: 1. seja verificada a divulgação pelo BRB – Banco de Brasília S.A. de que seu Capital Principal está em patamar inferior a 4,5% (quatro inteiros e cinco décimos por cento) do montante RWA, estabelecida pela regulamentação vigente; ou 2. seja verificada, em lei específica, a assinatura de compromisso de aporte para o BRB – Banco de Brasília S.A.; 3. seja decretado pelo BACEN o regime de administração especial temporária ou intervenção do BRB – Banco de Brasília S.A.; ou 4. seja determinado pelo BACEN, segundo critérios estabelecidos em regulamento específico editado pelo Conselho Monetário Nacional,a extinção do instrumento. | AJ106: Totalmente | AK106: Permanente | AL106: Contratual | AM106: Não | AN106: Não | AO106: Não se aplica
B107: 98 | C107: BRB - BANCO DE BRASILIA S/A | D107: LFSN2200DFD | E107: Lei 12.249/2010 - Resolução 4.955/2021 do CMN | F107: Nível II | G107: Nível II | H107: Conglomerado | I107: Letra financeira | J107: R$ 11,026,594.65 | K107: R$ 9,300,000.00 | L107: passivo - custo amortizado | M107: 2022-11-16 | N107: Com vencimento | O107: 2029-11-16 | P107: Não | Q107: (1) Não há uma data específica, apenas quando for solicitado ao Bacen | R107: (2) Não há vinculação regulatória ou fiscal para resgate ou recompra | S107: (3) O valor pode ser parcial ou total, conforme autorização do Bacen | T107: Não se aplica | U107: Fixo | V107: 135% CDI | W107: Não | X107: Mandatório | Y107: Não | Z107: Cumulativo | AA107: Não conversível | AB107: Não se aplica | AC107: Não se aplica | AD107: Não se aplica | AE107: Não se aplica | AF107: Não se aplica | AG107: Não se aplica | AH107: Sim | AI107: Os títulos serão extintos, permanente e em valor no mínimo correspondente ao saldo computado no Nível II do Patrimônio de Referência do BRB – Banco de Brasília S.A nas seguintes condições: 1. seja verificada a divulgação pelo BRB – Banco de Brasília S.A. de que seu Capital Principal está em patamar inferior a 4,5% (quatro inteiros e cinco décimos por cento) do montante RWA, estabelecida pela regulamentação vigente; ou 2. seja verificada, em lei específica, a assinatura de compromisso de aporte para o BRB – Banco de Brasília S.A.; 3. seja decretado pelo BACEN o regime de administração especial temporária ou intervenção do BRB – Banco de Brasília S.A.; ou 4. seja determinado pelo BACEN, segundo critérios estabelecidos em regulamento específico editado pelo Conselho Monetário Nacional,a extinção do instrumento. | AJ107: Totalmente | AK107: Permanente | AL107: Contratual | AM107: Não | AN107: Não | AO107: Não se aplica
B108: 99 | C108: BRB - BANCO DE BRASILIA S/A | D108: LFSN2200DFU | E108: Lei 12.249/2010 - Resolução 4.955/2021 do CMN | F108: Nível II | G108: Nível II | H108: Conglomerado | I108: Letra financeira | J108: R$ 12,424,991.75 | K108: R$ 10,500,000.00 | L108: passivo - custo amortizado | M108: 2022-11-18 | N108: Com vencimento | O108: 2029-11-19 | P108: Não | Q108: (1) Não há uma data específica, apenas quando for solicitado ao Bacen | R108: (2) Não há vinculação regulatória ou fiscal para resgate ou recompra | S108: (3) O valor pode ser parcial ou total, conforme autorização do Bacen | T108: Não se aplica | U108: Fixo | V108: 135% CDI | W108: Não | X108: Mandatório | Y108: Não | Z108: Cumulativo | AA108: Não conversível | AB108: Não se aplica | AC108: Não se aplica | AD108: Não se aplica | AE108: Não se aplica | AF108: Não se aplica | AG108: Não se aplica | AH108: Sim | AI108: Os títulos serão extintos, permanente e em valor no mínimo correspondente ao saldo computado no Nível II do Patrimônio de Referência do BRB – Banco de Brasília S.A nas seguintes condições: 1. seja verificada a divulgação pelo BRB – Banco de Brasília S.A. de que seu Capital Principal está em patamar inferior a 4,5% (quatro inteiros e cinco décimos por cento) do montante RWA, estabelecida pela regulamentação vigente; ou 2. seja verificada, em lei específica, a assinatura de compromisso de aporte para o BRB – Banco de Brasília S.A.; 3. seja decretado pelo BACEN o regime de administração especial temporária ou intervenção do BRB – Banco de Brasília S.A.; ou 4. seja determinado pelo BACEN, segundo critérios estabelecidos em regulamento específico editado pelo Conselho Monetário Nacional,a extinção do instrumento. | AJ108: Totalmente | AK108: Permanente | AL108: Contratual | AM108: Não | AN108: Não | AO108: Não se aplica
B109: 100 | C109: BRB - BANCO DE BRASILIA S/A | D109: LFSN2200DQM | E109: Lei 12.249/2010 - Resolução 4.955/2021 do CMN | F109: Nível II | G109: Nível II | H109: Conglomerado | I109: Letra financeira | J109: R$ 12,041,136.59 | K109: R$ 10,200,000.00 | L109: passivo - custo amortizado | M109: 2022-11-23 | N109: Com vencimento | O109: 2029-11-23 | P109: Não | Q109: (1) Não há uma data específica, apenas quando for solicitado ao Bacen | R109: (2) Não há vinculação regulatória ou fiscal para resgate ou recompra | S109: (3) O valor pode ser parcial ou total, conforme autorização do Bacen | T109: Não se aplica | U109: Fixo | V109: 135% CDI | W109: Não | X109: Mandatório | Y109: Não | Z109: Cumulativo | AA109: Não conversível | AB109: Não se aplica | AC109: Não se aplica | AD109: Não se aplica | AE109: Não se aplica | AF109: Não se aplica | AG109: Não se aplica | AH109: Sim | AI109: Os títulos serão extintos, permanente e em valor no mínimo correspondente ao saldo computado no Nível II do Patrimônio de Referência do BRB – Banco de Brasília S.A nas seguintes condições: 1. seja verificada a divulgação pelo BRB – Banco de Brasília S.A. de que seu Capital Principal está em patamar inferior a 4,5% (quatro inteiros e cinco décimos por cento) do montante RWA, estabelecida pela regulamentação vigente; ou 2. seja verificada, em lei específica, a assinatura de compromisso de aporte para o BRB – Banco de Brasília S.A.; 3. seja decretado pelo BACEN o regime de administração especial temporária ou intervenção do BRB – Banco de Brasília S.A.; ou 4. seja determinado pelo BACEN, segundo critérios estabelecidos em regulamento específico editado pelo Conselho Monetário Nacional,a extinção do instrumento. | AJ109: Totalmente | AK109: Permanente | AL109: Contratual | AM109: Não | AN109: Não | AO109: Não se aplica | AQ109: NUM | AR109: NUM | AS109: NUM | AT109: NUM | AU109: NUM | AV109: NUM | AW109: NUM | AX109: NUM | AY109: NUM | AZ109: NUM | BA109: NUM | BB109: NUM | BC109: NUM | BD109: NUM | BE109: NUM | BF109: NUM | BG109: NUM | BH109: NUM | BI109: NUM | BJ109: NUM | BK109: NUM | BL109: NUM | BM109: NUM | BN109: TXT | BO109: TXT | BP109: TXT | BQ109: TXT | BR109: TXT | BS109: TXT | BT109: TXT | BU109: TXT | BV109: TXT | BW109: TXT | BX109: TXT | BY109: TXT | BZ109: TXT | CA109: TXT | CB109: TXT | CC109: TXT | CD109: TXT | CE109: TXT | CF109: TXT | CG109: TXT | CH109: TXT | CI109: TXT | CJ109: TXT | CK109: TXT | CL109: TXT | CM109: TXT | CN109: TXT | CO109: TXT | CP109: TXT | CQ109: TXT | CR109: TXT
B110: 101 | C110: BRB - BANCO DE BRASILIA S/A | D110: LFSN2200DW7 | E110: Lei 12.249/2010 - Resolução 4.955/2021 do CMN | F110: Nível II | G110: Nível II | H110: Conglomerado | I110: Letra financeira | J110: R$ 16,269,994.91 | K110: R$ 13,800,000.00 | L110: passivo - custo amortizado | M110: 2022-11-25 | N110: Com vencimento | O110: 2029-11-26 | P110: Não | Q110: (1) Não há uma data específica, apenas quando for solicitado ao Bacen | R110: (2) Não há vinculação regulatória ou fiscal para resgate ou recompra | S110: (3) O valor pode ser parcial ou total, conforme autorização do Bacen | T110: Não se aplica | U110: Fixo | V110: 135% CDI | W110: Não | X110: Mandatório | Y110: Não | Z110: Cumulativo | AA110: Não conversível | AB110: Não se aplica | AC110: Não se aplica | AD110: Não se aplica | AE110: Não se aplica | AF110: Não se aplica | AG110: Não se aplica | AH110: Sim | AI110: Os títulos serão extintos, permanente e em valor no mínimo correspondente ao saldo computado no Nível II do Patrimônio de Referência do BRB – Banco de Brasília S.A nas seguintes condições: 1. seja verificada a divulgação pelo BRB – Banco de Brasília S.A. de que seu Capital Principal está em patamar inferior a 4,5% (quatro inteiros e cinco décimos por cento) do montante RWA, estabelecida pela regulamentação vigente; ou 2. seja verificada, em lei específica, a assinatura de compromisso de aporte para o BRB – Banco de Brasília S.A.; 3. seja decretado pelo BACEN o regime de administração especial temporária ou intervenção do BRB – Banco de Brasília S.A.; ou 4. seja determinado pelo BACEN, segundo critérios estabelecidos em regulamento específico editado pelo Conselho Monetário Nacional,a extinção do instrumento. | AJ110: Totalmente | AK110: Permanente | AL110: Contratual | AM110: Não | AN110: Não | AO110: Não se aplica
B111: 102 | C111: BRB - BANCO DE BRASILIA S/A | D111: LFSN2200ECS | E111: Lei 12.249/2010 - Resolução 4.955/2021 do CMN | F111: Nível II | G111: Nível II | H111: Conglomerado | I111: Letra financeira | J111: R$ 7,416,300.55 | K111: R$ 6,300,000.00 | L111: passivo - custo amortizado | M111: 2022-11-30 | N111: Com vencimento | O111: 2029-11-30 | P111: Não | Q111: (1) Não há uma data específica, apenas quando for solicitado ao Bacen | R111: (2) Não há vinculação regulatória ou fiscal para resgate ou recompra | S111: (3) O valor pode ser parcial ou total, conforme autorização do Bacen | T111: Não se aplica | U111: Fixo | V111: 135% CDI | W111: Não | X111: Mandatório | Y111: Não | Z111: Cumulativo | AA111: Não conversível | AB111: Não se aplica | AC111: Não se aplica | AD111: Não se aplica | AE111: Não se aplica | AF111: Não se aplica | AG111: Não se aplica | AH111: Sim | AI111: Os títulos serão extintos, permanente e em valor no mínimo correspondente ao saldo computado no Nível II do Patrimônio de Referência do BRB – Banco de Brasília S.A nas seguintes condições: 1. seja verificada a divulgação pelo BRB – Banco de Brasília S.A. de que seu Capital Principal está em patamar inferior a 4,5% (quatro inteiros e cinco décimos por cento) do montante RWA, estabelecida pela regulamentação vigente; ou 2. seja verificada, em lei específica, a assinatura de compromisso de aporte para o BRB – Banco de Brasília S.A.; 3. seja decretado pelo BACEN o regime de administração especial temporária ou intervenção do BRB – Banco de Brasília S.A.; ou 4. seja determinado pelo BACEN, segundo critérios estabelecidos em regulamento específico editado pelo Conselho Monetário Nacional,a extinção do instrumento. | AJ111: Totalmente | AK111: Permanente | AL111: Contratual | AM111: Não | AN111: Não | AO111: Não se aplica
B112: 103 | C112: BRB - BANCO DE BRASILIA S/A | D112: LFSN2200ENT | E112: Lei 12.249/2010 - Resolução 4.955/2021 do CMN | F112: Nível II | G112: Nível II | H112: Conglomerado | I112: Letra financeira | J112: R$ 6,348,670.37 | K112: R$ 5,400,000.00 | L112: passivo - custo amortizado | M112: 2022-12-02 | N112: Com vencimento | O112: 2029-12-03 | P112: Não | Q112: (1) Não há uma data específica, apenas quando for solicitado ao Bacen | R112: (2) Não há vinculação regulatória ou fiscal para resgate ou recompra | S112: (3) O valor pode ser parcial ou total, conforme autorização do Bacen | T112: Não se aplica | U112: Fixo | V112: 135% CDI | W112: Não | X112: Mandatório | Y112: Não | Z112: Cumulativo | AA112: Não conversível | AB112: Não se aplica | AC112: Não se aplica | AD112: Não se aplica | AE112: Não se aplica | AF112: Não se aplica | AG112: Não se aplica | AH112: Sim | AI112: Os títulos serão extintos, permanente e em valor no mínimo correspondente ao saldo computado no Nível II do Patrimônio de Referência do BRB – Banco de Brasília S.A nas seguintes condições: 1. seja verificada a divulgação pelo BRB – Banco de Brasília S.A. de que seu Capital Principal está em patamar inferior a 4,5% (quatro inteiros e cinco décimos por cento) do montante RWA, estabelecida pela regulamentação vigente; ou 2. seja verificada, em lei específica, a assinatura de compromisso de aporte para o BRB – Banco de Brasília S.A.; 3. seja decretado pelo BACEN o regime de administração especial temporária ou intervenção do BRB – Banco de Brasília S.A.; ou 4. seja determinado pelo BACEN, segundo critérios estabelecidos em regulamento específico editado pelo Conselho Monetário Nacional,a extinção do instrumento. | AJ112: Totalmente | AK112: Permanente | AL112: Contratual | AM112: Não | AN112: Não | AO112: Não se aplica
B113: 104 | C113: BRB - BANCO DE BRASILIA S/A | D113: LFSN2200EZ3 | E113: Lei 12.249/2010 - Resolução 4.955/2021 do CMN | F113: Nível II | G113: Nível II | H113: Conglomerado | I113: Letra financeira | J113: R$ 1,708,258.00 | K113: R$ 2,000,000.00 | L113: passivo - custo amortizado | M113: 2022-12-08 | N113: Com vencimento | O113: 2028-11-06 | P113: Não | Q113: (1) Não há uma data específica, apenas quando for solicitado ao Bacen | R113: (2) Não há vinculação regulatória ou fiscal para resgate ou recompra | S113: (3) O valor pode ser parcial ou total, conforme autorização do Bacen | T113: Não se aplica | U113: Fixo | V113: 123% CDI | W113: Não | X113: Mandatório | Y113: Não | Z113: Cumulativo | AA113: Não conversível | AB113: Não se aplica | AC113: Não se aplica | AD113: Não se aplica | AE113: Não se aplica | AF113: Não se aplica | AG113: Não se aplica | AH113: Sim | AI113: Os títulos serão extintos, permanente e em valor no mínimo correspondente ao saldo computado no Nível II do Patrimônio de Referência do BRB – Banco de Brasília S.A nas seguintes condições: 1. seja verificada a divulgação pelo BRB – Banco de Brasília S.A. de que seu Capital Principal está em patamar inferior a 4,5% (quatro inteiros e cinco décimos por cento) do montante RWA, estabelecida pela regulamentação vigente; ou 2. seja verificada, em lei específica, a assinatura de compromisso de aporte para o BRB – Banco de Brasília S.A.; 3. seja decretado pelo BACEN o regime de administração especial temporária ou intervenção do BRB – Banco de Brasília S.A.; ou 4. seja determinado pelo BACEN, segundo critérios estabelecidos em regulamento específico editado pelo Conselho Monetário Nacional,a extinção do instrumento. | AJ113: Totalmente | AK113: Permanente | AL113: Contratual | AM113: Não | AN113: Não | AO113: Não se aplica
B114: 105 | C114: BRB - BANCO DE BRASILIA S/A | D114: LFSN23005EH | E114: Lei 12.249/2010 - Resolução 4.955/2021 do CMN | F114: Nível II | G114: Nível II | H114: Conglomerado | I114: Letra financeira | J114: R$ 2,267,527.15 | K114: R$ 2,700,000.00 | L114: passivo - custo amortizado | M114: 2023-01-31 | N114: Com vencimento | O114: 2029-01-31 | P114: Não | Q114: (1) Não há uma data específica, apenas quando for solicitado ao Bacen | R114: (2) Não há vinculação regulatória ou fiscal para resgate ou recompra | S114: (3) O valor pode ser parcial ou total, conforme autorização do Bacen | T114: Não se aplica | U114: Fixo | V114: 127% CDI | W114: Não | X114: Mandatório | Y114: Não | Z114: Cumulativo | AA114: Não conversível | AB114: Não se aplica | AC114: Não se aplica | AD114: Não se aplica | AE114: Não se aplica | AF114: Não se aplica | AG114: Não se aplica | AH114: Sim | AI114: Os títulos serão extintos, permanente e em valor no mínimo correspondente ao saldo computado no Nível II do Patrimônio de Referência do BRB – Banco de Brasília S.A nas seguintes condições: 1. seja verificada a divulgação pelo BRB – Banco de Brasília S.A. de que seu Capital Principal está em patamar inferior a 4,5% (quatro inteiros e cinco décimos por cento) do montante RWA, estabelecida pela regulamentação vigente; ou 2. seja verificada, em lei específica, a assinatura de compromisso de aporte para o BRB – Banco de Brasília S.A.; 3. seja decretado pelo BACEN o regime de administração especial temporária ou intervenção do BRB – Banco de Brasília S.A.; ou 4. seja determinado pelo BACEN, segundo critérios estabelecidos em regulamento específico editado pelo Conselho Monetário Nacional,a extinção do instrumento. | AJ114: Totalmente | AK114: Permanente | AL114: Contratual | AM114: Não | AN114: Não | AO114: Não se aplica
B115: 106 | C115: BRB - BANCO DE BRASILIA S/A | D115: LFSN23005K1 | E115: Lei 12.249/2010 - Resolução 4.955/2021 do CMN | F115: Nível II | G115: Nível II | H115: Conglomerado | I115: Letra financeira | J115: R$ 11,392,902.90 | K115: R$ 10,200,000.00 | L115: passivo - custo amortizado | M115: 2023-01-31 | N115: Com vencimento | O115: 2030-01-31 | P115: Não | Q115: (1) Não há uma data específica, apenas quando for solicitado ao Bacen | R115: (2) Não há vinculação regulatória ou fiscal para resgate ou recompra | S115: (3) O valor pode ser parcial ou total, conforme autorização do Bacen | T115: Não se aplica | U115: Fixo | V115: 129% CDI | W115: Não | X115: Mandatório | Y115: Não | Z115: Cumulativo | AA115: Não conversível | AB115: Não se aplica | AC115: Não se aplica | AD115: Não se aplica | AE115: Não se aplica | AF115: Não se aplica | AG115: Não se aplica | AH115: Sim | AI115: Os títulos serão extintos, permanente e em valor no mínimo correspondente ao saldo computado no Nível II do Patrimônio de Referência do BRB – Banco de Brasília S.A nas seguintes condições: 1. seja verificada a divulgação pelo BRB – Banco de Brasília S.A. de que seu Capital Principal está em patamar inferior a 4,5% (quatro inteiros e cinco décimos por cento) do montante RWA, estabelecida pela regulamentação vigente; ou 2. seja verificada, em lei específica, a assinatura de compromisso de aporte para o BRB – Banco de Brasília S.A.; 3. seja decretado pelo BACEN o regime de administração especial temporária ou intervenção do BRB – Banco de Brasília S.A.; ou 4. seja determinado pelo BACEN, segundo critérios estabelecidos em regulamento específico editado pelo Conselho Monetário Nacional,a extinção do instrumento. | AJ115: Totalmente | AK115: Permanente | AL115: Contratual | AM115: Não | AN115: Não | AO115: Não se aplica
B116: 107 | C116: BRB - BANCO DE BRASILIA S/A | D116: LFSN23006BT | E116: Lei 12.249/2010 - Resolução 4.955/2021 do CMN | F116: Nível II | G116: Nível II | H116: Conglomerado | I116: Letra financeira | J116: R$ 9,699,224.90 | K116: R$ 8,700,000.00 | L116: passivo - custo amortizado | M116: 2023-02-03 | N116: Com vencimento | O116: 2030-02-04 | P116: Não | Q116: (1) Não há uma data específica, apenas quando for solicitado ao Bacen | R116: (2) Não há vinculação regulatória ou fiscal para resgate ou recompra | S116: (3) O valor pode ser parcial ou total, conforme autorização do Bacen | T116: Não se aplica | U116: Fixo | V116: 129% CDI | W116: Não | X116: Mandatório | Y116: Não | Z116: Cumulativo | AA116: Não conversível | AB116: Não se aplica | AC116: Não se aplica | AD116: Não se aplica | AE116: Não se aplica | AF116: Não se aplica | AG116: Não se aplica | AH116: Sim | AI116: Os títulos serão extintos, permanente e em valor no mínimo correspondente ao saldo computado no Nível II do Patrimônio de Referência do BRB – Banco de Brasília S.A nas seguintes condições: 1. seja verificada a divulgação pelo BRB – Banco de Brasília S.A. de que seu Capital Principal está em patamar inferior a 4,5% (quatro inteiros e cinco décimos por cento) do montante RWA, estabelecida pela regulamentação vigente; ou 2. seja verificada, em lei específica, a assinatura de compromisso de aporte para o BRB – Banco de Brasília S.A.; 3. seja decretado pelo BACEN o regime de administração especial temporária ou intervenção do BRB – Banco de Brasília S.A.; ou 4. seja determinado pelo BACEN, segundo critérios estabelecidos em regulamento específico editado pelo Conselho Monetário Nacional,a extinção do instrumento. | AJ116: Totalmente | AK116: Permanente | AL116: Contratual | AM116: Não | AN116: Não | AO116: Não se aplica
B117: 108 | C117: BRB - BANCO DE BRASILIA S/A | D117: LFSN23006HE | E117: Lei 12.249/2010 - Resolução 4.955/2021 do CMN | F117: Nível II | G117: Nível II | H117: Conglomerado | I117: Letra financeira | J117: R$ 334,454.91 | K117: R$ 300,000.00 | L117: passivo - custo amortizado | M117: 2023-02-03 | N117: Com vencimento | O117: 2030-02-04 | P117: Não | Q117: (1) Não há uma data específica, apenas quando for solicitado ao Bacen | R117: (2) Não há vinculação regulatória ou fiscal para resgate ou recompra | S117: (3) O valor pode ser parcial ou total, conforme autorização do Bacen | T117: Não se aplica | U117: Fixo | V117: 129% CDI | W117: Não | X117: Mandatório | Y117: Não | Z117: Cumulativo | AA117: Não conversível | AB117: Não se aplica | AC117: Não se aplica | AD117: Não se aplica | AE117: Não se aplica | AF117: Não se aplica | AG117: Não se aplica | AH117: Sim | AI117: Os títulos serão extintos, permanente e em valor no mínimo correspondente ao saldo computado no Nível II do Patrimônio de Referência do BRB – Banco de Brasília S.A nas seguintes condições: 1. seja verificada a divulgação pelo BRB – Banco de Brasília S.A. de que seu Capital Principal está em patamar inferior a 4,5% (quatro inteiros e cinco décimos por cento) do montante RWA, estabelecida pela regulamentação vigente; ou 2. seja verificada, em lei específica, a assinatura de compromisso de aporte para o BRB – Banco de Brasília S.A.; 3. seja decretado pelo BACEN o regime de administração especial temporária ou intervenção do BRB – Banco de Brasília S.A.; ou 4. seja determinado pelo BACEN, segundo critérios estabelecidos em regulamento específico editado pelo Conselho Monetário Nacional,a extinção do instrumento. | AJ117: Totalmente | AK117: Permanente | AL117: Contratual | AM117: Não | AN117: Não | AO117: Não se aplica
B118: 109 | C118: BRB - BANCO DE BRASILIA S/A | D118: LFSN23006SI | E118: Lei 12.249/2010 - Resolução 4.955/2021 do CMN | F118: Nível II | G118: Nível II | H118: Conglomerado | I118: Letra financeira | J118: R$ 9,673,356.85 | K118: R$ 8,700,000.00 | L118: passivo - custo amortizado | M118: 2023-02-08 | N118: Com vencimento | O118: 2030-02-08 | P118: Não | Q118: (1) Não há uma data específica, apenas quando for solicitado ao Bacen | R118: (2) Não há vinculação regulatória ou fiscal para resgate ou recompra | S118: (3) O valor pode ser parcial ou total, conforme autorização do Bacen | T118: Não se aplica | U118: Fixo | V118: 129% CDI | W118: Não | X118: Mandatório | Y118: Não | Z118: Cumulativo | AA118: Não conversível | AB118: Não se aplica | AC118: Não se aplica | AD118: Não se aplica | AE118: Não se aplica | AF118: Não se aplica | AG118: Não se aplica | AH118: Sim | AI118: Os títulos serão extintos, permanente e em valor no mínimo correspondente ao saldo computado no Nível II do Patrimônio de Referência do BRB – Banco de Brasília S.A nas seguintes condições: 1. seja verificada a divulgação pelo BRB – Banco de Brasília S.A. de que seu Capital Principal está em patamar inferior a 4,5% (quatro inteiros e cinco décimos por cento) do montante RWA, estabelecida pela regulamentação vigente; ou 2. seja verificada, em lei específica, a assinatura de compromisso de aporte para o BRB – Banco de Brasília S.A.; 3. seja decretado pelo BACEN o regime de administração especial temporária ou intervenção do BRB – Banco de Brasília S.A.; ou 4. seja determinado pelo BACEN, segundo critérios estabelecidos em regulamento específico editado pelo Conselho Monetário Nacional,a extinção do instrumento. | AJ118: Totalmente | AK118: Permanente | AL118: Contratual | AM118: Não | AN118: Não | AO118: Não se aplica
B119: 110 | C119: BRB - BANCO DE BRASILIA S/A | D119: LFSN23006SJ | E119: Lei 12.249/2010 - Resolução 4.955/2021 do CMN | F119: Nível II | G119: Nível II | H119: Conglomerado | I119: Letra financeira | J119: R$ 501,722.75 | K119: R$ 600,000.00 | L119: passivo - custo amortizado | M119: 2023-02-08 | N119: Com vencimento | O119: 2029-02-08 | P119: Não | Q119: (1) Não há uma data específica, apenas quando for solicitado ao Bacen | R119: (2) Não há vinculação regulatória ou fiscal para resgate ou recompra | S119: (3) O valor pode ser parcial ou total, conforme autorização do Bacen | T119: Não se aplica | U119: Fixo | V119: 127% CDI | W119: Não | X119: Mandatório | Y119: Não | Z119: Cumulativo | AA119: Não conversível | AB119: Não se aplica | AC119: Não se aplica | AD119: Não se aplica | AE119: Não se aplica | AF119: Não se aplica | AG119: Não se aplica | AH119: Sim | AI119: Os títulos serão extintos, permanente e em valor no mínimo correspondente ao saldo computado no Nível II do Patrimônio de Referência do BRB – Banco de Brasília S.A nas seguintes condições: 1. seja verificada a divulgação pelo BRB – Banco de Brasília S.A. de que seu Capital Principal está em patamar inferior a 4,5% (quatro inteiros e cinco décimos por cento) do montante RWA, estabelecida pela regulamentação vigente; ou 2. seja verificada, em lei específica, a assinatura de compromisso de aporte para o BRB – Banco de Brasília S.A.; 3. seja decretado pelo BACEN o regime de administração especial temporária ou intervenção do BRB – Banco de Brasília S.A.; ou 4. seja determinado pelo BACEN, segundo critérios estabelecidos em regulamento específico editado pelo Conselho Monetário Nacional,a extinção do instrumento. | AJ119: Totalmente | AK119: Permanente | AL119: Contratual | AM119: Não | AN119: Não | AO119: Não se aplica
B120: 111 | C120: BRB - BANCO DE BRASILIA S/A | D120: LFSN23007K9 | E120: Lei 12.249/2010 - Resolução 4.955/2021 do CMN | F120: Nível II | G120: Nível II | H120: Conglomerado | I120: Letra financeira | J120: R$ 5,994,391.76 | K120: R$ 5,400,000.00 | L120: passivo - custo amortizado | M120: 2023-02-10 | N120: Com vencimento | O120: 2030-02-11 | P120: Não | Q120: (1) Não há uma data específica, apenas quando for solicitado ao Bacen | R120: (2) Não há vinculação regulatória ou fiscal para resgate ou recompra | S120: (3) O valor pode ser parcial ou total, conforme autorização do Bacen | T120: Não se aplica | U120: Fixo | V120: 129% CDI | W120: Não | X120: Mandatório | Y120: Não | Z120: Cumulativo | AA120: Não conversível | AB120: Não se aplica | AC120: Não se aplica | AD120: Não se aplica | AE120: Não se aplica | AF120: Não se aplica | AG120: Não se aplica | AH120: Sim | AI120: Os títulos serão extintos, permanente e em valor no mínimo correspondente ao saldo computado no Nível II do Patrimônio de Referência do BRB – Banco de Brasília S.A nas seguintes condições: 1. seja verificada a divulgação pelo BRB – Banco de Brasília S.A. de que seu Capital Principal está em patamar inferior a 4,5% (quatro inteiros e cinco décimos por cento) do montante RWA, estabelecida pela regulamentação vigente; ou 2. seja verificada, em lei específica, a assinatura de compromisso de aporte para o BRB – Banco de Brasília S.A.; 3. seja decretado pelo BACEN o regime de administração especial temporária ou intervenção do BRB – Banco de Brasília S.A.; ou 4. seja determinado pelo BACEN, segundo critérios estabelecidos em regulamento específico editado pelo Conselho Monetário Nacional,a extinção do instrumento. | AJ120: Totalmente | AK120: Permanente | AL120: Contratual | AM120: Não | AN120: Não | AO120: Não se aplica
B121: 112 | C121: BRB - BANCO DE BRASILIA S/A | D121: LFSN23007KA | E121: Lei 12.249/2010 - Resolução 4.955/2021 do CMN | F121: Nível II | G121: Nível II | H121: Conglomerado | I121: Letra financeira | J121: R$ 500,967.76 | K121: R$ 600,000.00 | L121: passivo - custo amortizado | M121: 2023-02-10 | N121: Com vencimento | O121: 2029-02-14 | P121: Não | Q121: (1) Não há uma data específica, apenas quando for solicitado ao Bacen | R121: (2) Não há vinculação regulatória ou fiscal para resgate ou recompra | S121: (3) O valor pode ser parcial ou total, conforme autorização do Bacen | T121: Não se aplica | U121: Fixo | V121: 127% CDI | W121: Não | X121: Mandatório | Y121: Não | Z121: Cumulativo | AA121: Não conversível | AB121: Não se aplica | AC121: Não se aplica | AD121: Não se aplica | AE121: Não se aplica | AF121: Não se aplica | AG121: Não se aplica | AH121: Sim | AI121: Os títulos serão extintos, permanente e em valor no mínimo correspondente ao saldo computado no Nível II do Patrimônio de Referência do BRB – Banco de Brasília S.A nas seguintes condições: 1. seja verificada a divulgação pelo BRB – Banco de Brasília S.A. de que seu Capital Principal está em patamar inferior a 4,5% (quatro inteiros e cinco décimos por cento) do montante RWA, estabelecida pela regulamentação vigente; ou 2. seja verificada, em lei específica, a assinatura de compromisso de aporte para o BRB – Banco de Brasília S.A.; 3. seja decretado pelo BACEN o regime de administração especial temporária ou intervenção do BRB – Banco de Brasília S.A.; ou 4. seja determinado pelo BACEN, segundo critérios estabelecidos em regulamento específico editado pelo Conselho Monetário Nacional,a extinção do instrumento. | AJ121: Totalmente | AK121: Permanente | AL121: Contratual | AM121: Não | AN121: Não | AO121: Não se aplica
B122: 113 | C122: BRB - BANCO DE BRASILIA S/A | D122: LFSN24007KA | E122: Lei 12.249/2010 - Resolução 4.955/2021 do CMN | F122: Nível II | G122: Nível II | H122: Conglomerado | I122: Letra financeira | J122: R$ 14,935,695.54 | K122: R$ 14,100,000.00 | L122: passivo - custo amortizado | M122: 2024-10-30 | N122: Com vencimento | O122: 2031-10-30 | P122: Não | Q122: (1) Não há uma data específica, apenas quando for solicitado ao Bacen | R122: (2) Não há vinculação regulatória ou fiscal para resgate ou recompra | S122: (3) O valor pode ser parcial ou total, conforme autorização do Bacen | T122: Não se aplica | U122: Fixo | V122: 124% CDI | W122: Não | X122: Mandatório | Y122: Não | Z122: Cumulativo | AA122: Não conversível | AB122: Não se aplica | AC122: Não se aplica | AD122: Não se aplica | AE122: Não se aplica | AF122: Não se aplica | AG122: Não se aplica | AH122: Sim | AI122: Os títulos serão extintos, permanente e em valor no mínimo correspondente ao saldo computado no Nível II do Patrimônio de Referência do BRB – Banco de Brasília S.A nas seguintes condições: 1. seja verificada a divulgação pelo BRB – Banco de Brasília S.A. de que seu Capital Principal está em patamar inferior a 4,5% (quatro inteiros e cinco décimos por cento) do montante RWA, estabelecida pela regulamentação vigente; ou 2. seja verificada, em lei específica, a assinatura de compromisso de aporte para o BRB – Banco de Brasília S.A.; 3. seja decretado pelo BACEN o regime de administração especial temporária ou intervenção do BRB – Banco de Brasília S.A.; ou 4. seja determinado pelo BACEN, segundo critérios estabelecidos em regulamento específico editado pelo Conselho Monetário Nacional,a extinção do instrumento. | AJ122: Totalmente | AK122: Permanente | AL122: Contratual | AM122: Não | AN122: Não | AO122: Não se aplica
B123: 114 | C123: BRB - BANCO DE BRASILIA S/A | D123: LFSN24007KB | E123: Lei 12.249/2010 - Resolução 4.955/2021 do CMN | F123: Nível II | G123: Nível II | H123: Conglomerado | I123: Letra financeira | J123: R$ 1,928,713.30 | K123: R$ 1,800,000.00 | L123: passivo - custo amortizado | M123: 2024-10-30 | N123: Com vencimento | O123: 2031-10-30 | P123: Não | Q123: (1) Não há uma data específica, apenas quando for solicitado ao Bacen | R123: (2) Não há vinculação regulatória ou fiscal para resgate ou recompra | S123: (3) O valor pode ser parcial ou total, conforme autorização do Bacen | T123: Não se aplica | U123: Fixo | V123: 125,5% CDI | W123: Não | X123: Mandatório | Y123: Não | Z123: Cumulativo | AA123: Não conversível | AB123: Não se aplica | AC123: Não se aplica | AD123: Não se aplica | AE123: Não se aplica | AF123: Não se aplica | AG123: Não se aplica | AH123: Sim | AI123: Os títulos serão extintos, permanente e em valor no mínimo correspondente ao saldo computado no Nível II do Patrimônio de Referência do BRB – Banco de Brasília S.A nas seguintes condições: 1. seja verificada a divulgação pelo BRB – Banco de Brasília S.A. de que seu Capital Principal está em patamar inferior a 4,5% (quatro inteiros e cinco décimos por cento) do montante RWA, estabelecida pela regulamentação vigente; ou 2. seja verificada, em lei específica, a assinatura de compromisso de aporte para o BRB – Banco de Brasília S.A.; 3. seja decretado pelo BACEN o regime de administração especial temporária ou intervenção do BRB – Banco de Brasília S.A.; ou 4. seja determinado pelo BACEN, segundo critérios estabelecidos em regulamento específico editado pelo Conselho Monetário Nacional,a extinção do instrumento. | AJ123: Totalmente | AK123: Permanente | AL123: Contratual | AM123: Não | AN123: Não | AO123: Não se aplica
B124: 115 | C124: BRB - BANCO DE BRASILIA S/A | D124: LFSN24007KC | E124: Lei 12.249/2010 - Resolução 4.955/2021 do CMN | F124: Nível II | G124: Nível II | H124: Conglomerado | I124: Letra financeira | J124: R$ 4,194,912.86 | K124: R$ 3,900,000.00 | L124: passivo - custo amortizado | M124: 2024-10-30 | N124: Com vencimento | O124: 2031-10-30 | P124: Não | Q124: (1) Não há uma data específica, apenas quando for solicitado ao Bacen | R124: (2) Não há vinculação regulatória ou fiscal para resgate ou recompra | S124: (3) O valor pode ser parcial ou total, conforme autorização do Bacen | T124: Não se aplica | U124: Fixo | V124: 126% CDI | W124: Não | X124: Mandatório | Y124: Não | Z124: Cumulativo | AA124: Não conversível | AB124: Não se aplica | AC124: Não se aplica | AD124: Não se aplica | AE124: Não se aplica | AF124: Não se aplica | AG124: Não se aplica | AH124: Sim | AI124: Os títulos serão extintos, permanente e em valor no mínimo correspondente ao saldo computado no Nível II do Patrimônio de Referência do BRB – Banco de Brasília S.A nas seguintes condições: 1. seja verificada a divulgação pelo BRB – Banco de Brasília S.A. de que seu Capital Principal está em patamar inferior a 4,5% (quatro inteiros e cinco décimos por cento) do montante RWA, estabelecida pela regulamentação vigente; ou 2. seja verificada, em lei específica, a assinatura de compromisso de aporte para o BRB – Banco de Brasília S.A.; 3. seja decretado pelo BACEN o regime de administração especial temporária ou intervenção do BRB – Banco de Brasília S.A.; ou 4. seja determinado pelo BACEN, segundo critérios estabelecidos em regulamento específico editado pelo Conselho Monetário Nacional,a extinção do instrumento. | AJ124: Totalmente | AK124: Permanente | AL124: Contratual | AM124: Não | AN124: Não | AO124: Não se aplica
B125: 116 | C125: BRB - BANCO DE BRASILIA S/A | D125: LFSN24007KD | E125: Lei 12.249/2010 - Resolução 4.955/2021 do CMN | F125: Nível II | G125: Nível II | H125: Conglomerado | I125: Letra financeira | J125: R$ 8,779,484.63 | K125: R$ 8,100,000.00 | L125: passivo - custo amortizado | M125: 2024-10-30 | N125: Com vencimento | O125: 2031-10-30 | P125: Não | Q125: (1) Não há uma data específica, apenas quando for solicitado ao Bacen | R125: (2) Não há vinculação regulatória ou fiscal para resgate ou recompra | S125: (3) O valor pode ser parcial ou total, conforme autorização do Bacen | T125: Não se aplica | U125: Fixo | V125: 127% CDI | W125: Não | X125: Mandatório | Y125: Não | Z125: Cumulativo | AA125: Não conversível | AB125: Não se aplica | AC125: Não se aplica | AD125: Não se aplica | AE125: Não se aplica | AF125: Não se aplica | AG125: Não se aplica | AH125: Sim | AI125: Os títulos serão extintos, permanente e em valor no mínimo correspondente ao saldo computado no Nível II do Patrimônio de Referência do BRB – Banco de Brasília S.A nas seguintes condições: 1. seja verificada a divulgação pelo BRB – Banco de Brasília S.A. de que seu Capital Principal está em patamar inferior a 4,5% (quatro inteiros e cinco décimos por cento) do montante RWA, estabelecida pela regulamentação vigente; ou 2. seja verificada, em lei específica, a assinatura de compromisso de aporte para o BRB – Banco de Brasília S.A.; 3. seja decretado pelo BACEN o regime de administração especial temporária ou intervenção do BRB – Banco de Brasília S.A.; ou 4. seja determinado pelo BACEN, segundo critérios estabelecidos em regulamento específico editado pelo Conselho Monetário Nacional,a extinção do instrumento. | AJ125: Totalmente | AK125: Permanente | AL125: Contratual | AM125: Não | AN125: Não | AO125: Não se aplica
B126: 117 | C126: BRB - BANCO DE BRASILIA S/A | D126: LFSN24007VE | E126: Lei 12.249/2010 - Resolução 4.955/2021 do CMN | F126: Nível II | G126: Nível II | H126: Conglomerado | I126: Letra financeira | J126: R$ 8,259,103.93 | K126: R$ 7,800,000.00 | L126: passivo - custo amortizado | M126: 2024-10-31 | N126: Com vencimento | O126: 2031-10-31 | P126: Não | Q126: (1) Não há uma data específica, apenas quando for solicitado ao Bacen | R126: (2) Não há vinculação regulatória ou fiscal para resgate ou recompra | S126: (3) O valor pode ser parcial ou total, conforme autorização do Bacen | T126: Não se aplica | U126: Fixo | V126: 124% CDI | W126: Não | X126: Mandatório | Y126: Não | Z126: Cumulativo | AA126: Não conversível | AB126: Não se aplica | AC126: Não se aplica | AD126: Não se aplica | AE126: Não se aplica | AF126: Não se aplica | AG126: Não se aplica | AH126: Sim | AI126: Os títulos serão extintos, permanente e em valor no mínimo correspondente ao saldo computado no Nível II do Patrimônio de Referência do BRB – Banco de Brasília S.A nas seguintes condições: 1. seja verificada a divulgação pelo BRB – Banco de Brasília S.A. de que seu Capital Principal está em patamar inferior a 4,5% (quatro inteiros e cinco décimos por cento) do montante RWA, estabelecida pela regulamentação vigente; ou 2. seja verificada, em lei específica, a assinatura de compromisso de aporte para o BRB – Banco de Brasília S.A.; 3. seja decretado pelo BACEN o regime de administração especial temporária ou intervenção do BRB – Banco de Brasília S.A.; ou 4. seja determinado pelo BACEN, segundo critérios estabelecidos em regulamento específico editado pelo Conselho Monetário Nacional,a extinção do instrumento. | AJ126: Totalmente | AK126: Permanente | AL126: Contratual | AM126: Não | AN126: Não | AO126: Não se aplica
B127: 118 | C127: BRB - BANCO DE BRASILIA S/A | D127: LFSN24007VF | E127: Lei 12.249/2010 - Resolução 4.955/2021 do CMN | F127: Nível II | G127: Nível II | H127: Conglomerado | I127: Letra financeira | J127: R$ 2,570,536.85 | K127: R$ 2,400,000.00 | L127: passivo - custo amortizado | M127: 2024-10-31 | N127: Com vencimento | O127: 2031-10-31 | P127: Não | Q127: (1) Não há uma data específica, apenas quando for solicitado ao Bacen | R127: (2) Não há vinculação regulatória ou fiscal para resgate ou recompra | S127: (3) O valor pode ser parcial ou total, conforme autorização do Bacen | T127: Não se aplica | U127: Fixo | V127: 125,5% CDI | W127: Não | X127: Mandatório | Y127: Não | Z127: Cumulativo | AA127: Não conversível | AB127: Não se aplica | AC127: Não se aplica | AD127: Não se aplica | AE127: Não se aplica | AF127: Não se aplica | AG127: Não se aplica | AH127: Sim | AI127: Os títulos serão extintos, permanente e em valor no mínimo correspondente ao saldo computado no Nível II do Patrimônio de Referência do BRB – Banco de Brasília S.A nas seguintes condições: 1. seja verificada a divulgação pelo BRB – Banco de Brasília S.A. de que seu Capital Principal está em patamar inferior a 4,5% (quatro inteiros e cinco décimos por cento) do montante RWA, estabelecida pela regulamentação vigente; ou 2. seja verificada, em lei específica, a assinatura de compromisso de aporte para o BRB – Banco de Brasília S.A.; 3. seja decretado pelo BACEN o regime de administração especial temporária ou intervenção do BRB – Banco de Brasília S.A.; ou 4. seja determinado pelo BACEN, segundo critérios estabelecidos em regulamento específico editado pelo Conselho Monetário Nacional,a extinção do instrumento. | AJ127: Totalmente | AK127: Permanente | AL127: Contratual | AM127: Não | AN127: Não | AO127: Não se aplica
B128: 119 | C128: BRB - BANCO DE BRASILIA S/A | D128: LFSN24007VG | E128: Lei 12.249/2010 - Resolução 4.955/2021 do CMN | F128: Nível II | G128: Nível II | H128: Conglomerado | I128: Letra financeira | J128: R$ 1,290,185.10 | K128: R$ 1,200,000.00 | L128: passivo - custo amortizado | M128: 2024-10-31 | N128: Com vencimento | O128: 2031-10-31 | P128: Não | Q128: (1) Não há uma data específica, apenas quando for solicitado ao Bacen | R128: (2) Não há vinculação regulatória ou fiscal para resgate ou recompra | S128: (3) O valor pode ser parcial ou total, conforme autorização do Bacen | T128: Não se aplica | U128: Fixo | V128: 126% CDI | W128: Não | X128: Mandatório | Y128: Não | Z128: Cumulativo | AA128: Não conversível | AB128: Não se aplica | AC128: Não se aplica | AD128: Não se aplica | AE128: Não se aplica | AF128: Não se aplica | AG128: Não se aplica | AH128: Sim | AI128: Os títulos serão extintos, permanente e em valor no mínimo correspondente ao saldo computado no Nível II do Patrimônio de Referência do BRB – Banco de Brasília S.A nas seguintes condições: 1. seja verificada a divulgação pelo BRB – Banco de Brasília S.A. de que seu Capital Principal está em patamar inferior a 4,5% (quatro inteiros e cinco décimos por cento) do montante RWA, estabelecida pela regulamentação vigente; ou 2. seja verificada, em lei específica, a assinatura de compromisso de aporte para o BRB – Banco de Brasília S.A.; 3. seja decretado pelo BACEN o regime de administração especial temporária ou intervenção do BRB – Banco de Brasília S.A.; ou 4. seja determinado pelo BACEN, segundo critérios estabelecidos em regulamento específico editado pelo Conselho Monetário Nacional,a extinção do instrumento. | AJ128: Totalmente | AK128: Permanente | AL128: Contratual | AM128: Não | AN128: Não | AO128: Não se aplica
B129: 120 | C129: BRB - BANCO DE BRASILIA S/A | D129: LFSN24007VH | E129: Lei 12.249/2010 - Resolução 4.955/2021 do CMN | F129: Nível II | G129: Nível II | H129: Conglomerado | I129: Letra financeira | J129: R$ 5,200,293.50 | K129: R$ 4,800,000.00 | L129: passivo - custo amortizado | M129: 2024-10-31 | N129: Com vencimento | O129: 2031-10-31 | P129: Não | Q129: (1) Não há uma data específica, apenas quando for solicitado ao Bacen | R129: (2) Não há vinculação regulatória ou fiscal para resgate ou recompra | S129: (3) O valor pode ser parcial ou total, conforme autorização do Bacen | T129: Não se aplica | U129: Fixo | V129: 127% CDI | W129: Não | X129: Mandatório | Y129: Não | Z129: Cumulativo | AA129: Não conversível | AB129: Não se aplica | AC129: Não se aplica | AD129: Não se aplica | AE129: Não se aplica | AF129: Não se aplica | AG129: Não se aplica | AH129: Sim | AI129: Os títulos serão extintos, permanente e em valor no mínimo correspondente ao saldo computado no Nível II do Patrimônio de Referência do BRB – Banco de Brasília S.A nas seguintes condições: 1. seja verificada a divulgação pelo BRB – Banco de Brasília S.A. de que seu Capital Principal está em patamar inferior a 4,5% (quatro inteiros e cinco décimos por cento) do montante RWA, estabelecida pela regulamentação vigente; ou 2. seja verificada, em lei específica, a assinatura de compromisso de aporte para o BRB – Banco de Brasília S.A.; 3. seja decretado pelo BACEN o regime de administração especial temporária ou intervenção do BRB – Banco de Brasília S.A.; ou 4. seja determinado pelo BACEN, segundo critérios estabelecidos em regulamento específico editado pelo Conselho Monetário Nacional,a extinção do instrumento. | AJ129: Totalmente | AK129: Permanente | AL129: Contratual | AM129: Não | AN129: Não | AO129: Não se aplica
B130: 121 | C130: BRB - BANCO DE BRASILIA S/A | D130: LFSN240080Y | E130: Lei 12.249/2010 - Resolução 4.955/2021 do CMN | F130: Nível II | G130: Nível II | H130: Conglomerado | I130: Letra financeira | J130: R$ 634,875.24 | K130: R$ 600,000.00 | L130: passivo - custo amortizado | M130: 2024-11-01 | N130: Com vencimento | O130: 2031-10-31 | P130: Não | Q130: (1) Não há uma data específica, apenas quando for solicitado ao Bacen | R130: (2) Não há vinculação regulatória ou fiscal para resgate ou recompra | S130: (3) O valor pode ser parcial ou total, conforme autorização do Bacen | T130: Não se aplica | U130: Fixo | V130: 124% CDI | W130: Não | X130: Mandatório | Y130: Não | Z130: Cumulativo | AA130: Não conversível | AB130: Não se aplica | AC130: Não se aplica | AD130: Não se aplica | AE130: Não se aplica | AF130: Não se aplica | AG130: Não se aplica | AH130: Sim | AI130: Os títulos serão extintos, permanente e em valor no mínimo correspondente ao saldo computado no Nível II do Patrimônio de Referência do BRB – Banco de Brasília S.A nas seguintes condições: 1. seja verificada a divulgação pelo BRB – Banco de Brasília S.A. de que seu Capital Principal está em patamar inferior a 4,5% (quatro inteiros e cinco décimos por cento) do montante RWA, estabelecida pela regulamentação vigente; ou 2. seja verificada, em lei específica, a assinatura de compromisso de aporte para o BRB – Banco de Brasília S.A.; 3. seja decretado pelo BACEN o regime de administração especial temporária ou intervenção do BRB – Banco de Brasília S.A.; ou 4. seja determinado pelo BACEN, segundo critérios estabelecidos em regulamento específico editado pelo Conselho Monetário Nacional,a extinção do instrumento. | AJ130: Totalmente | AK130: Permanente | AL130: Contratual | AM130: Não | AN130: Não | AO130: Não se aplica
B131: 122 | C131: BRB - BANCO DE BRASILIA S/A | D131: LFSN24008C2 | E131: Lei 12.249/2010 - Resolução 4.955/2021 do CMN | F131: Nível II | G131: Nível II | H131: Conglomerado | I131: Letra financeira | J131: R$ 6,337,954.51 | K131: R$ 6,000,000.00 | L131: passivo - custo amortizado | M131: 2024-11-06 | N131: Com vencimento | O131: 2031-11-06 | P131: Não | Q131: (1) Não há uma data específica, apenas quando for solicitado ao Bacen | R131: (2) Não há vinculação regulatória ou fiscal para resgate ou recompra | S131: (3) O valor pode ser parcial ou total, conforme autorização do Bacen | T131: Não se aplica | U131: Fixo | V131: 124% CDI | W131: Não | X131: Mandatório | Y131: Não | Z131: Cumulativo | AA131: Não conversível | AB131: Não se aplica | AC131: Não se aplica | AD131: Não se aplica | AE131: Não se aplica | AF131: Não se aplica | AG131: Não se aplica | AH131: Sim | AI131: Os títulos serão extintos, permanente e em valor no mínimo correspondente ao saldo computado no Nível II do Patrimônio de Referência do BRB – Banco de Brasília S.A nas seguintes condições: 1. seja verificada a divulgação pelo BRB – Banco de Brasília S.A. de que seu Capital Principal está em patamar inferior a 4,5% (quatro inteiros e cinco décimos por cento) do montante RWA, estabelecida pela regulamentação vigente; ou 2. seja verificada, em lei específica, a assinatura de compromisso de aporte para o BRB – Banco de Brasília S.A.; 3. seja decretado pelo BACEN o regime de administração especial temporária ou intervenção do BRB – Banco de Brasília S.A.; ou 4. seja determinado pelo BACEN, segundo critérios estabelecidos em regulamento específico editado pelo Conselho Monetário Nacional,a extinção do instrumento. | AJ131: Totalmente | AK131: Permanente | AL131: Contratual | AM131: Não | AN131: Não | AO131: Não se aplica
B132: 123 | C132: BRB - BANCO DE BRASILIA S/A | D132: LFSN24008C3 | E132: Lei 12.249/2010 - Resolução 4.955/2021 do CMN | F132: Nível II | G132: Nível II | H132: Conglomerado | I132: Letra financeira | J132: R$ 2,564,583.75 | K132: R$ 2,400,000.00 | L132: passivo - custo amortizado | M132: 2024-11-06 | N132: Com vencimento | O132: 2031-11-06 | P132: Não | Q132: (1) Não há uma data específica, apenas quando for solicitado ao Bacen | R132: (2) Não há vinculação regulatória ou fiscal para resgate ou recompra | S132: (3) O valor pode ser parcial ou total, conforme autorização do Bacen | T132: Não se aplica | U132: Fixo | V132: 125,5% CDI | W132: Não | X132: Mandatório | Y132: Não | Z132: Cumulativo | AA132: Não conversível | AB132: Não se aplica | AC132: Não se aplica | AD132: Não se aplica | AE132: Não se aplica | AF132: Não se aplica | AG132: Não se aplica | AH132: Sim | AI132: Os títulos serão extintos, permanente e em valor no mínimo correspondente ao saldo computado no Nível II do Patrimônio de Referência do BRB – Banco de Brasília S.A nas seguintes condições: 1. seja verificada a divulgação pelo BRB – Banco de Brasília S.A. de que seu Capital Principal está em patamar inferior a 4,5% (quatro inteiros e cinco décimos por cento) do montante RWA, estabelecida pela regulamentação vigente; ou 2. seja verificada, em lei específica, a assinatura de compromisso de aporte para o BRB – Banco de Brasília S.A.; 3. seja decretado pelo BACEN o regime de administração especial temporária ou intervenção do BRB – Banco de Brasília S.A.; ou 4. seja determinado pelo BACEN, segundo critérios estabelecidos em regulamento específico editado pelo Conselho Monetário Nacional,a extinção do instrumento. | AJ132: Totalmente | AK132: Permanente | AL132: Contratual | AM132: Não | AN132: Não | AO132: Não se aplica
B133: 124 | C133: BRB - BANCO DE BRASILIA S/A | D133: LFSN24008C4 | E133: Lei 12.249/2010 - Resolução 4.955/2021 do CMN | F133: Nível II | G133: Nível II | H133: Conglomerado | I133: Letra financeira | J133: R$ 4,864,356.69 | K133: R$ 4,500,000.00 | L133: passivo - custo amortizado | M133: 2024-11-06 | N133: Com vencimento | O133: 2031-11-06 | P133: Não | Q133: (1) Não há uma data específica, apenas quando for solicitado ao Bacen | R133: (2) Não há vinculação regulatória ou fiscal para resgate ou recompra | S133: (3) O valor pode ser parcial ou total, conforme autorização do Bacen | T133: Não se aplica | U133: Fixo | V133: 127% CDI | W133: Não | X133: Mandatório | Y133: Não | Z133: Cumulativo | AA133: Não conversível | AB133: Não se aplica | AC133: Não se aplica | AD133: Não se aplica | AE133: Não se aplica | AF133: Não se aplica | AG133: Não se aplica | AH133: Sim | AI133: Os títulos serão extintos, permanente e em valor no mínimo correspondente ao saldo computado no Nível II do Patrimônio de Referência do BRB – Banco de Brasília S.A nas seguintes condições: 1. seja verificada a divulgação pelo BRB – Banco de Brasília S.A. de que seu Capital Principal está em patamar inferior a 4,5% (quatro inteiros e cinco décimos por cento) do montante RWA, estabelecida pela regulamentação vigente; ou 2. seja verificada, em lei específica, a assinatura de compromisso de aporte para o BRB – Banco de Brasília S.A.; 3. seja decretado pelo BACEN o regime de administração especial temporária ou intervenção do BRB – Banco de Brasília S.A.; ou 4. seja determinado pelo BACEN, segundo critérios estabelecidos em regulamento específico editado pelo Conselho Monetário Nacional,a extinção do instrumento. | AJ133: Totalmente | AK133: Permanente | AL133: Contratual | AM133: Não | AN133: Não | AO133: Não se aplica
B134: 125 | C134: BRB - BANCO DE BRASILIA S/A | D134: LFSN24008HM | E134: Lei 12.249/2010 - Resolução 4.955/2021 do CMN | F134: Nível II | G134: Nível II | H134: Conglomerado | I134: Letra financeira | J134: R$ 14,252,006.36 | K134: R$ 13,500,000.00 | L134: passivo - custo amortizado | M134: 2024-11-08 | N134: Com vencimento | O134: 2031-11-07 | P134: Não | Q134: (1) Não há uma data específica, apenas quando for solicitado ao Bacen | R134: (2) Não há vinculação regulatória ou fiscal para resgate ou recompra | S134: (3) O valor pode ser parcial ou total, conforme autorização do Bacen | T134: Não se aplica | U134: Fixo | V134: 124% CDI | W134: Não | X134: Mandatório | Y134: Não | Z134: Cumulativo | AA134: Não conversível | AB134: Não se aplica | AC134: Não se aplica | AD134: Não se aplica | AE134: Não se aplica | AF134: Não se aplica | AG134: Não se aplica | AH134: Sim | AI134: Os títulos serão extintos, permanente e em valor no mínimo correspondente ao saldo computado no Nível II do Patrimônio de Referência do BRB – Banco de Brasília S.A nas seguintes condições: 1. seja verificada a divulgação pelo BRB – Banco de Brasília S.A. de que seu Capital Principal está em patamar inferior a 4,5% (quatro inteiros e cinco décimos por cento) do montante RWA, estabelecida pela regulamentação vigente; ou 2. seja verificada, em lei específica, a assinatura de compromisso de aporte para o BRB – Banco de Brasília S.A.; 3. seja decretado pelo BACEN o regime de administração especial temporária ou intervenção do BRB – Banco de Brasília S.A.; ou 4. seja determinado pelo BACEN, segundo critérios estabelecidos em regulamento específico editado pelo Conselho Monetário Nacional,a extinção do instrumento. | AJ134: Totalmente | AK134: Permanente | AL134: Contratual | AM134: Não | AN134: Não | AO134: Não se aplica
B135: 126 | C135: BRB - BANCO DE BRASILIA S/A | D135: LFSN24008HN | E135: Lei 12.249/2010 - Resolução 4.955/2021 do CMN | F135: Nível II | G135: Nível II | H135: Conglomerado | I135: Letra financeira | J135: R$ 4,484,844.85 | K135: R$ 4,200,000.00 | L135: passivo - custo amortizado | M135: 2024-11-08 | N135: Com vencimento | O135: 2031-11-07 | P135: Não | Q135: (1) Não há uma data específica, apenas quando for solicitado ao Bacen | R135: (2) Não há vinculação regulatória ou fiscal para resgate ou recompra | S135: (3) O valor pode ser parcial ou total, conforme autorização do Bacen | T135: Não se aplica | U135: Fixo | V135: 125,5% CDI | W135: Não | X135: Mandatório | Y135: Não | Z135: Cumulativo | AA135: Não conversível | AB135: Não se aplica | AC135: Não se aplica | AD135: Não se aplica | AE135: Não se aplica | AF135: Não se aplica | AG135: Não se aplica | AH135: Sim | AI135: Os títulos serão extintos, permanente e em valor no mínimo correspondente ao saldo computado no Nível II do Patrimônio de Referência do BRB – Banco de Brasília S.A nas seguintes condições: 1. seja verificada a divulgação pelo BRB – Banco de Brasília S.A. de que seu Capital Principal está em patamar inferior a 4,5% (quatro inteiros e cinco décimos por cento) do montante RWA, estabelecida pela regulamentação vigente; ou 2. seja verificada, em lei específica, a assinatura de compromisso de aporte para o BRB – Banco de Brasília S.A.; 3. seja decretado pelo BACEN o regime de administração especial temporária ou intervenção do BRB – Banco de Brasília S.A.; ou 4. seja determinado pelo BACEN, segundo critérios estabelecidos em regulamento específico editado pelo Conselho Monetário Nacional,a extinção do instrumento. | AJ135: Totalmente | AK135: Permanente | AL135: Contratual | AM135: Não | AN135: Não | AO135: Não se aplica
B136: 127 | C136: BRB - BANCO DE BRASILIA S/A | D136: LFSN24008HO | E136: Lei 12.249/2010 - Resolução 4.955/2021 do CMN | F136: Nível II | G136: Nível II | H136: Conglomerado | I136: Letra financeira | J136: R$ 10,044,688.38 | K136: R$ 9,300,000.00 | L136: passivo - custo amortizado | M136: 2024-11-08 | N136: Com vencimento | O136: 2031-11-07 | P136: Não | Q136: (1) Não há uma data específica, apenas quando for solicitado ao Bacen | R136: (2) Não há vinculação regulatória ou fiscal para resgate ou recompra | S136: (3) O valor pode ser parcial ou total, conforme autorização do Bacen | T136: Não se aplica | U136: Fixo | V136: 127% CDI | W136: Não | X136: Mandatório | Y136: Não | Z136: Cumulativo | AA136: Não conversível | AB136: Não se aplica | AC136: Não se aplica | AD136: Não se aplica | AE136: Não se aplica | AF136: Não se aplica | AG136: Não se aplica | AH136: Sim | AI136: Os títulos serão extintos, permanente e em valor no mínimo correspondente ao saldo computado no Nível II do Patrimônio de Referência do BRB – Banco de Brasília S.A nas seguintes condições: 1. seja verificada a divulgação pelo BRB – Banco de Brasília S.A. de que seu Capital Principal está em patamar inferior a 4,5% (quatro inteiros e cinco décimos por cento) do montante RWA, estabelecida pela regulamentação vigente; ou 2. seja verificada, em lei específica, a assinatura de compromisso de aporte para o BRB – Banco de Brasília S.A.; 3. seja decretado pelo BACEN o regime de administração especial temporária ou intervenção do BRB – Banco de Brasília S.A.; ou 4. seja determinado pelo BACEN, segundo critérios estabelecidos em regulamento específico editado pelo Conselho Monetário Nacional,a extinção do instrumento. | AJ136: Totalmente | AK136: Permanente | AL136: Contratual | AM136: Não | AN136: Não | AO136: Não se aplica
B137: 128 | C137: BRB - BANCO DE BRASILIA S/A | D137: LFSN24008SQ | E137: Lei 12.249/2010 - Resolução 4.955/2021 do CMN | F137: Nível II | G137: Nível II | H137: Conglomerado | I137: Letra financeira | J137: R$ 10,396,395.30 | K137: R$ 9,900,000.00 | L137: passivo - custo amortizado | M137: 2024-11-22 | N137: Com vencimento | O137: 2031-11-24 | P137: Não | Q137: (1) Não há uma data específica, apenas quando for solicitado ao Bacen | R137: (2) Não há vinculação regulatória ou fiscal para resgate ou recompra | S137: (3) O valor pode ser parcial ou total, conforme autorização do Bacen | T137: Não se aplica | U137: Fixo | V137: 124% CDI | W137: Não | X137: Mandatório | Y137: Não | Z137: Cumulativo | AA137: Não conversível | AB137: Não se aplica | AC137: Não se aplica | AD137: Não se aplica | AE137: Não se aplica | AF137: Não se aplica | AG137: Não se aplica | AH137: Sim | AI137: Os títulos serão extintos, permanente e em valor no mínimo correspondente ao saldo computado no Nível II do Patrimônio de Referência do BRB – Banco de Brasília S.A nas seguintes condições: 1. seja verificada a divulgação pelo BRB – Banco de Brasília S.A. de que seu Capital Principal está em patamar inferior a 4,5% (quatro inteiros e cinco décimos por cento) do montante RWA, estabelecida pela regulamentação vigente; ou 2. seja verificada, em lei específica, a assinatura de compromisso de aporte para o BRB – Banco de Brasília S.A.; 3. seja decretado pelo BACEN o regime de administração especial temporária ou intervenção do BRB – Banco de Brasília S.A.; ou 4. seja determinado pelo BACEN, segundo critérios estabelecidos em regulamento específico editado pelo Conselho Monetário Nacional,a extinção do instrumento. | AJ137: Totalmente | AK137: Permanente | AL137: Contratual | AM137: Não | AN137: Não | AO137: Não se aplica
B138: 129 | C138: BRB - BANCO DE BRASILIA S/A | D138: LFSN24008SR | E138: Lei 12.249/2010 - Resolução 4.955/2021 do CMN | F138: Nível II | G138: Nível II | H138: Conglomerado | I138: Letra financeira | J138: R$ 1,274,924.26 | K138: R$ 1,200,000.00 | L138: passivo - custo amortizado | M138: 2024-11-22 | N138: Com vencimento | O138: 2031-11-24 | P138: Não | Q138: (1) Não há uma data específica, apenas quando for solicitado ao Bacen | R138: (2) Não há vinculação regulatória ou fiscal para resgate ou recompra | S138: (3) O valor pode ser parcial ou total, conforme autorização do Bacen | T138: Não se aplica | U138: Fixo | V138: 125,5% CDI | W138: Não | X138: Mandatório | Y138: Não | Z138: Cumulativo | AA138: Não conversível | AB138: Não se aplica | AC138: Não se aplica | AD138: Não se aplica | AE138: Não se aplica | AF138: Não se aplica | AG138: Não se aplica | AH138: Sim | AI138: Os títulos serão extintos, permanente e em valor no mínimo correspondente ao saldo computado no Nível II do Patrimônio de Referência do BRB – Banco de Brasília S.A nas seguintes condições: 1. seja verificada a divulgação pelo BRB – Banco de Brasília S.A. de que seu Capital Principal está em patamar inferior a 4,5% (quatro inteiros e cinco décimos por cento) do montante RWA, estabelecida pela regulamentação vigente; ou 2. seja verificada, em lei específica, a assinatura de compromisso de aporte para o BRB – Banco de Brasília S.A.; 3. seja decretado pelo BACEN o regime de administração especial temporária ou intervenção do BRB – Banco de Brasília S.A.; ou 4. seja determinado pelo BACEN, segundo critérios estabelecidos em regulamento específico editado pelo Conselho Monetário Nacional,a extinção do instrumento. | AJ138: Totalmente | AK138: Permanente | AL138: Contratual | AM138: Não | AN138: Não | AO138: Não se aplica
B139: 130 | C139: BRB - BANCO DE BRASILIA S/A | D139: LFSN24008SS | E139: Lei 12.249/2010 - Resolução 4.955/2021 do CMN | F139: Nível II | G139: Nível II | H139: Conglomerado | I139: Letra financeira | J139: R$ 4,192,018.51 | K139: R$ 3,900,000.00 | L139: passivo - custo amortizado | M139: 2024-11-22 | N139: Com vencimento | O139: 2031-11-24 | P139: Não | Q139: (1) Não há uma data específica, apenas quando for solicitado ao Bacen | R139: (2) Não há vinculação regulatória ou fiscal para resgate ou recompra | S139: (3) O valor pode ser parcial ou total, conforme autorização do Bacen | T139: Não se aplica | U139: Fixo | V139: 127% CDI | W139: Não | X139: Mandatório | Y139: Não | Z139: Cumulativo | AA139: Não conversível | AB139: Não se aplica | AC139: Não se aplica | AD139: Não se aplica | AE139: Não se aplica | AF139: Não se aplica | AG139: Não se aplica | AH139: Sim | AI139: Os títulos serão extintos, permanente e em valor no mínimo correspondente ao saldo computado no Nível II do Patrimônio de Referência do BRB – Banco de Brasília S.A nas seguintes condições: 1. seja verificada a divulgação pelo BRB – Banco de Brasília S.A. de que seu Capital Principal está em patamar inferior a 4,5% (quatro inteiros e cinco décimos por cento) do montante RWA, estabelecida pela regulamentação vigente; ou 2. seja verificada, em lei específica, a assinatura de compromisso de aporte para o BRB – Banco de Brasília S.A.; 3. seja decretado pelo BACEN o regime de administração especial temporária ou intervenção do BRB – Banco de Brasília S.A.; ou 4. seja determinado pelo BACEN, segundo critérios estabelecidos em regulamento específico editado pelo Conselho Monetário Nacional,a extinção do instrumento. | AJ139: Totalmente | AK139: Permanente | AL139: Contratual | AM139: Não | AN139: Não | AO139: Não se aplica
B140: =B139+1 -> 131 | C140: BRB - BANCO DE BRASILIA S/A | D140: LFSN24008YA | E140: Lei 12.249/2010 - Resolução 4.955/2021 do CMN | F140: Nível II | G140: Nível II | H140: Conglomerado | I140: Letra financeira | J140: R$ 19,817,874.49 | K140: R$ 18,900,000.00 | L140: passivo - custo amortizado | M140: 2024-11-27 | N140: Com vencimento | O140: 2031-11-27 | P140: Não | Q140: (1) Não há uma data específica, apenas quando for solicitado ao Bacen | R140: (2) Não há vinculação regulatória ou fiscal para resgate ou recompra | S140: (3) O valor pode ser parcial ou total, conforme autorização do Bacen | T140: Não se aplica | U140: Fixo | V140: 124% CDI | W140: Não | X140: Mandatório | Y140: Não | Z140: Cumulativo | AA140: Não conversível | AB140: Não se aplica | AC140: Não se aplica | AD140: Não se aplica | AE140: Não se aplica | AF140: Não se aplica | AG140: Não se aplica | AH140: Sim | AI140: Os títulos serão extintos, permanente e em valor no mínimo correspondente ao saldo computado no Nível II do Patrimônio de Referência do BRB – Banco de Brasília S.A nas seguintes condições: 1. seja verificada a divulgação pelo BRB – Banco de Brasília S.A. de que seu Capital Principal está em patamar inferior a 4,5% (quatro inteiros e cinco décimos por cento) do montante RWA, estabelecida pela regulamentação vigente; ou 2. seja verificada, em lei específica, a assinatura de compromisso de aporte para o BRB – Banco de Brasília S.A.; 3. seja decretado pelo BACEN o regime de administração especial temporária ou intervenção do BRB – Banco de Brasília S.A.; ou 4. seja determinado pelo BACEN, segundo critérios estabelecidos em regulamento específico editado pelo Conselho Monetário Nacional,a extinção do instrumento. | AJ140: Totalmente | AK140: Permanente | AL140: Contratual | AM140: Não | AN140: Não | AO140: Não se aplica
B141: 132 | C141: BRB - BANCO DE BRASILIA S/A | D141: LFSN24008YB | E141: Lei 12.249/2010 - Resolução 4.955/2021 do CMN | F141: Nível II | G141: Nível II | H141: Conglomerado | I141: Letra financeira | J141: R$ 6,046,602.92 | K141: R$ 5,700,000.00 | L141: passivo - custo amortizado | M141: 2024-11-27 | N141: Com vencimento | O141: 2031-11-27 | P141: Não | Q141: (1) Não há uma data específica, apenas quando for solicitado ao Bacen | R141: (2) Não há vinculação regulatória ou fiscal para resgate ou recompra | S141: (3) O valor pode ser parcial ou total, conforme autorização do Bacen | T141: Não se aplica | U141: Fixo | V141: 125,5% CDI | W141: Não | X141: Mandatório | Y141: Não | Z141: Cumulativo | AA141: Não conversível | AB141: Não se aplica | AC141: Não se aplica | AD141: Não se aplica | AE141: Não se aplica | AF141: Não se aplica | AG141: Não se aplica | AH141: Sim | AI141: Os títulos serão extintos, permanente e em valor no mínimo correspondente ao saldo computado no Nível II do Patrimônio de Referência do BRB – Banco de Brasília S.A nas seguintes condições: 1. seja verificada a divulgação pelo BRB – Banco de Brasília S.A. de que seu Capital Principal está em patamar inferior a 4,5% (quatro inteiros e cinco décimos por cento) do montante RWA, estabelecida pela regulamentação vigente; ou 2. seja verificada, em lei específica, a assinatura de compromisso de aporte para o BRB – Banco de Brasília S.A.; 3. seja decretado pelo BACEN o regime de administração especial temporária ou intervenção do BRB – Banco de Brasília S.A.; ou 4. seja determinado pelo BACEN, segundo critérios estabelecidos em regulamento específico editado pelo Conselho Monetário Nacional,a extinção do instrumento. | AJ141: Totalmente | AK141: Permanente | AL141: Contratual | AM141: Não | AN141: Não | AO141: Não se aplica
B142: 133 | C142: BRB - BANCO DE BRASILIA S/A | D142: LFSN24008YC | E142: Lei 12.249/2010 - Resolução 4.955/2021 do CMN | F142: Nível II | G142: Nível II | H142: Conglomerado | I142: Letra financeira | J142: R$ 6,439,152.02 | K142: R$ 6,000,000.00 | L142: passivo - custo amortizado | M142: 2024-11-27 | N142: Com vencimento | O142: 2031-11-27 | P142: Não | Q142: (1) Não há uma data específica, apenas quando for solicitado ao Bacen | R142: (2) Não há vinculação regulatória ou fiscal para resgate ou recompra | S142: (3) O valor pode ser parcial ou total, conforme autorização do Bacen | T142: Não se aplica | U142: Fixo | V142: 127% CDI | W142: Não | X142: Mandatório | Y142: Não | Z142: Cumulativo | AA142: Não conversível | AB142: Não se aplica | AC142: Não se aplica | AD142: Não se aplica | AE142: Não se aplica | AF142: Não se aplica | AG142: Não se aplica | AH142: Sim | AI142: Os títulos serão extintos, permanente e em valor no mínimo correspondente ao saldo computado no Nível II do Patrimônio de Referência do BRB – Banco de Brasília S.A nas seguintes condições: 1. seja verificada a divulgação pelo BRB – Banco de Brasília S.A. de que seu Capital Principal está em patamar inferior a 4,5% (quatro inteiros e cinco décimos por cento) do montante RWA, estabelecida pela regulamentação vigente; ou 2. seja verificada, em lei específica, a assinatura de compromisso de aporte para o BRB – Banco de Brasília S.A.; 3. seja decretado pelo BACEN o regime de administração especial temporária ou intervenção do BRB – Banco de Brasília S.A.; ou 4. seja determinado pelo BACEN, segundo critérios estabelecidos em regulamento específico editado pelo Conselho Monetário Nacional,a extinção do instrumento. | AJ142: Totalmente | AK142: Permanente | AL142: Contratual | AM142: Não | AN142: Não | AO142: Não se aplica
B143: 134 | C143: BRB - BANCO DE BRASILIA S/A | D143: LFSN240099F | E143: Lei 12.249/2010 - Resolução 4.955/2021 do CMN | F143: Nível II | G143: Nível II | H143: Conglomerado | I143: Letra financeira | J143: R$ 25,710,460.15 | K143: R$ 24,600,000.00 | L143: passivo - custo amortizado | M143: 2024-11-29 | N143: Com vencimento | O143: 2031-11-28 | P143: Não | Q143: (1) Não há uma data específica, apenas quando for solicitado ao Bacen | R143: (2) Não há vinculação regulatória ou fiscal para resgate ou recompra | S143: (3) O valor pode ser parcial ou total, conforme autorização do Bacen | T143: Não se aplica | U143: Fixo | V143: 124% CDI | W143: Não | X143: Mandatório | Y143: Não | Z143: Cumulativo | AA143: Não conversível | AB143: Não se aplica | AC143: Não se aplica | AD143: Não se aplica | AE143: Não se aplica | AF143: Não se aplica | AG143: Não se aplica | AH143: Sim | AI143: Os títulos serão extintos, permanente e em valor no mínimo correspondente ao saldo computado no Nível II do Patrimônio de Referência do BRB – Banco de Brasília S.A nas seguintes condições: 1. seja verificada a divulgação pelo BRB – Banco de Brasília S.A. de que seu Capital Principal está em patamar inferior a 4,5% (quatro inteiros e cinco décimos por cento) do montante RWA, estabelecida pela regulamentação vigente; ou 2. seja verificada, em lei específica, a assinatura de compromisso de aporte para o BRB – Banco de Brasília S.A.; 3. seja decretado pelo BACEN o regime de administração especial temporária ou intervenção do BRB – Banco de Brasília S.A.; ou 4. seja determinado pelo BACEN, segundo critérios estabelecidos em regulamento específico editado pelo Conselho Monetário Nacional,a extinção do instrumento. | AJ143: Totalmente | AK143: Permanente | AL143: Contratual | AM143: Não | AN143: Não | AO143: Não se aplica
B144: 135 | C144: BRB - BANCO DE BRASILIA S/A | D144: LFSN240099G | E144: Lei 12.249/2010 - Resolução 4.955/2021 do CMN | F144: Nível II | G144: Nível II | H144: Conglomerado | I144: Letra financeira | J144: R$ 2,539,002.47 | K144: R$ 2,400,000.00 | L144: passivo - custo amortizado | M144: 2024-11-29 | N144: Com vencimento | O144: 2031-11-28 | P144: Não | Q144: (1) Não há uma data específica, apenas quando for solicitado ao Bacen | R144: (2) Não há vinculação regulatória ou fiscal para resgate ou recompra | S144: (3) O valor pode ser parcial ou total, conforme autorização do Bacen | T144: Não se aplica | U144: Fixo | V144: 125,5% CDI | W144: Não | X144: Mandatório | Y144: Não | Z144: Cumulativo | AA144: Não conversível | AB144: Não se aplica | AC144: Não se aplica | AD144: Não se aplica | AE144: Não se aplica | AF144: Não se aplica | AG144: Não se aplica | AH144: Sim | AI144: Os títulos serão extintos, permanente e em valor no mínimo correspondente ao saldo computado no Nível II do Patrimônio de Referência do BRB – Banco de Brasília S.A nas seguintes condições: 1. seja verificada a divulgação pelo BRB – Banco de Brasília S.A. de que seu Capital Principal está em patamar inferior a 4,5% (quatro inteiros e cinco décimos por cento) do montante RWA, estabelecida pela regulamentação vigente; ou 2. seja verificada, em lei específica, a assinatura de compromisso de aporte para o BRB – Banco de Brasília S.A.; 3. seja decretado pelo BACEN o regime de administração especial temporária ou intervenção do BRB – Banco de Brasília S.A.; ou 4. seja determinado pelo BACEN, segundo critérios estabelecidos em regulamento específico editado pelo Conselho Monetário Nacional,a extinção do instrumento. | AJ144: Totalmente | AK144: Permanente | AL144: Contratual | AM144: Não | AN144: Não | AO144: Não se aplica
B145: 136 | C145: BRB - BANCO DE BRASILIA S/A | D145: LFSN240099H | E145: Lei 12.249/2010 - Resolução 4.955/2021 do CMN | F145: Nível II | G145: Nível II | H145: Conglomerado | I145: Letra financeira | J145: R$ 3,855,064.62 | K145: R$ 3,600,000.00 | L145: passivo - custo amortizado | M145: 2024-11-29 | N145: Com vencimento | O145: 2031-11-28 | P145: Não | Q145: (1) Não há uma data específica, apenas quando for solicitado ao Bacen | R145: (2) Não há vinculação regulatória ou fiscal para resgate ou recompra | S145: (3) O valor pode ser parcial ou total, conforme autorização do Bacen | T145: Não se aplica | U145: Fixo | V145: 127% CDI | W145: Não | X145: Mandatório | Y145: Não | Z145: Cumulativo | AA145: Não conversível | AB145: Não se aplica | AC145: Não se aplica | AD145: Não se aplica | AE145: Não se aplica | AF145: Não se aplica | AG145: Não se aplica | AH145: Sim | AI145: Os títulos serão extintos, permanente e em valor no mínimo correspondente ao saldo computado no Nível II do Patrimônio de Referência do BRB – Banco de Brasília S.A nas seguintes condições: 1. seja verificada a divulgação pelo BRB – Banco de Brasília S.A. de que seu Capital Principal está em patamar inferior a 4,5% (quatro inteiros e cinco décimos por cento) do montante RWA, estabelecida pela regulamentação vigente; ou 2. seja verificada, em lei específica, a assinatura de compromisso de aporte para o BRB – Banco de Brasília S.A.; 3. seja decretado pelo BACEN o regime de administração especial temporária ou intervenção do BRB – Banco de Brasília S.A.; ou 4. seja determinado pelo BACEN, segundo critérios estabelecidos em regulamento específico editado pelo Conselho Monetário Nacional,a extinção do instrumento. | AJ145: Totalmente | AK145: Permanente | AL145: Contratual | AM145: Não | AN145: Não | AO145: Não se aplica
B146: 137 | C146: BRB - BANCO DE BRASILIA S/A | D146: LFSN24009EY | E146: Lei 12.249/2010 - Resolução 4.955/2021 do CMN | F146: Nível II | G146: Nível II | H146: Conglomerado | I146: Letra financeira | J146: R$ 13,745,990.56 | K146: R$ 13,200,000.00 | L146: passivo - custo amortizado | M146: 2024-12-06 | N146: Com vencimento | O146: 2031-12-08 | P146: Não | Q146: (1) Não há uma data específica, apenas quando for solicitado ao Bacen | R146: (2) Não há vinculação regulatória ou fiscal para resgate ou recompra | S146: (3) O valor pode ser parcial ou total, conforme autorização do Bacen | T146: Não se aplica | U146: Fixo | V146: 124% CDI | W146: Não | X146: Mandatório | Y146: Não | Z146: Cumulativo | AA146: Não conversível | AB146: Não se aplica | AC146: Não se aplica | AD146: Não se aplica | AE146: Não se aplica | AF146: Não se aplica | AG146: Não se aplica | AH146: Sim | AI146: Os títulos serão extintos, permanente e em valor no mínimo correspondente ao saldo computado no Nível II do Patrimônio de Referência do BRB – Banco de Brasília S.A nas seguintes condições: 1. seja verificada a divulgação pelo BRB – Banco de Brasília S.A. de que seu Capital Principal está em patamar inferior a 4,5% (quatro inteiros e cinco décimos por cento) do montante RWA, estabelecida pela regulamentação vigente; ou 2. seja verificada, em lei específica, a assinatura de compromisso de aporte para o BRB – Banco de Brasília S.A.; 3. seja decretado pelo BACEN o regime de administração especial temporária ou intervenção do BRB – Banco de Brasília S.A.; ou 4. seja determinado pelo BACEN, segundo critérios estabelecidos em regulamento específico editado pelo Conselho Monetário Nacional,a extinção do instrumento. | AJ146: Totalmente | AK146: Permanente | AL146: Contratual | AM146: Não | AN146: Não | AO146: Não se aplica
B147: 138 | C147: BRB - BANCO DE BRASILIA S/A | D147: LFSN24009EZ | E147: Lei 12.249/2010 - Resolução 4.955/2021 do CMN | F147: Nível II | G147: Nível II | H147: Conglomerado | I147: Letra financeira | J147: R$ 1,265,194.74 | K147: R$ 1,200,000.00 | L147: passivo - custo amortizado | M147: 2024-12-06 | N147: Com vencimento | O147: 2031-12-08 | P147: Não | Q147: (1) Não há uma data específica, apenas quando for solicitado ao Bacen | R147: (2) Não há vinculação regulatória ou fiscal para resgate ou recompra | S147: (3) O valor pode ser parcial ou total, conforme autorização do Bacen | T147: Não se aplica | U147: Fixo | V147: 125,5% CDI | W147: Não | X147: Mandatório | Y147: Não | Z147: Cumulativo | AA147: Não conversível | AB147: Não se aplica | AC147: Não se aplica | AD147: Não se aplica | AE147: Não se aplica | AF147: Não se aplica | AG147: Não se aplica | AH147: Sim | AI147: Os títulos serão extintos, permanente e em valor no mínimo correspondente ao saldo computado no Nível II do Patrimônio de Referência do BRB – Banco de Brasília S.A nas seguintes condições: 1. seja verificada a divulgação pelo BRB – Banco de Brasília S.A. de que seu Capital Principal está em patamar inferior a 4,5% (quatro inteiros e cinco décimos por cento) do montante RWA, estabelecida pela regulamentação vigente; ou 2. seja verificada, em lei específica, a assinatura de compromisso de aporte para o BRB – Banco de Brasília S.A.; 3. seja decretado pelo BACEN o regime de administração especial temporária ou intervenção do BRB – Banco de Brasília S.A.; ou 4. seja determinado pelo BACEN, segundo critérios estabelecidos em regulamento específico editado pelo Conselho Monetário Nacional,a extinção do instrumento. | AJ147: Totalmente | AK147: Permanente | AL147: Contratual | AM147: Não | AN147: Não | AO147: Não se aplica
B148: 139 | C148: BRB - BANCO DE BRASILIA S/A | D148: LFSN24009F0 | E148: Lei 12.249/2010 - Resolução 4.955/2021 do CMN | F148: Nível II | G148: Nível II | H148: Conglomerado | I148: Letra financeira | J148: R$ 960,710.73 | K148: R$ 900,000.00 | L148: passivo - custo amortizado | M148: 2024-12-06 | N148: Com vencimento | O148: 2031-12-08 | P148: Não | Q148: (1) Não há uma data específica, apenas quando for solicitado ao Bacen | R148: (2) Não há vinculação regulatória ou fiscal para resgate ou recompra | S148: (3) O valor pode ser parcial ou total, conforme autorização do Bacen | T148: Não se aplica | U148: Fixo | V148: 127% CDI | W148: Não | X148: Mandatório | Y148: Não | Z148: Cumulativo | AA148: Não conversível | AB148: Não se aplica | AC148: Não se aplica | AD148: Não se aplica | AE148: Não se aplica | AF148: Não se aplica | AG148: Não se aplica | AH148: Sim | AI148: Os títulos serão extintos, permanente e em valor no mínimo correspondente ao saldo computado no Nível II do Patrimônio de Referência do BRB – Banco de Brasília S.A nas seguintes condições: 1. seja verificada a divulgação pelo BRB – Banco de Brasília S.A. de que seu Capital Principal está em patamar inferior a 4,5% (quatro inteiros e cinco décimos por cento) do montante RWA, estabelecida pela regulamentação vigente; ou 2. seja verificada, em lei específica, a assinatura de compromisso de aporte para o BRB – Banco de Brasília S.A.; 3. seja decretado pelo BACEN o regime de administração especial temporária ou intervenção do BRB – Banco de Brasília S.A.; ou 4. seja determinado pelo BACEN, segundo critérios estabelecidos em regulamento específico editado pelo Conselho Monetário Nacional,a extinção do instrumento. | AJ148: Totalmente | AK148: Permanente | AL148: Contratual | AM148: Não | AN148: Não | AO148: Não se aplica
B149: 140 | C149: BRB - BANCO DE BRASILIA S/A | D149: LFSN24009F1 | E149: Lei 12.249/2010 - Resolução 4.955/2021 do CMN | F149: Nível II | G149: Nível II | H149: Conglomerado | I149: Letra financeira | J149: R$ 640,473.77 | K149: R$ 600,000.00 | L149: passivo - custo amortizado | M149: 2024-12-06 | N149: Com vencimento | O149: 2031-12-08 | P149: Não | Q149: (1) Não há uma data específica, apenas quando for solicitado ao Bacen | R149: (2) Não há vinculação regulatória ou fiscal para resgate ou recompra | S149: (3) O valor pode ser parcial ou total, conforme autorização do Bacen | T149: Não se aplica | U149: Fixo | V149: 127% CDI | W149: Não | X149: Mandatório | Y149: Não | Z149: Cumulativo | AA149: Não conversível | AB149: Não se aplica | AC149: Não se aplica | AD149: Não se aplica | AE149: Não se aplica | AF149: Não se aplica | AG149: Não se aplica | AH149: Sim | AI149: Os títulos serão extintos, permanente e em valor no mínimo correspondente ao saldo computado no Nível II do Patrimônio de Referência do BRB – Banco de Brasília S.A nas seguintes condições: 1. seja verificada a divulgação pelo BRB – Banco de Brasília S.A. de que seu Capital Principal está em patamar inferior a 4,5% (quatro inteiros e cinco décimos por cento) do montante RWA, estabelecida pela regulamentação vigente; ou 2. seja verificada, em lei específica, a assinatura de compromisso de aporte para o BRB – Banco de Brasília S.A.; 3. seja decretado pelo BACEN o regime de administração especial temporária ou intervenção do BRB – Banco de Brasília S.A.; ou 4. seja determinado pelo BACEN, segundo critérios estabelecidos em regulamento específico editado pelo Conselho Monetário Nacional,a extinção do instrumento. | AJ149: Totalmente | AK149: Permanente | AL149: Contratual | AM149: Não | AN149: Não | AO149: Não se aplica
